Workbook

Sheet FICHA TÉCNICA
AS2: FECHA DE REGISTRO: | AX2: =+NOW() -> 2018-02-14T18:03:49.570
F4: FICHA TÉCNICA DE PROYECTOS DE INVERSIÓN ESTÁNDAR Y/O SIMPLIFICADOS - RECUPERACIÓN DE ÁREAS DEGRADADAS POR RESIDUOS SÓLIDOS
Q5: (La información registrada tiene carácter de Declaración Jurada - D.S. N° 027-2017-EF)
R6: Ficha Técnica aplicable a proyectos estándar y montos de inversión <=15,000 UIT
B9: I. | C9: DATOS GENERALES
B11: 1.1 | C11: ARTICULACIÓN CON EL PROGRAMA MULTIANUAL DE INVERSIONES (PMI)
C13: 1.1.1 | E13: BIEN PÚBLICO CON BRECHA IDENTIFICADA Y PRIORIZADA | U13: ÁREAS DEGRADADAS POR RESIDUOS SÓLIDOS
C15: 1.1.2 | E15: INDICADOR DE PRODUCTO ASOCIADO A LA BRECHA DEL BIEN PÚBLICO | U15: PORCENTAJE DE HECTÁREAS DE ÁREAS DEGRADADAS POR RESIDUOS SÓLIDOS
B17: 1.2 | C17: NOMBRE DEL PROYECTO | L17: =+C21&" DEL "&M21&" EN LA LOCALIDAD DE "&AO21&" - DISTRITO DE "&AI21&" - PROVINCIA DE "&AC21&" - DEPARTAMENTO DE "&W21 -> RECUPERACIÓN DEL ÁREA DEGRADADA POR RESIDUOS SÓLIDOS EN LA LOCALIDAD DE - DISTRITO DE - PROVINCIA DE - DEPARTAMENTO DE
C19: NATURALEZA DE INTERVENCIÓN | M19: OBJETO | W19: LOCALIZACIÓN
W20: DEPARTAMENTO | AC20: PROVINCIA | AI20: DISTRITO | AO20: LOCALIDAD
C21: RECUPERACIÓN | M21: ÁREA DEGRADADA POR RESIDUOS SÓLIDOS
B23: 1.3 | C23: RESPONSABILIDAD FUNCIONAL
C25: FUNCIÓN: | L25: =+UPPER("17: Ambiente") -> 17: AMBIENTE
C26: DIVISIÓN FUNCIONAL: | L26: =+UPPER("055: Gestión Integral de la Calidad Ambiental") -> 055: GESTIÓN INTEGRAL DE LA CALIDAD AMBIENTAL
C27: GRUPO FUNCIONAL: | L27: =+UPPER("0126: Vigilancia y control integral de la contaminación y remediación ambiental") -> 0126: VIGILANCIA Y CONTROL INTEGRAL DE LA CONTAMINACIÓN Y REMEDIACIÓN AMBIENTAL
C28: SECTOR RESPONSABLE: | L28: =+UPPER("Ambiente") -> AMBIENTE
C30: ¿EL PROYECTO PERTENECE A UN PROGRAMA DE INVERSIÓN ?
C32: EN CASO AFIRMATIVO, INDIQUE CÓDIGO DEL PROGRAMA DE INVERSIÓN:
C34: ¿EL PROYECTO PERTENECE A UN CONGLOMERADO AUTORIZADO ?
C36: EN CASO AFIRMATIVO, INDIQUE EL CÓDIGO DEL CONGLOMERADO:
B38: 1.4 | C38: UNIDAD FORMULADORA (UF) DEL PROYECTO
C40: SECTOR:
C41: PLIEGO:
C42: NOMBRE (UF DESIGNADA POR EL ÓRGANO RESOLUTIVO)
C43: PERSONA RESPONSABLE DE LA UNIDAD FORMULADORA
C44: PERSONA RESPONSABLE DE LA FORMULACIÓN:
C46: SI LA FICHA TÉCNICA ESTANDAR HA SIDO DESARROLLADA POR ADMINISTRACIÓN INDIRECTA (CONSULTORÍA), INDICAR:
C48: AUTOR DE LA ELABORACIÓN DE LA FICHA TÉCNICA
C49: COSTO DE ELABORACIÓN DE LA FICHA TÉCNICA (S/)
C51: SI LA UF ES UN GOBIERNO REGIONAL O SECTOR DETALLAR:
C53: N° DE CONVENIO SUSCRITO CON EL GOBIERNO LOCAL COMPETENTE: | AA53: FECHA DE INICIO: | AJ53: FECHA DE TÉRMINO:
B55: 1.5 | C55: UNIDAD EJECUTORA DE INVERSIONES (UEI) RECOMENDADA DEL PROYECTO
C57: SECTOR:
C58: PLIEGO:
C59: NOMBRE (UEI DESIGNADA POR EL ÓRGANO RESOLUTIVO)
C60: PERSONA RESPONSABLE DE LA UNIDAD EJECUTORA DE INVERSIONES
C62: SI LA UEI ES UN GOBIERNO REGIONAL O SECTOR DETALLAR:
C64: N° DE CONVENIO SUSCRITO CON EL GOBIERNO LOCAL COMPETENTE | AA64: FECHA DE INICIO: | AJ64: FECHA DE TÉRMINO:
B66: 1.6 | C66: LOCALIZACIÓN GEOGRÁFICA DEL PROYECTO
C68: DEPARTAMENTO | P68: =+W21 -> 0
C69: PROVINCIA | P69: =+AC21 -> 0
C70: DISTRITO | P70: =+AI21 -> 0
C71: LOCALIDAD | P71: =+AO21 -> 0
C73: UBIGEO
C74: COORDENADAS UTM - WGS84 Y ALTITUD | P74: (X): | U74: (Y): | Z74: ALTITUD (msnm):
C75: REGIÓN
B77: II. | C77: IDENTIFICACIÓN
B79: 2.1 | C79: DESCRIPCIÓN DE LA SITUACIÓN ACTUAL
D81: CONDICIONES | S81: DESCRIPCIÓN | AN81: SI | AO81: NO
C82: CONDICIONES INTERNAS EN EL ÁREA DEGRADADA | H82: ■ LOS RESIDUOS SÓLIDOS ESTÁN DISPUESTOS COMO MONTÍCULOS (APILADOS) Y ESTÁN DISPERSOS POR TODO EL ÁREA DEGRADADA
H83: ■ LOS RESIDUOS SÓLIDOS ESTÁN DISPUESTOS EN TODO EL ÁREA DEGRADADA (NO SE ENCUENTRAN APILADOS)
H84: ■ LOS RESIDUOS SÓLIDOS FUERON DISPUESTOS EN TRINCHERAS
H85: ■ LOS RESIDUOS SÓLIDOS ESTAN DISPUESTOS A CIELO ABIERTO
H86: ■ LOS RESIDUOS SÓLIDOS SON CUBIERTOS CON ALGÚN TIPO DE MATERIAL
H87: ■ LOS RESIDUOS SÓLIDOS FUERON COMPACTADOS A LO LARGO DEL TIEMPO EN QUE SE HA ESTADO DEPOSITANDO EN EL TERRENO
H88: ■ LOS RESIDUOS SÓLIDOS SON QUEMADOS PERMANENTEMENTE
H89: ■ EL ÁREA DEGRADADA POR RESIDUOS SÓLIDOS PRESENTA INFRAESTRUCTURAS PARA EL MANEJO DE LIXIVIADOS
H90: ■ EL ÁREA DEGRADADA POR RESIDUOS SÓLIDOS PRESENTA INFRAESTRUCTURAS PARA EL MANEJO DE GASES
H91: ■ EXISTE LA PRESENCIA DE RESIDUOS SÓLIDOS HUMEDECIDOS
H92: ■ LOS RESIDUOS SÓLIDOS DEPOSITADOS TIENEN UN ALTO CONTENIDO DE MATERIA ORGÁNICA
H93: ■ LOS LODOS GENERADOS EN PLANTAS DE TRATAMIENTO DE AGUAS RESIDUALES SON DISPUESTOS EN EL ÁREA DEGRADADA
H94: ■ SE ENCUENTRA PRESENCIA DE ANIMALES DE CRIANZA (GANADO PORCINO, AVES, ENTRE OTROS) EN EL ÁREA DEGRADADA.
H95: ■ SE ENCUENTRA PRESENCIA DE ROEDORES, MOSCAS U OTRO EN EL ÁREA DEGRADADA
C96: CONDICIONES DE LA GESTIÓN MUNICIPAL EN EL ÁREA DEGRADADA | H96: ■ EXISTE PERSONAL MUNICIPAL QUE REALIZA ALGUNA LABOR DE MANTENIMIENTO Y FUNCIONAMIENTO DEL ÁREA DEGRADADA
H97: ■ SE CUENTA CON MATERIAL INFORMATIVO (MANUAL U OTRO) PARA REALIZAR LABORES DE CONSERVACIÓN Y FUNCIONAMIENTO DEL ÁREA DEGRADADA
H98: ■ SE CUENTA CON MATERIAL INFORMATIVO (MANUAL U OTRO) SOBRE SEGURIDAD Y SALUD OCUPACIONAL PARA EL PERSONAL EN EL ÁREA DEGRADADA
H99: ■ SE REALIZA MONITOREO AMBIENTAL EN EL ÁREA DEGRADADA POR RR.SS (SUELO, AIRE, ETC)
C100: CONDICIONES DE LA POBLACIÓN INVOLUCRADA EN EL ÁREA DEGRADADA | H100: ■ LA POBLACIÓN SE ENCUENTRA A MENOS DE 500 METROS DE DISTANCIA DEL ÁREA DEGRADADA
H101: ■ LA POBLACIÓN CIRCUNDANTE PERCIBE OLORES DESAGRADABLES DEL ÁREA DEGRADADA POR RR.SS
H102: ■ LA POBLACIÓN TIENE CONOCIMIENTO DEL IMPACTO A LA SALUD Y AL AMBIENTE QUE OCASIONA LA PRESENCIA DE UN ÁREA DEGRADADA POR RR.SS
H103: ■ EXISTEN RECICLADORES EN EL ÁREA DEGRADADA
H104: ■ EXISTE POBLACIÓN ASENTADA EN EL ÁREA DEGRADADA
C105: CONDICIONES DEL ENTORNO DEL ÁREA DEGRADADA | H105: ■ EXISTE PRESENCIA DE GRANJAS DE PORCINO, AVÍCOLAS U OTROS A MENOS DE 500 METROS DEL ÁREA DEGRADADA.
H106: ■ EXISTE PRESENCIA DE TERRENOS AGRÍCOLAS A MENOS DE 500 METROS DEL ÁREA DEGRADADA.
H107: ■ ENTORNO QUE RODEA EL ÁREA DEGRADADA PRESENTA COBERTURA VEGETAL
H108: ■ PRESENCIA DE CANTERAS EN LA ZONA (GRAVA, ARCILLA,ETC)
C109: CONDICIONES GENERALES QUE AFECTAN EL MANEJO DEL ÁREA DEGRADADA | H109: ■ EL RELIEVE DONDE SE DEPOSITAN LOS RR.SS ES PLANO
H110: ■ EL RELIEVE DONDE SE DEPOSITAN LOS RR.SS PRESENTA UNA LEVE PENDIENTE
H111: ■ EN LA ZONA EXISTE PRESENCIA DE VIENTOS QUE DISPERSAN LOS RESIDUOS LIVIANOS (BOLSAS, PAPELES, ETC)
H112: ■ EL SUBSUELO DONDE SE DISPONEN LOS RESIDUOS SÓLIDOS ES PERMEABLE
H113: ■ LA PRECIPITACIÓN MEDIA ANUAL EN LA ZONA ES MENOR A 200 MM/AÑO
H114: ■ LA PRECIPITACIÓN MEDIA ANUAL EN LA ZONA ES MAYOR A 200 MM/AÑO
C116: A PARTIR DE LA INFORMACIÓN ANTERIOR, LAS CONDICIONES ACTUALES DE OPERACIÓN DEL ÁREA DEGRADADA POR RESIDUOS SÓLIDOS SON:
I118: ACTUALES CONDICIONES DE OPERACIÓN | X118: SI | Y118: NO | AD118: ESPECIFICAR DE SER EL CASO
C119: ■ EXISTE ALGUNA FORMA DE CONFINAMIENTO DE LOS RESIDUOS SÓLIDOS EN EL ÁREA DEGRADADA | Z119: Ejemplo: indicar el material de cobertura utilizado.
C120: ■ EXISTE UN SISTEMA DE MANEJO DE LIXIVIADOS EN EL ÁREA DEGRADADA | Z120: Ejemplo: indicar qué infraestructuras existen.
C121: ■ EXISTE UN SISTEMA DE MANEJO DE GASES EN EL ÁREA DEGRADADA | Z121: Ejemplo: indicar qué infraestructuras existen.
C122: ■ EXISTE UNA GESTIÓN MUNICIPAL EN EL ÁREA DEGRADADA | Z122: Ejemplo: indicar si personal está capacitado y/o existe un manual de O&M
C123: ■ EXISTE CONOCIMIENTO DE LA POBLACIÓN INVOLUCRADA SOBRE LOS RIESGOS DEL ÁREA DEGRADADA | Z123: Ejemplo: indicar los talleres realizados por la municipalidad u otra entidad.
C125: INDICADORES DE LA SITUACIÓN ACTUAL
L127: INDICADORES | Y127: VALOR ACTUAL
C128: 1. | D128: ÁREA DEGRADADA POR DISPOSICIÓN DE RESIDUOS SÓLIDOS
C129: 2. | D129: LIMITADA GESTIÓN MUNICIPAL EN EL ÁREA DEGRADADA
C130: 3. | D130: DESCONOCIMIENTO DE LA POBLACIÓN INVOLUCRADA SOBRE LOS RIESGOS DE UN ÁREA DEGRADADA POR RR.SS
B132: 2.2 | C132: PROBLEMA CENTRAL, CAUSAS Y EFECTOS
C134: PROBLEMA CENTRAL | H134: ="DEGRADACIÓN DEL ÁREA UTILIZADA PARA LA DISPOSICIÓN FINAL DE RESIDUOS SÓLIDOS EN LA LOCALIDAD DE "&AO21&" - DISTRITO DE "&AI21&" - PROVINCIA DE "&AC21&" - DEPARTAMENTO DE "&W21 -> DEGRADACIÓN DEL ÁREA UTILIZADA PARA LA DISPOSICIÓN FINAL DE RESIDUOS SÓLIDOS EN LA LOCALIDAD DE - DISTRITO DE - PROVINCIA DE - DEPARTAMENTO DE
H136: DIRECTAS | AD136: INDIRECTAS
I137: INADECUADO MANEJO DE RESIDUOS SÓLIDOS EN ÁREA DEGRADADA | W137: INAPROPIADAS TÉCNICAS DE CONFINAMIENTO
W138: INAPROPIADO MANEJO DE LIXIVIADOS
W139: INAPROPIADO MANEJO DE GASES
W140: OTRA CAUSA INDIRECTA (ESPECIFICAR)
D141: CAUSAS | I141: DEFICIENTE GESTIÓN MUNICIPAL EN EL ÁREA DEGRADADA | W141: INAPROPIADO SISTEMA DE MONITOREO AMBIENTAL
W142: PERSONAL MUNICIPAL INSUFICIENTEMENTE CAPACITADO
I143: INAPROPIADAS PRÁCTICAS DE LA POBLACIÓN INVOLUCRADA | W143: DESCONOCIMIENTO DE LOS RIESGOS E IMPACTOS A LA SALUD Y AL AMBIENTE DEL ÁREA DEGRADADA
W144: INAPROPIADAS PRÁCTICAS DE LOS RECICLADORES EN EL ÁREA DEGRADADA POR RR.SS
M146: DIRECTOS | AD146: INDIRECTOS
I147: CONTAMINACIÓN AMBIENTAL | W147: AFECTACIÓN DEL SUELO
W148: AFECTACIÓN DEL AIRE
W149: AFECTACIÓN DEL AGUA
W150: AFECTACIÓN DE LA FLORA
W151: AFECTACIÓN DE LA FAUNA
W152: OTRO EFECTO INDIRECTO (ESPECIFICAR)
D153: EFECTOS | I153: PROLIFERACIÓN DE VECTORES, ROEDORES, AVES Y OTROS | W153: RIESGOS A LA SALUD DE LAS PERSONAS
W154: AFECTACIÓN DE ANIMALES DE GRANJAS
W155: OTRO EFECTO INDIRECTO (ESPECIFICAR)
I156: PERSONAS EXPUESTAS A CONTRAER ENFERMEDADES | W156: RIESGOS A LA SALUD DE LA POBLACIÓN
W157: RIESGOS A LA SALUD DE LOS RECICLADORES
W158: OTRO EFECTO INDIRECTO (ESPECIFICAR)
C160: EFECTO FINAL | H160: ="DETERIORO DE LAS CONDICIONES AMBIENTALES EN EL ÁREA DE INFLUENCIA DE LA LOCALIDAD DE "&AO47&" - DISTRITO DE "&AI47&" - PROVINCIA DE "&AC47&" - DEPARTAMENTO DE "&W47 -> DETERIORO DE LAS CONDICIONES AMBIENTALES EN EL ÁREA DE INFLUENCIA DE LA LOCALIDAD DE - DISTRITO DE - PROVINCIA DE - DEPARTAMENTO DE
B162: 2.3 | C162: ANÁLISIS DE INVOLUCRADOS
C164: INVOLUCRADO | K164: NÚMERO | M164: ÁMBITO DEL PARTICIPANTE | S164: POSICIÓN | AA164: INTERESES | AP164: COMPROMISO
M165: (NACIONAL, REGIONAL, LOCAL, OTROS) | S165: (BENEFICIARIO, OPONENTE, PERJUDICADO, COOPERANTE)
B173: 2.4 | C173: OBJETIVO DEL PROYECTO
C175: OBJETIVO CENTRAL | H175: ="RECUPERACIÓN DEL ÁREA DEGRADADA POR LA DISPOSICIÓN INADECUADA DE RESIDUOS SÓLIDOS EN LA LOCALIDAD DE "&AO21&" - DISTRITO DE "&AI21&" - PROVINCIA DE "&AC21&" - DEPARTAMENTO DE "&W21 -> RECUPERACIÓN DEL ÁREA DEGRADADA POR LA DISPOSICIÓN INADECUADA DE RESIDUOS SÓLIDOS EN LA LOCALIDAD DE - DISTRITO DE - PROVINCIA DE - DEPARTAMENTO DE
C177: INDICADORES DE OBJETIVO
D179: INDICADORES | Y179: UM | AB179: META | AK179: FUENTE DE VERIFICACIÓN
C180: 1. | D180: ÁREA RECUPERADA POR DISPOSICIÓN DE RESIDUOS SÓLIDOS | X180: HECTÁREA | AA180: =+Y128 -> 0 | AE180: INFORME DEL ÁREA RESPONSABLE DE EJECUCIÓN
C181: 2. | D181: IMPLEMENTACIÓN DE GESTIÓN MUNICIPAL EN EL ÁREA DEGRADADA | X181: GLOBAL | AE181: INFORME DEL ÁREA RESPONSABLE DE RECUPERACIÓN DEL ÁREA DEGRADADA
C182: 3. | D182: CONOCIMIENTO DE LA POBLACIÓN INVOLUCRADA SOBRE LOS RIESGOS DE UN ÁREA DEGRADADA POR RR.SS | X182: GLOBAL | AE182: INFORMES DE EJECUCIÓN DE LOS TALLERES DE CAPACITACIÓN
C184: MEDIOS FUNDAMENTALES
C186: MEDIO FUNDAMENTAL 01: APROPIADAS TÉCNICAS DE CONFINAMIENTO DE RESIDUOS SÓLIDOS | T186: TRUE
C187: MEDIO FUNDAMENTAL 02: APROPIADO MANEJO DE LIXIVIADOS | T187: TRUE
C188: MEDIO FUNDAMENTAL 03: APROPIADO MANEJO DE GASES | T188: TRUE
C189: MEDIO FUNDAMENTAL 04: ADECUADA GESTIÓN TÉCNICA MUNICIPAL | T189: TRUE
C190: MEDIO FUNDAMENTAL 05: APROPIADAS PRÁCTICAS DE LA POBLACIÓN INVOLUCRADA | T190: TRUE
B192: 2.5 | C192: DESCRIPCIÓN DE LAS ALTERNATIVAS DE SOLUCIÓN AL PROBLEMA
C193: Incluir las acciones y/o medidas a considerar en la(s) alternativa(s)
E195: COMPONENTES | Q195: DESCRIPCIÓN ALTERNATIVA N° 01 | AI195: DESCRIPCIÓN ALTERNATIVA N° 02 | AW195: VER CRITERIOS
C196: =+IF(T186=TRUE,"CONFINAMIENTO DE RESIDUOS SÓLIDOS","") -> CONFINAMIENTO DE RESIDUOS SÓLIDOS
C197: =+IF(C196="CONFINAMIENTO DE RESIDUOS SÓLIDOS","■ ACONDICIONAMIENTO DE RR.SS","") -> ■ ACONDICIONAMIENTO DE RR.SS | S197: 1
C198: =+IF(C196="CONFINAMIENTO DE RESIDUOS SÓLIDOS","■ COLOCACIÓN DE COBERTURA FINAL","") -> ■ COLOCACIÓN DE COBERTURA FINAL | S198: 1
C199: =+IF(C196="CONFINAMIENTO DE RESIDUOS SÓLIDOS","■ COLOCACIÓN DE COBERTURA INTERMEDIA","") -> ■ COLOCACIÓN DE COBERTURA INTERMEDIA | S199: 1
C200: =+IF(C196="CONFINAMIENTO DE RESIDUOS SÓLIDOS","■ COLOCACIÓN DE COBERTURA BASE","") -> ■ COLOCACIÓN DE COBERTURA BASE | S200: 1
C201: =+IF(C196="CONFINAMIENTO DE RESIDUOS SÓLIDOS","■ CONSTRUCCIÓN DE INFRAESTRUCTURAS COMPLEMENTARIAS","") -> ■ CONSTRUCCIÓN DE INFRAESTRUCTURAS COMPLEMENTARIAS | S201: 1
C202: =+IF(T187=TRUE,"MANEJO DE LIXIVIADOS","") -> MANEJO DE LIXIVIADOS
C203: =+IF(C202="MANEJO DE LIXIVIADOS","■ CONSTRUCCIÓN DE INFRAESTRUCTURA","") -> ■ CONSTRUCCIÓN DE INFRAESTRUCTURA | S203: 1
C204: =+IF(T188=TRUE,"MANEJO DE GASES","") -> MANEJO DE GASES
C205: =+IF(C204="MANEJO DE GASES","■ CONSTRUCCIÓN DE INFRAESTRUCTURA","") -> ■ CONSTRUCCIÓN DE INFRAESTRUCTURA | S205: 1
C206: =+IF(T189=TRUE,"GESTIÓN TÉCNICA MUNICIPAL","") -> GESTIÓN TÉCNICA MUNICIPAL
C207: =+IF(C206="GESTIÓN TÉCNICA MUNICIPAL","■ DESARROLLO DE CAPACIDADES","") -> ■ DESARROLLO DE CAPACIDADES | S207: 1
C208: =+IF(T190=TRUE,"PRÁCTICAS DE LA POBLACIÓN INVOLUCRADA","") -> PRÁCTICAS DE LA POBLACIÓN INVOLUCRADA
C209: =+IF(C208="PRÁCTICAS DE LA POBLACIÓN INVOLUCRADA","■ CAPACITACIÓN","") -> ■ CAPACITACIÓN | S209: 1
C211: ¿EL PROYECTO PRESENTA ALTERNATIVA ÚNICA? | N211: 2
B213: 2.6 | C213: REQUERIMIENTOS INSTITUCIONALES, NORMATIVOS Y TÉCNICOS
C214: (Referido a los aspectos técnicos y regulatorios que el proyecto deberá cumplir)
G216: REQUERIMIENTOS INSTITUCIONALES Y NORMATIVOS | AA216: FASE FORMULACIÓN | AS216: FASE DE EJECUCIÓN
C217: SANEAMIENTO FÍSICO LEGAL | H217: TERRENO DE PRIVADO O COMUNIDAD CAMPESINA | Q217: FALSE | R217: =+IF(Q217=FALSE,"","CARGO DE INICIO DE TRÁMITE DE INSCRIPCIÓN ANTE SUNARP (COMPRA-VENTA, CESIÓN EN USO, DONACIÓN, TRANSFERENCIA U OTRO MECANISMO LEGAL)") ->  | AQ217: =+IF(R217="","","TERRENO REGISTRADO EN SUNARP A FAVOR DEL MUNICIPIO") -> 
H218: TERRENO DE ENTIDAD PÚBLICA (SBN, MINISTERIO, ETC) | Q218: FALSE | R218: =+IF(Q218=FALSE,"","PARTIDA REGISTRAL ACTUALIZADA Y SOLICITUD DE TRANSFERENCIA DEL TERRENO A FAVOR DE LA MUNICIPALIDAD") ->  | AQ218: =+IF(R218="","","PARTIDA REGISTRAL ACTUALIZADA (INCLUYE TRANSFERENCIA)") -> 
H219: TERRENO DE PROPIEDAD DE LA MUNICIPALIDAD | Q219: FALSE | R219: =+IF(Q219=FALSE,"","PARTIDA REGISTRAL ACTUALIZADA") ->  | AQ219: =+IF(R219="","","PARTIDA REGISTRAL ACTUALIZADA") -> 
C220: CONVENIO ENTRE GOBIERNO LOCAL COMPETENTE CON GOB. NACIONAL O REGIONAL | Q220: FALSE | R220: =+IF(Q220=FALSE,"","CONVENIO DE FORMULACIÓN SUSCRITO ENTRE EL GL COMPETENTE Y GN O GR") ->  | AQ220: =+IF(R220="","","CONVENIO DE EJECUCIÓN ENTRE GL COMPETENTE Y GN O GR") -> 
C221: ORDENANZA MUNICIPAL CUMPLIMIENTO DE ART. 19 Y 90 DEL REGLAMENTO DE LGRS | Q221: FALSE | R221: =+IF(Q221=FALSE,"","PROPUESTA DE ORDENANZA MUNICIPAL") ->  | AQ221: =+IF(R221="","","ORDENANZA MUNICIPAL") -> 
C222: OTRO (ESPECIFICAR):
C224: N° | G224: REQUERIMIENTOS TÉCNICOS PARA LA FASE DE FORMULACIÓN
C225: 1 | D225: PROSPECCIÓN A CIELO ABIERTO (CALICATA)
C226: 2 | D226: SONDAJE ELECTRICO VERTICAL
C227: 3 | D227: TOMOGRAFÍA ELÉCTRICA
C228: 4 | D228: ESTUDIO DE CANTERAS Y/O MATERIAL PARA EL CONFINAMIENTO
C229: 5 | D229: ESTUDIO TOPOGRÁFICO
B231: III. | C231: FORMULACIÓN Y EVALUACIÓN
C233: Si en el proyecto se presenta más de una alternativa de solución (ver 2.5), se deberá realizar el análisis y la evaluación social de ambas alternativas (ir a pestañas Inversión y VAC). Para el presente capítulo III la información deberá corresponder únicamente a la alternativa seleccionada.
B235: 3.1 | C235: HORIZONTE DE EVALUACIÓN
C237: PERIODO DE EJECUCIÓN: | P237: PERIODO DE FUNCIONAMIENTO: | W237: 10 | AD237: HORIZONTE DE EVALUACIÓN: | AK237: =IF(I237>=12,(I237/12+W237),(""&W237&"AÑOS + "&I237&" MESES")) -> 10AÑOS + MESES
C239: CONTRIBUCIÓN DEL PROYECTO DE INVERSIÓN AL CIERRE DE BRECHA
C241: BIEN CON BRECHA | K241: U.M. | M241: AÑOS
M242: 1 | Q242: 2 | U242: 3 | Y242: 4 | AC242: 5 | AG242: 6 | AK242: 7 | AO242: 8 | AS242: 9 | AW242: 10
C243: ÁREAS DEGRADADAS POR RESIDUOS SÓLIDOS | K243: HA | M243: =+AA180 -> 0 | Q243: =+M243 -> 0 | U243: =+Q243 -> 0 | Y243: =+U243 -> 0 | AC243: =+Y243 -> 0 | AG243: =+AC243 -> 0 | AK243: =+AG243 -> 0 | AO243: =+AK243 -> 0 | AS243: =+AO243 -> 0 | AW243: =+AS243 -> 0
B245: 3.2 | C245: ANÁLISIS TÉCNICO
C247: N° | D247: COMPONENTE | J247: ACCIONES | P247: ANÁLISIS TÉCNICO | T247: ÍTEM | X247: DETALLE
C248: 1 | D248: =+C196 -> CONFINAMIENTO DE RESIDUOS SÓLIDOS | J248: =+C197 -> ■ ACONDICIONAMIENTO DE RR.SS | P248: =+IF(J248="","","LOCALIZACIÓN") -> LOCALIZACIÓN | T248: =+IF(P248="","","INFRAESTRUCTURA") -> INFRAESTRUCTURA | X248: =IF(T248="","",IF(S197=1,"",VLOOKUP(S197,BASE!S4:T7,2,FALSE))) -> 
X249: =MID(X248,1,40) ->  | AE249: =+IF(X249="","",": MOVIMIENTO DE LOS RR.SS") -> 
J250: =+C198 -> ■ COLOCACIÓN DE COBERTURA FINAL | P250: =+IF(J250="","","TECNOLOGÍA") -> TECNOLOGÍA | T250: =+IF(P250="","","INFRAESTRUCTURA") -> INFRAESTRUCTURA | X250: =IF(T250="","",IF(S198=1,"",VLOOKUP(S198,BASE!V4:W8,2,FALSE))) -> 
X251: =IF(X250="","",IF(X250="CAPA DE COBERTURA",MID(X250,1,18),IF(X250="CAPA DE TIERRA VEGETAL Y CAPA DE COBERTURA",MID(X250,1,22)))) ->  | AE251: =+IF(X251="","",IF(X251="CAPA DE TIERRA VEGETAL",": INSTALACIÓN DE TIERRA DE CHACRA Y VEGETACIÓN DE LA ZONA",": INSTALACIÓN DE ARENA, LIMO, ARENO LIMOSO, LIMO ARCILLOSO U OTRO")) -> 
X252: =IF(X250="","",IF(X250="CAPA DE COBERTURA","",IF(X250="CAPA DE TIERRA VEGETAL Y CAPA DE COBERTURA",MID(X250,26,100)))) ->  | AE252: =+IF(X252="","",IF(X252="CAPA VEGETAL",": INSTALACIÓN DE TIERRA DE CHACRA Y VEGETACIÓN DE LA ZONA",": INSTALACIÓN DE ARENA, LIMO, ARENO LIMOSO, LIMO ARCILLOSO U OTRO")) -> 
J253: =+C199 -> ■ COLOCACIÓN DE COBERTURA INTERMEDIA | P253: =+IF(J253="","","TAMAÑO") -> TAMAÑO | T253: =+IF(P253="","","INFRAESTRUCTURA") -> INFRAESTRUCTURA | X253: =IF(T253="","",IF(S199=1,"",VLOOKUP(S199,BASE!Y4:Z6,2,FALSE))) -> 
X254: =IF(X253="","",IF(X253="CAPA DRENANTE DE LLUVIA Y CAPA IMPERMEABLE",MID(X253,1,23),IF(X253="CAPA DRENANTE DE LLUVIA, CAPA IMPERMEABLE Y CAPA DRENANTE DE GAS",MID(X253,1,23)))) ->  | AE254: =+IF(X254="","",": INSTALACIÓN DE ARENA O GRAVA") -> 
X255: =IF(X253="","",IF(X253="CAPA DRENANTE DE LLUVIA Y CAPA IMPERMEABLE",MID(X253,27,16),IF(X253="CAPA DRENANTE DE LLUVIA, CAPA IMPERMEABLE Y CAPA DRENANTE DE GAS",MID(X253,26,16)))) ->  | AE255: =+IF(X255="","",": INSTALACIÓN DE ARCILLA, BENTONITA O GEOMEMBRANA") -> 
X256: =IF(X253="","",IF(X253="CAPA DRENANTE DE LLUVIA Y CAPA IMPERMEABLE","",IF(X253="CAPA DRENANTE DE LLUVIA, CAPA IMPERMEABLE Y CAPA DRENANTE DE GAS",MID(X253,45,23)))) ->  | AE256: =+IF(X256="","",": INSTALACIÓN DE ARENA O GRAVA") -> 
J257: =+C200 -> ■ COLOCACIÓN DE COBERTURA BASE | P257: =+IF(J257="","","TAMAÑO") -> TAMAÑO | T257: =+IF(P257="","","INFRAESTRUCTURA") -> INFRAESTRUCTURA | X257: =IF(T257="","",IF(S200=1,"",VLOOKUP(S200,BASE!AB4:AC5,2,FALSE))) -> 
X258: =IF(X257="","",MID(X257,1,23)) ->  | AE258: =+IF(X258="","",": INSTALACIÓN DE ARENA, LIMO U OTRO") -> 
J259: =+C201 -> ■ CONSTRUCCIÓN DE INFRAESTRUCTURAS COMPLEMENTARIAS | P259: =+IF(J259="","","TAMAÑO") -> TAMAÑO | T259: =+IF(P259="","","INFRAESTRUCTURA") -> INFRAESTRUCTURA | X259: =IF(T259="","",IF(S201=1,"",VLOOKUP(S201,BASE!P4:Q19,2,FALSE))) -> 
X260: =IF(X259="","",IF(X259="VÍAS DE ACCESO",X259,IF(X259="CANAL PLUVIAL",X259,IF(X259="CERCO PERIMÉTRICO",X259,IF(X259="OTRA INFRAESTRUCTURA",X259,IF(X259="VÍAS DE ACCESO Y CANAL PLUVIAL",MID(X259,1,14),IF(X259="VÍAS DE ACCESO Y CERCO PERIMÉTRICO",MID(X259,1,14),IF(X259="VÍAS DE ACCESO Y OTRA INFRAESTRUCTURA",MID(X259,1,14),IF(X259="CANAL PLUVIAL Y CERCO PERIMÉTRICO",MID(X259,1,13),IF(X259="CANAL PLUVIAL Y OTRA INFRAESTRUCTURA",MID(X259,1,13),IF(X259="CERCO PERIMÉTRICO Y OTRA INFRAESTRUCTURA",MID(X259,1,17),IF(X259="VÍAS DE ACCESO, CANAL PLUVIAL Y CERCO PERIMÉTRICO",MID(X259,1,14),IF(X259="VÍAS DE ACCESO, CANAL PLUVIAL Y OTRA INFRAESTRUCTURA",MID(X259,1,14),IF(X259="VÍAS DE ACCESO, CERCO PERIMÉTRICO Y OTRA INFRAESTRUCTURA",MID(X259,1,14),IF(X259="CANAL PLUVIAL, CERCO PERIMÉTRICO Y OTRA INFRAESTRUCTURA",MID(X259,1,13),IF(X259="VÍAS DE ACCESO, CANAL PLUVIAL, CERCO PERIMÉTRICO Y OTRA INFRAESTRUCTURA",MID(X259,1,14))))))))))))))))) ->  | AE260: =+IF(X260="","",IF(X260="VÍAS DE ACCESO",": TERRAPLENADO, CAPA DE RODADURA, REFINE Y NIVELACIÓN",IF(X260="CANAL PLUVIAL",": CONSTRUCCIÓN DE CUNETAS TRIANGULARES Y/O CUNETAS TRAPEZOIDALES",IF(X260="CERCO PERIMÉTRICO",": INSTALACIÓN DE CERCO CON PALO DE LA ZONA Y ALAMBRE DE PUAS E INSTALACIÓN DE PUERTA EN CERCO",IF(X260="OTRA INFRAESTRUCTURA",""))))) -> 
X261: =IF(X259="","",IF(X259="VÍAS DE ACCESO","",IF(X259="CANAL PLUVIAL","",IF(X259="CERCO PERIMÉTRICO","",IF(X259="OTRA INFRAESTRUCTURA","",IF(X259="VÍAS DE ACCESO Y CANAL PLUVIAL",MID(X259,18,15),IF(X259="VÍAS DE ACCESO Y CERCO PERIMÉTRICO",MID(X259,18,21),IF(X259="VÍAS DE ACCESO Y OTRA INFRAESTRUCTURA",MID(X259,18,20),IF(X259="CANAL PLUVIAL Y CERCO PERIMÉTRICO",MID(X259,17,20),IF(X259="CANAL PLUVIAL Y OTRA INFRAESTRUCTURA",MID(X259,17,21),IF(X259="CERCO PERIMÉTRICO Y OTRA INFRAESTRUCTURA",MID(X259,21,20),IF(X259="VÍAS DE ACCESO, CANAL PLUVIAL Y CERCO PERIMÉTRICO",MID(X259,17,13),IF(X259="VÍAS DE ACCESO, CANAL PLUVIAL Y OTRA INFRAESTRUCTURA",MID(X259,17,13),IF(X259="VÍAS DE ACCESO, CERCO PERIMÉTRICO Y OTRA INFRAESTRUCTURA",MID(X259,17,17),IF(X259="CANAL PLUVIAL, CERCO PERIMÉTRICO Y OTRA INFRAESTRUCTURA",MID(X259,16,17),IF(X259="VÍAS DE ACCESO, CANAL PLUVIAL, CERCO PERIMÉTRICO Y OTRA INFRAESTRUCTURA",MID(X259,17,13))))))))))))))))) ->  | AE261: =+IF(X261="","",IF(X261="VÍAS DE ACCESO",":TERRAPLENADO, CAPA DE RODADURA, REFINE Y NIVELACIÓN",IF(X261="CANAL PLUVIAL",": CONSTRUCCIÓN DE CUNETAS TRIANGULARES Y/O CUNETAS TRAPEZOIDALES",IF(X261="CERCO PERIMÉTRICO",": INSTALACIÓN DE CERCO CON PALO DE LA ZONA Y ALAMBRE DE PUAS E INSTALACIÓN DE PUERTA EN CERCO",IF(X261="OTRA INFRAESTRUCTURA",""))))) -> 
X262: =IF(X259="","",IF(X259="VÍAS DE ACCESO","",IF(X259="CANAL PLUVIAL","",IF(X259="CERCO PERIMÉTRICO","",IF(X259="OTRA INFRAESTRUCTURA","",IF(X259="VÍAS DE ACCESO Y CANAL PLUVIAL","",IF(X259="VÍAS DE ACCESO Y CERCO PERIMÉTRICO","",IF(X259="VÍAS DE ACCESO Y OTRA INFRAESTRUCTURA","",IF(X259="CANAL PLUVIAL Y CERCO PERIMÉTRICO","",IF(X259="CANAL PLUVIAL Y OTRA INFRAESTRUCTURA","",IF(X259="CERCO PERIMÉTRICO Y OTRA INFRAESTRUCTURA","",IF(X259="VÍAS DE ACCESO, CANAL PLUVIAL Y CERCO PERIMÉTRICO",MID(X259,33,20),IF(X259="VÍAS DE ACCESO, CANAL PLUVIAL Y OTRA INFRAESTRUCTURA",MID(X259,33,20),IF(X259="VÍAS DE ACCESO, CERCO PERIMÉTRICO Y OTRA INFRAESTRUCTURA",MID(X259,37,20),IF(X259="CANAL PLUVIAL, CERCO PERIMÉTRICO Y OTRA INFRAESTRUCTURA",MID(X259,36,20),IF(X259="VÍAS DE ACCESO, CANAL PLUVIAL, CERCO PERIMÉTRICO Y OTRA INFRAESTRUCTURA",MID(X259,32,17))))))))))))))))) ->  | AE262: =+IF(X262="","",IF(X262="VÍAS DE ACCESO",":TERRAPLENADO, CAPA DE RODADURA, REFINE Y NIVELACIÓN",IF(X262="CANAL PLUVIAL","CONSTRUCCIÓN DE CUNETAS TRIANGULARES Y/O CUNETAS TRAPEZOIDALES",IF(X262="CERCO PERIMÉTRICO",": INSTALACIÓN DE CERCO CON PALO DE LA ZONA Y ALAMBRE DE PUAS E INSTALACIÓN DE PUERTA EN CERCO",IF(X262="OTRA INFRAESTRUCTURA",""))))) -> 
X263: =IF(X259="","",IF(X259="VÍAS DE ACCESO","",IF(X259="CANAL PLUVIAL","",IF(X259="CERCO PERIMÉTRICO","",IF(X259="OTRA INFRAESTRUCTURA","",IF(X259="VÍAS DE ACCESO Y CANAL PLUVIAL","",IF(X259="VÍAS DE ACCESO Y CERCO PERIMÉTRICO","",IF(X259="VÍAS DE ACCESO Y OTRA INFRAESTRUCTURA","",IF(X259="CANAL PLUVIAL Y CERCO PERIMÉTRICO","",IF(X259="CANAL PLUVIAL Y OTRA INFRAESTRUCTURA","",IF(X259="CERCO PERIMÉTRICO Y OTRA INFRAESTRUCTURA","",IF(X259="VÍAS DE ACCESO, CANAL PLUVIAL Y CERCO PERIMÉTRICO","",IF(X259="VÍAS DE ACCESO, CANAL PLUVIAL Y OTRA INFRAESTRUCTURA","",IF(X259="VÍAS DE ACCESO, CERCO PERIMÉTRICO Y OTRA INFRAESTRUCTURA","",IF(X259="CANAL PLUVIAL, CERCO PERIMÉTRICO Y OTRA INFRAESTRUCTURA","",IF(X259="VÍAS DE ACCESO, CANAL PLUVIAL, CERCO PERIMÉTRICO Y OTRA INFRAESTRUCTURA",MID(X259,52,20))))))))))))))))) -> 
C264: 2 | D264: =+C202 -> MANEJO DE LIXIVIADOS | J264: =+C203 -> ■ CONSTRUCCIÓN DE INFRAESTRUCTURA | P264: =+IF(J264="","","TAMAÑO") -> TAMAÑO | T264: =+IF(P264="","","INFRAESTRUCTURA") -> INFRAESTRUCTURA | X264: =IF(T264="","",IF(S203=1,"",VLOOKUP(S203,BASE!G4:H8,2,FALSE))) -> 
X265: =IF(X264="","",IF(X264="POZO DE MONITOREO",MID(X264,1,18),IF(X264="POZO DE EXTRACCIÓN Y POZO DE MONITOREO",MID(X264,1,18),IF(X264="DRENES, POZA DE ALMACENAMIENTO Y POZO DE MONITOREO",MID(X264,1,6),IF(X264="DRENES, POZO DE EXTRACCIÓN, POZA DE ALMACENAMIENTO Y POZO DE MONITOREO",MID(X264,1,6)))))) ->  | AE265: =+IF(X265="","",IF(X265="DRENES",": EXCAVACIÓN DE MATERIAL, EMPEDRADO DE DRENES (MATERIAL GRANULAR), TUBERÍA PERFORADA, GEOTEXTIL",": PERFORACIÓN DE POZO, RELLENO CON GRAVA, TUBERÍA PERFORADA Y LISA, BENTONITA,TAPA METÁLICA, BASE DE CONCRETO")) -> 
X266: =IF(X264="","",IF(X264="POZO DE MONITOREO","",IF(X264="POZO DE EXTRACCIÓN Y POZO DE MONITOREO",MID(X264,22,50),IF(X264="DRENES Y POZO DE EXTRACCIÓN",MID(X264,10,19),IF(X264="DRENES Y POZA DE ALMACENAMIENTO",MID(X264,10,24),IF(X264="DRENES, POZA DE ALMACENAMIENTO Y POZO DE MONITOREO",MID(X264,9,22),IF(X264="DRENES, POZO DE EXTRACCIÓN, POZA DE ALMACENAMIENTO Y POZO DE MONITOREO",MID(X264,9,18)))))))) ->  | AE266: =+IF(X266="","",IF(X266="DRENES",": EXCAVACIÓN DE MATERIAL, EMPEDRADO DE DRENES (MATERIAL GRANULAR), TUBERÍA PERFORADA, GEOTEXTIL",IF(X266="POZO DE EXTRACCIÓN",": PERFORACIÓN DE POZO, RELLENO CON GRAVA, TUBERÍA PERFORADA Y LISA, BENTONITA,TAPA METÁLICA, BASE DE CONCRETO",IF(X266="POZO DE MONITOREO",": PERFORACIÓN DE POZO, RELLENO CON GRAVA, TUBERÍA PERFORADA Y LISA, BENTONITA,TAPA METÁLICA, BASE DE CONCRETO", IF(X266="POZA DE ALMACENAMIENTO",": GEOMEMBRANA, TABLONES DE MADERA, CONCRETO (EXCAVACIÓN DE POZA); O DEPÓSITO PEAD"))))) -> 
X267: =IF(X264="","",IF(X264="POZO DE MONITOREO","",IF(X264="POZO DE EXTRACCIÓN Y POZO DE MONITOREO","",IF(X264="DRENES Y POZO DE EXTRACCIÓN","",IF(X264="DRENES Y POZA DE ALMACENAMIENTO","",IF(X264="DRENES, POZA DE ALMACENAMIENTO Y POZO DE MONITOREO",MID(X264,34,25),IF(X264="DRENES, POZO DE EXTRACCIÓN, POZA DE ALMACENAMIENTO Y POZO DE MONITOREO",MID(X264,29,22)))))))) ->  | AE267: =+IF(X267="","",IF(X267="DRENES",": EXCAVACIÓN DE MATERIAL, EMPEDRADO DE DRENES (MATERIAL GRANULAR), TUBERÍA PERFORADA, GEOTEXTIL",IF(X267="POZO DE EXTRACCIÓN",": PERFORACIÓN DE POZO, RELLENO CON GRAVA, TUBERÍA PERFORADA Y LISA, BENTONITA,TAPA METÁLICA, BASE DE CONCRETO",IF(X267="POZO DE MONITOREO",": PERFORACIÓN DE POZO, RELLENO CON GRAVA, TUBERÍA PERFORADA Y LISA, BENTONITA,TAPA METÁLICA, BASE DE CONCRETO",IF(X267="POZA DE ALMACENAMIENTO",": GEOMEMBRANA, TABLONES DE MADERA, CONCRETO (EXCAVACIÓN DE POZA); O DEPÓSITO PEAD"))))) -> 
X268: =IF(X264="","",IF(X264="POZO DE MONITOREO","",IF(X264="POZO DE EXTRACCIÓN Y POZO DE MONITOREO","",IF(X264="DRENES Y POZO DE EXTRACCIÓN","",IF(X264="DRENES Y POZA DE ALMACENAMIENTO","",IF(X264="DRENES, POZA DE ALMACENAMIENTO Y POZO DE MONITOREO","",IF(X264="DRENES, POZO DE EXTRACCIÓN, POZA DE ALMACENAMIENTO Y POZO DE MONITOREO",MID(X264,54,23)))))))) ->  | AE268: =+IF(X268="","",IF(X268="DRENES",": EXCAVACIÓN DE MATERIAL, EMPEDRADO DE DRENES (MATERIAL GRANULAR), TUBERÍA PERFORADA, GEOTEXTIL",IF(X268="POZO DE EXTRACCIÓN",": PERFORACIÓN DE POZO, RELLENO CON GRAVA, TUBERÍA PERFORADA Y LISA, BENTONITA,TAPA METÁLICA, BASE DE CONCRETO",IF(X268="POZA DE ALMACENAMIENTO",": GEOMEMBRANA, TABLONES DE MADERA, CONCRETO (EXCAVACIÓN DE POZA); O DEPÓSITO PEAD",IF(X268="POZO DE MONITOREO",": PERFORACIÓN DE POZO, RELLENO CON GRAVA, TUBERÍA PERFORADA Y LISA, BENTONITA, TAPA METÁLICA, BASE DE CONCRETO"))))) -> 
... 177 more rows

Sheet BASE (hidden)
G4: 1 | J4: 1 | M4: 1 | P4: 1 | S4: 1 | V4: 1 | Y4: 1 | AB4: 1 | AE4: 1 | AH4: 1 | AK4: 1 | AN4: 1 | AQ4: 1 | AT4: 1
B5: SI | C5: ARCILLA | D5: ARENA | E5: COBERTURA VEGETAL | G5: 2 | H5: POZO DE MONITOREO | J5: 2 | K5: ADMINISTRACIÓN DIRECTA | M5: 2 | N5: CHIMENEA | P5: 2 | Q5: VÍAS DE ACCESO | S5: 2 | T5: NO SE ACUMULAN LOS RR.SS | V5: 2 | W5: CAPA DE COBERTURA | Y5: 2 | Z5: CAPA DRENANTE DE LLUVIA Y CAPA IMPERMEABLE | AB5: 2 | AC5: CAPA DE REGULARIZACIÓN | AE5: 2 | AF5: SANEAMIENTO FÍSICO LEGAL DE TERRENO DE PRIVADO O COMUNIDAD CAMPESINA | AH5: 2 | AI5: COSTA | AK5: 2 | AL5: NACIONAL | AN5: 2 | AO5: BENEFICIARIO | AQ5: 2 | AR5: SI | AT5: 2 | AU5: MES
B6: NO | C6: BENTONITA | D6: LIMO | E6: CAPA DRENANTE DE GAS (CUANDO BIOGAS NO DESPRECIABLE) | G6: 3 | H6: POZO DE EXTRACCIÓN Y POZO DE MONITOREO | J6: 3 | K6: ADMINISTRACIÓN INDIRECTA - POR CONTRATA | M6: 3 | N6: DRENES Y CHIMENEA | P6: 3 | Q6: CANAL PLUVIAL | S6: 3 | T6: ACUMULACIÓN DE RR.SS EN UN SÓLO SECTOR | V6: 3 | W6: CAPA DE TIERRA VEGETAL Y CAPA DE COBERTURA | Y6: 3 | Z6: CAPA DRENANTE DE LLUVIA, CAPA IMPERMEABLE Y CAPA DRENANTE DE GAS | AE6: 3 | AF6: SANEAMIENTO FÍSICO LEGAL DE TERRENO DE ENTIDAD PÚBLICA (SBN, MINISTERIO, ETC) | AH6: 3 | AI6: SIERRA | AK6: 3 | AL6: REGIONAL | AN6: 3 | AO6: OPONENTE | AQ6: 3 | AR6: NO | AT6: 3 | AU6: BIMESTRE
B7: PARCIALMENTE | C7: GEOMEMBRANA | D7: LIMOARCILLOSO | E7: CAPA DRENANTE DE LLUVIA (CON CAPA IMPERMEABLE) | G7: 4 | H7: DRENES, POZA DE ALMACENAMIENTO Y POZO DE MONITOREO | J7: 4 | K7: ADMINISTRACIÓN INDIRECTA - ASOCIACIÓN PÚBLICO PRIVADA (APP) | P7: 4 | Q7: CERCO PERIMÉTRICO | S7: 4 | T7: ACUMULACIÓN DE RR.SS POR SECTORES | AE7: 4 | AF7: SANEAMIENTO FÍSICO LEGAL DE TERRENO DE PROPIEDAD DE LA MUNICIPALIDAD | AH7: 4 | AI7: SELVA | AK7: 4 | AL7: LOCAL | AN7: 4 | AO7: PERJUDICADO | AT7: 4 | AU7: TRIMESTRE
C8: OTROS | D8: OTROS | E8: CAPA DE REGULARIZACIÓN (CON CAPA IMPERMEABLE) | G8: 5 | H8: DRENES, POZO DE EXTRACCIÓN, POZA DE ALMACENAMIENTO Y POZO DE MONITOREO | J8: 5 | K8: ADMINISTRACIÓN INDIRECTA - NÚCLEO EJECUTOR | P8: 5 | Q8: OTRA INFRAESTRUCTURA | AK8: 5 | AL8: OTROS | AN8: 5 | AO8: COOPERANTE | AT8: 5 | AU8: SEMESTRE
J9: 6 | K9: ADMINISTRACIÓN INDIRECTA - OBRAS POR IMPUESTOS | P9: 6 | Q9: VÍAS DE ACCESO Y CANAL PLUVIAL
J10: 7 | K10: ADMINISTRACIÓN INDIRECTA - CONCURSO OFERTA | P10: 7 | Q10: VÍAS DE ACCESO Y CERCO PERIMÉTRICO
B11: ALTO | D11: BAJA | P11: 8 | Q11: VÍAS DE ACCESO Y OTRA INFRAESTRUCTURA
B12: BAJO | D12: MEDIA | G12: 1 | J12: 1 | P12: 9 | Q12: CANAL PLUVIAL Y CERCO PERIMÉTRICO
D13: ALTA | G13: 2 | H13: ELABORACIÓN DE MANUAL OPERATIVO Y PROGRAMA DE MONITOREO AMBIENTAL | J13: 2 | K13: CAPACITACIÓN A LA POBLACIÓN A TRAVES DE CAMPAÑAS INFORMATIVAS | P13: 10 | Q13: CANAL PLUVIAL Y OTRA INFRAESTRUCTURA
G14: 3 | H14: CAPACITACIÓN DEL PERSONAL MUNICIPAL | J14: 3 | K14: CAPACITACIÓN A LOS RECICLADORES | P14: 11 | Q14: CERCO PERIMÉTRICO Y OTRA INFRAESTRUCTURA
G15: 4 | H15: ELABORACIÓN DE MANUAL OPERATIVO Y PROGRAMA DE MONITOREO AMBIENTAL Y CAPACITACIÓN DEL PERSONAL MUNICIPAL | J15: 4 | K15: CAPACITACIÓN A LA POBLACIÓN A TRAVES DE CAMPAÑAS INFORMATIVAS Y CAPACITACIÓN A LOS RECICLADORES | P15: 12 | Q15: VÍAS DE ACCESO, CANAL PLUVIAL Y CERCO PERIMÉTRICO
P16: 13 | Q16: VÍAS DE ACCESO, CANAL PLUVIAL Y OTRA INFRAESTRUCTURA
D17: BAJO | J17: 1 | P17: 14 | Q17: VÍAS DE ACCESO, CERCO PERIMÉTRICO Y OTRA INFRAESTRUCTURA
D18: MODERADO | J18: 2 | K18: RECURSOS ORDINARIOS | P18: 15 | Q18: CANAL PLUVIAL, CERCO PERIMÉTRICO Y OTRA INFRAESTRUCTURA
D19: MAYOR | J19: 3 | K19: RECURSOS DIRECTAMENTE RECAUDADOS | P19: 16 | Q19: VÍAS DE ACCESO, CANAL PLUVIAL, CERCO PERIMÉTRICO Y OTRA INFRAESTRUCTURA
J20: 4 | K20: RECURSOS POR OPERACIONES OFICIALES DE CREDITO
J21: 5 | K21: DONACIONES Y TRANSFERENCIAS
J22: 6 | K22: RECURSOS DETERMINADOS

Sheet CONDICIONES ESTANDAR
C2: PROYECTOS DE INVERSIÓN ESTÁNDAR - RECUPERACIÓN DE ÁREAS DEGRADADAS POR RESIDUOS SÓLIDOS

Sheet ESTUDIOS BÁSICOS
B2: ESTUDIOS BÁSICOS EN LOS PROYECTOS DE RECUPERACIÓN DE ÁREAS DEGRADADAS
Y50: CRITERIOS PARA DETERMINAR EL NUMERO DE PUNTOS PARA SEVs

Sheet CRITERIOS CONFINAMIENTO
B2: CRITERIOS TÉCNICOS: COMPONENTE CONFINAMIENTO | Y2: COBERTURAS PARA CONFINAMIENTO
AD4: TIPO DE CAPA POR FUNCIÓN | AE4: MATERIALES | AF4: ESPESOR (cm) | AG4: PRECIPITACIÓN MEDIA ANUAL
AG5: < 200 mm/año | AH5: > 200 mm/año
X6: COBERTURA FINAL | AD6: CAPA DE TIERRA VEGETAL | AE6: TIERRA DE CHACRA Y VEGETACIÓN DE LA ZONA | AF6: 20 cm | AG6: DEPENDE | AH6: DEPENDE
AD10: CAPA DE COBERTURA | AE10: LIMO, ARENO LIMOSO, ARENO ARCILLOSO, LIMO ARCILLOSO U OTRO | AF10: 30 cm | AG10: SI | AH10: SI
X14: COBERTURA INTERMEDIA | AD14: CAPA DRENANTE DE LLUVIA | AE14: ARENA O GRAVA | AF14: 20 cm | AG14: NO | AH14: SI
AD18: CAPA IMPERMEABLE | AE18: BENTONITA, GEOMEMBRANA O ARCILLA | AF18: 10 cm (ARCILLA) | AG18: NO | AH18: SI
AD20: CAPA DRENANTE DE GAS | AE20: ARENA O GRAVA | AF20: 20 cm | AG20: NO | AH20: DEPENDE
X24: COBERTURA BASE | AD24: CAPA DE REGULARIZACIÓN | AE24: LIMO, ARENA U OTRO | AF24: VARIABLE | AG24: SI | AH24: SI
X26: RESIDUO SÓLIDO

Sheet CRITERIOS MANEJO LIXIVIADOS
B2: CRITERIOS TÉCNICOS COMPONENTE MANEJO DE LIXIVIADOS
B4: SI EL ÁREA DEGRADADA NO GENERA LIXIVIADOS
B21: SI EL ÁREA DEGRADADA GENERA LIXIVIADOS
B90: NOTA: | C90: En caso de presencia de lixiviados, como parte de alguna de las 03 alternativas a elegir, se debera incluir como parte del Manejo de Lixiviados LA INSTALACION DE POZOS DE MONITOREO, según el siguiente detalle

Sheet CRITERIOS MANEJO GASES
B2: CRITERIOS TÉCNICOS: COMPONENTE MANEJO DE GASES
B4: SI EL ÁREA DEGRADADA GENERA CANTIDADES DESPRECIABLES DE BIOGAS | X4: Para considerar si la generacion de BIOGAS es despreciable, se debe cumplir con las siguientes 03 condiciones
B23: SI EL ÁREA DEGRADADA GENERA CANTIDADES NO DESPRECIABLES DE BIOGAS

Sheet CRITERIOS GESTIÓN TÉCNICA
B2: CRITERIO COMPONENTE GESTIÓN TÉCNICA MUNICIPAL

Sheet CRITERIO PRÁCTICAS POBLACIÓN
B2: CRITERIO COMPONENTE PRÁCTICAS DE LA POBLACIÓN INVOLUCRADA

Sheet PRESUPUESTO MODELO
C2: PRESUPUESTO DETALLADO (EJEMPLO)
B4: ÍTEM | C4: DESCRIPCIÓN | D4: UND | E4: METRADO | F4: PRECIO (S/.) | G4: PARCIAL (S/.)
B5: 01.01 | C5: CONFINAMIENTO DE RESIDUOS SÓLIDOS | G5: =+G6+G15+G21+G24+G29+G34 -> 2531109.806
B6: 01.01.01 | C6: OBRAS PRELIMINARES | G6: =SUM(G7:G14) -> 72779.244
B7: 01.01.01.01 | C7: CASETA ADICIONAL P/GUARDIANIA Y/O DEPOSITO | D7: m2 | E7: 55 | F7: 90 | G7: =+E7*F7 -> 4950
B8: 01.01.01.02 | C8: MOVILIZACION Y DESMOVILIZACIÓN DE MAQUINARIAS HERRAMIENTAS PARA LA OBRA | D8: glb | E8: 1 | F8: 15099.86 | G8: =+E8*F8 -> 15099.86
B9: 01.01.01.03 | C9: CARTEL DE IDENTIFICACION DE LA OBRA 3.60 X 2.40 M | D9: u | E9: 1 | F9: 1273.43 | G9: 1273.43
B10: 01.01.01.04 | C10: TRANSPORTE DE MATERIALES Y EQUIPOS MENORES | D10: glb | E10: 1 | F10: 25000 | G10: 25000
B11: 01.01.01.05 | C11: ALMACENAMIENTO PROVISIONAL P/AGUA | D11: pza | E11: 1 | F11: 2400 | G11: 2400
B12: 01.01.01.06 | C12: SUMINISTRO Y COLOCACION DE SANITARIOS PORTATILES | D12: u | E12: 1 | F12: 1470 | G12: 1470
B13: 01.01.01.07 | C13: CINTA PLASTICA SEÑALIZADORA PARA LIMITE DE SEGURIDAD DE LA OBRA | D13: m | E13: 1500 | F13: 2.12 | G13: 3180
B14: 01.01.01.08 | C14: DESBROCE DE TERRENO R= 1.0 Ha/día | D14: ha | E14: 3.8 | F14: 5106.83 | G14: 19405.954
B15: 01.01.02 | C15: MOVIMIENTO DE TIERRAS | G15: =+G16+G18 -> 114087.7115
B16: 01.01.02.01 | C16: OBRAS PRELIMINARES | G16: =SUM(G17) -> 42071.623
B17: 01.01.02.01.01 | C17: TRAZO Y REPLANTEO | D17: m2 | E17: 38246.93 | F17: 1.1 | G17: =+E17*F17 -> 42071.623
B18: 01.01.02.02 | C18: MOVIMIENTO DE TIERRAS | G18: =SUM(G19:G20) -> 72016.0885
B19: 01.01.02.02.01 | C19: CORTE DE TERRENO CON EQUIPO | D19: m3 | E19: 4430.76 | F19: 10.35 | G19: =+E19*F19 -> 45858.366
B20: 01.01.02.02.02 | C20: RELLENO CON MATERIAL PROPIO CON EQUIPO | D20: m3 | E20: 3375.19 | F20: 7.75 | G20: =+E20*F20 -> 26157.7225
B21: 01.01.03 | C21: COLOCACIÓN DE COBERTURA BASE | G21: =SUM(G22:G23) -> 244114.6168
B22: 01.01.03.01 | C22: REFINE Y NIVELACION EN TERRENO NORMAL Y TALUD | D22: m2 | E22: 33988.45 | F22: 4.3 | G22: =+E22*F22 -> 146150.335
B23: 01.01.03.02 | C23: CONFORMACION DE CAPA DE REGULARIZACION | D23: m3 | E23: 4302.34 | F23: 22.77 | G23: =+E23*F23 -> 97964.2818
B24: 01.01.04 | C24: COLOCACIÓN DE COBERTURA INTERMEDIA | G24: =SUM(G25:G28) -> 1181862.712
B25: 01.01.04.01 | C25: SUMINISTRO E INSTALACION DE GEOTEXTIL CON BENTONITA | D25: m2 | E25: 33988.45 | F25: 23.73 | G25: =+E25*F25 -> 806545.9185
B26: 01.01.04.02 | C26: EXCAVACION DE ZANJAS PARA ANCLAJE | D26: m3 | E26: 2191.81 | F26: 7.93 | G26: =+E26*F26 -> 17381.0533
B27: 01.01.04.03 | C27: RELLENO CON MATERIAL PROPIO EN DADO DE ANCLAJE | D27: m3 | E27: 2191.81 | F27: 3.1 | G27: 6794.611
B28: 01.01.04.04 | C28: CONFORMACION DE CAPA DE DRENAJE DE AGUAS INFILTRADA | D28: m3 | E28: 6836.86 | F28: 51.36 | G28: 351141.1296
B29: 01.01.05 | C29: COLOCACIÓN DE COBERTURA FINAL | G29: =SUM(G30:G33) -> 724465.1221
B30: 01.01.05.01 | C30: CONFORMACION DE CAPA DE COBERTURA E=0.30 M. | D30: m3 | E30: 12146.09 | F30: 27.71 | G30: =+E30*F30 -> 336568.1539
B31: 01.01.05.02 | C31: CONFORMACION DE CAPA VEGETAL E=0.20M. | D31: m3 | E31: 8168.27 | F31: 23.78 | G31: =+E31*F31 -> 194241.4606
B32: 01.01.05.03 | C32: REFORESTACIÓN CON ESPECIES NATIVAS, E IMPLEMENTACIÓN DE CORTINA VEGETAL | D32: m2 | E32: 35229.87 | F32: 5.48 | G32: 193059.6876
B33: 01.01.05.04 | C33: CERCO CON ARBOLES NATIVA DE LA ZONA | D33: pza | E33: 62 | F33: 9.61 | G33: 595.82
B34: 01.01.06 | C34: CONSTRUCCIÓN DE INFRAESTRUCTURAS COMPLEMENTARIAS | G34: =+G35+G44+G54 -> 193800.3997
B35: 01.01.06.01 | C35: CONSTRUCCIÓN DE CANAL PLUVIAL | G35: =+G36+G40 -> 131443.1111
B36: 01.01.06.01.01 | C36: CONSTRUCCION DE CUNETA EN PLATAFORMA | G36: =SUM(G37:G39) -> 6070.9607
B37: 01.01.06.01.01.01 | C37: EXCAVACION DE CUNETA TRIANGULAR DE TIERRA EN PLATAFORMAS Y TALUD | D37: m3 | E37: 34.89 | F37: 8.29 | G37: =+E37*F37 -> 289.2381
B38: 01.01.06.01.01.02 | C38: EMPEDRADO DE BAJANTES EN TALUD | D38: m2 | E38: 23.03 | F38: 211.02 | G38: =+E38*F38 -> 4859.7906
B39: 01.01.06.01.01.03 | C39: CONCRETO f'c=175 kg/cm2 | D39: m3 | E39: 2.3 | F39: 400.84 | G39: 921.932
B40: 01.01.06.01.02 | C40: CONSTRUCCION DE CUNETA TRIANGULAR PERIMETRAL | G40: =SUM(G41:G43) -> 125372.1504
B41: 01.01.06.01.02.01 | C41: EXCAVACION DE CUNETA TRIANGULAR DE TIERRA EN PERIMETRO DE PLATAFORMAS | D41: m3 | E41: 89.32 | F41: 8.29 | G41: =+E41*F41 -> 740.4628
B42: 01.01.06.01.02.02 | C42: EMPEDRADO | D42: m2 | E42: 523.22 | F42: 211.02 | G42: =+E42*F42 -> 110409.8844
B43: 01.01.06.01.02.03 | C43: CONCRETO f'c=175 kg/cm2 | D43: m3 | E43: 35.48 | F43: 400.84 | G43: 14221.8032
B44: 01.01.06.02 | C44: CONSTRUCCIÓN DE VIA DE ACCESO | G44: =+G45+G47+G52 -> 30134.6248
B45: 01.01.06.02.01 | C45: OBRAS PRELIMINARES | G45: =SUM(G46) -> 1972.3266
B46: 01.01.06.02.01.01 | C46: TRAZO Y REPLANTEO EN VIAS | D46: m2 | E46: 709.47 | F46: 2.78 | G46: =+E46*F46 -> 1972.3266
B47: 01.01.06.02.02 | C47: MOVIMIENTO DE TIERRAS | G47: =SUM(G48:G51) -> 28005.1198
B48: 01.01.06.02.02.01 | C48: CONFORMACION DE CAPA DE RODADURA | D48: m3 | E48: 245.43 | F48: 96.97 | G48: =+E48*F48 -> 23799.3471
B49: 01.01.06.02.02.02 | C49: EXCAVACION DE TERRENO | D49: m3 | E49: 96.63 | F49: 8.29 | G49: =+E49*F49 -> 801.0627
B50: 01.01.06.02.02.03 | C50: RELLENO CON MATERIAL PROPIO | D50: m3 | E50: 114.19 | F50: 3.1 | G50: 353.989
B51: 01.01.06.02.02.04 | C51: REFINE Y NIVELACION EN TERRENO NORMAL | D51: m2 | E51: 709.47 | F51: 4.3 | G51: 3050.721
B52: 01.01.06.02.03 | C52: CONSTRUCCION DE CUNETA TRIANGULAR EN VÍA | G52: =SUM(G53) -> 157.1784
B53: 01.01.06.02.03.01 | C53: EXCAVACION DE CUNETA TRIANGULAR DE TIERRA EN PERIMETRO DE PLATAFORMAS | D53: m3 | E53: 18.96 | F53: 8.29 | G53: =+E53*F53 -> 157.1784
B54: 01.01.06.03 | C54: CONSTRUCCIÓN DE CERCO PERIMETRICO | G54: =SUM(G55:G56) -> 32222.6638
B55: 01.01.06.03.01 | C55: CERCO CON PALOS NATIVOS DE LA ZONA Y ALAMBRE DE PUAS | D55: m | E55: 717.94 | F55: 43.27 | G55: =+E55*F55 -> 31065.2638
B56: 01.01.06.03.02 | C56: PUERTA EN CERCO PERIMETRICO | D56: u | E56: 1 | F56: 1157.4 | G56: =+E56*F56 -> 1157.4
B57: 01.02 | C57: MANEJO DE LIXIVIADOS | G57: =+G58+G69+G76+G84+G94 -> 265703.6439
B58: 01.02.01 | C58: DRENES PARA LIXIVIADOS | G58: =SUM(G59:G68) -> 148678.3259
B59: 01.02.01.01 | C59: EXCAVACION DE MATERIAL | D59: m3 | E59: 1058.78 | F59: 8.29 | G59: =+E59*F59 -> 8777.2862
B60: 01.02.01.02 | C60: RELLENO CON MATERIAL PROPIO | D60: m3 | E60: 708.43 | F60: 3.1 | G60: =+E60*F60 -> 2196.133
B61: 01.02.01.03 | C61: ELIMINACION DE EXCEDENTES C/VOLQ. D=5 KM | D61: m3 | E61: 352.43 | F61: 15.64 | G61: 5512.0052
B62: 01.02.01.04 | C62: REFINE Y NIVELACION EN TERRENO NORMAL | D62: m2 | E62: 986.77 | F62: 4.3 | G62: 4243.111
B63: 01.02.01.05 | C63: SUMINISTRO Y COLOCACION DE GEOMEMBRANAS HDPE 1.50mm | D63: m2 | E63: 1271.72 | F63: 29.34 | G63: 37312.2648
B64: 01.02.01.06 | C64: EMPEDRADO DE DRENES | D64: m3 | E64: 278.42 | F64: 173 | G64: 48166.66
B65: 01.02.01.07 | C65: PROVISION E INSTALACION TUBERIA D=8" | D65: m | E65: 282.76 | F65: 69.67 | G65: 19699.8892
B66: 01.02.01.08 | C66: SUMINISTRO Y COLOCACION DE GEOTEXTILES | D66: m2 | E66: 1271.72 | F66: 17.13 | G66: 21784.5636
B67: 01.02.01.09 | C67: EXCAVACION DE ZANJAS PARA ANCLAJE | D67: m3 | E67: 89.43 | F67: 7.93 | G67: 709.1799
B68: 01.02.01.10 | C68: RELLENO CON MATERIAL PROPIO EN DADO DE ANCLAJE | D68: m3 | E68: 89.43 | F68: 3.1 | G68: 277.233
B69: 01.02.02 | C69: CONEXION A POZA DE LIXIVIADOS | G69: 12961.44
B70: 01.02.02.01 | C70: MOVIMIENTO DE TIERRAS | G70: =SUM(G71:G72) -> 1473.5243
B71: 01.02.02.01.01 | C71: EXCAVACION DE TERRENO | D71: m3 | E71: 129.37 | F71: 8.29 | G71: =+E71*F71 -> 1072.4773
B72: 01.02.02.01.02 | C72: RELLENO CON MATERIAL PROPIO | D72: m3 | E72: 129.37 | F72: 3.1 | G72: =+E72*F72 -> 401.047
B73: 01.02.02.02 | C73: SISTEMA DE CONDUCCIÓN DE LIXIVIADOS | G73: =SUM(G74:G75) -> 11487.9096
B74: 01.02.02.02.01 | C74: CAJA DE REGISTRO DE LIXIVIADOS | D74: pza | E74: 1 | F74: 627.75 | G74: =+E74*F74 -> 627.75
B75: 01.02.02.02.02 | C75: PROVISION E INSTALACION TUBERIA D=8" | D75: m | E75: 155.88 | F75: 69.67 | G75: =+E75*F75 -> 10860.1596
B76: 01.02.03 | C76: POZO DE EXTRACCIÓN DE LIXIVIADO | G76: =SUM(G77:G83) -> 63324.934
B77: 01.02.03.01 | C77: PERFORACION DE POZOS PARA EXTRACCION DE LIXIVIADO | D77: m | E77: 80 | F77: 700 | G77: =+E77*F77 -> 56000
B78: 01.02.03.02 | C78: ELIMINACION DE EXCEDENTES C/VOLQ. D=5 KM | D78: m3 | E78: 18.2 | F78: 15.64 | G78: =+E78*F78 -> 284.648
B79: 01.02.03.03 | C79: RELLENO DE BENTONITA | D79: m3 | E79: 0.5 | F79: 651.7 | G79: 325.85
B80: 01.02.03.04 | C80: RELLENO CON GRAVA | D80: m3 | E80: 16.6 | F80: 103.1 | G80: 1711.46
B81: 01.02.03.05 | C81: PROVISION E INSTALACION TUBERIA CIEGA D=6" | D81: m | E81: 6.4 | F81: 64.67 | G81: 413.888
B82: 01.02.03.06 | C82: PROVISION E INSTALACION TUBERIA RANURADO D=6" | D82: m | E82: 60.4 | F82: 67.42 | G82: 4072.168
B83: 01.02.03.07 | C83: TAPA PEAD DE POZO 6" | D83: u | E83: 4 | F83: 129.23 | G83: 516.92
B84: 01.02.04 | C84: POZO DE MONITOREO DE LIXIVIADO | G84: =SUM(G85:G93) -> 8578.0978
B85: 01.02.04.01 | C85: PERFORACION DE POZOS PARA SISTEMA DE MONITOREO | D85: m | E85: 20 | F85: 350 | G85: =+E85*F85 -> 7000
B86: 01.02.04.02 | C86: ELIMINACION DE EXCEDENTES C/VOLQ. D=5 KM | D86: m3 | E86: 0.79 | F86: 15.64 | G86: =+E86*F86 -> 12.3556
B87: 01.02.04.03 | C87: RELLENO CON GRAVA | D87: m3 | E87: 0.04 | F87: 103.1 | G87: 4.124
B88: 01.02.04.04 | C88: RELLENO DE BENTONITA | D88: m3 | E88: 0.01 | F88: 651.7 | G88: 6.517
B89: 01.02.04.05 | C89: RELLENO DE BENTONITA + ARCILLA | D89: m3 | E89: 0.42 | F89: 349.2 | G89: 146.664
B90: 01.02.04.06 | C90: PROVISION E INSTALACION TUBERIA CIEGA D=4" | D90: m | E90: 18.5 | F90: 59.67 | G90: 1103.895
B91: 01.02.04.07 | C91: PROVISION E INSTALACION TUBERIA RANURADO D=4" | D91: m | E91: 1.5 | F91: 62.17 | G91: 93.255
B92: 01.02.04.08 | C92: CONCRETO f'c=175 kg/cm2 | D92: m3 | E92: 0.08 | F92: 400.84 | G92: 32.0672
B93: 01.02.04.09 | C93: TAPA METALICA DE POZO 4" | D93: u | E93: 1 | F93: 179.22 | G93: 179.22
B94: 01.02.05 | C94: POZA DE ALMACENAMIENTO PARA LIXIVIADOS | G94: =+G95+G97+G102+G106+G108+G113 -> 32160.8462
B95: 01.02.05.01 | C95: OBRAS PRELIMINARES | G95: =SUM(G96) -> 60.236
B96: 01.02.05.01.01 | C96: TRAZO Y REPLANTEO | D96: m2 | E96: 54.76 | F96: 1.1 | G96: =+E96*F96 -> 60.236
B97: 01.02.05.02 | C97: MOVIMIENTO DE TIERRAS | G97: =SUM(G98:G101) -> 4050.0447
B98: 01.02.05.02.01 | C98: EXCAVACION DE TERRENO | D98: m3 | E98: 7.47 | F98: 8.29 | G98: =+E98*F98 -> 61.9263
B99: 01.02.05.02.02 | C99: EXCAVACION DE POZA | D99: m3 | E99: 46.62 | F99: 8.3 | G99: =+E99*F99 -> 386.946
B100: 01.02.05.02.03 | C100: ELIMINACION DE EXCEDENTES C/VOLQ. D=5 KM | D100: m3 | E100: 46.62 | F100: 15.64 | G100: 729.1368
B101: 01.02.05.02.04 | C101: NIVELACION Y COMPACTACION MANUAL FONDO DE POZA | D101: m2 | E101: 50.68 | F101: 56.67 | G101: 2872.0356
B102: 01.02.05.03 | C102: IMPERMEABILIZACIONES DE DRENES | G102: =SUM(G103:G105) -> 5276.765
B103: 01.02.05.03.01 | C103: SUMINISTRO Y COLOCACION DE GEOMEMBRANAS HDPE 1.50mm | D103: m2 | E103: 138.73 | F103: 29.34 | G103: =+E103*F103 -> 4070.3382
B104: 01.02.05.03.02 | C104: RELLENO CON MATERIAL PROPIO EN DADO DE ANCLAJE DE GEOMEMBRANA | D104: m3 | E104: 5.9 | F104: 3.1 | G104: =+E104*F104 -> 18.29
B105: 01.02.05.03.03 | C105: SUMINISTRO Y COLOCACION DE GEOTEXTILES | D105: m2 | E105: 69.36 | F105: 17.13 | G105: 1188.1368
B106: 01.02.05.04 | C106: CONCRETO SIMPLE | G106: =SUM(G107) -> 3495.7125
B107: 01.02.05.04.01 | C107: CONCRETO f'c=175 kg/cm2 + 30% PIEDRA MEDIANA | D107: m3 | E107: 8.75 | F107: 399.51 | G107: =+E107*F107 -> 3495.7125
B108: 01.02.05.05 | C108: ESTRUCTURA DE MADERA | G108: =SUM(G109:G112) -> 18355.59
B109: 01.02.05.05.01 | C109: COLUMNAS DE MADERA D=6" | D109: m | E109: 36 | F109: 154.11 | G109: =+E109*F109 -> 5547.96
B110: 01.02.05.05.02 | C110: VIGA TEMPLADOR DE MADERA D=3" | D110: m | E110: 108 | F110: 42.06 | G110: =+E110*F110 -> 4542.48
B111: 01.02.05.05.03 | C111: TIJERAL DE MADERA T-1 | D111: u | E111: 6 | F111: 1142.22 | G111: 6853.32
B112: 01.02.05.05.04 | C112: COBERTURA CON CALAMINA GALVANIZADA | D112: m2 | E112: 27 | F112: 52.29 | G112: 1411.83
B113: 01.02.05.06 | C113: SISTEMA DE CONTROL | G113: =SUM(G114:G117) -> 922.498
B114: 01.02.05.06.01 | C114: PROVISION E INSTALACION TUBERIA RANURADO D=6" | D114: m | E114: 2.4 | F114: 67.42 | G114: =+E114*F114 -> 161.808
B115: 01.02.05.06.02 | C115: PROVISION E INSTALACION TUBERIA RANURADO D=4" | D115: m | E115: 4 | F115: 62.17 | G115: =+E115*F115 -> 248.68
B116: 01.02.05.06.03 | C116: EMPEDRADO DE DRENES | D116: m3 | E116: 1.15 | F116: 173 | G116: 198.95
B117: 01.02.05.06.04 | C117: PROVISION E INSTALACION TUBERIA RANURADO D=2" | D117: m | E117: 5.5 | F117: 56.92 | G117: 313.06
B118: 01.03 | C118: MANEJO DE GASES | G118: =+G119+G124 -> 170289.5676
B119: 01.03.01 | C119: DRENES PARA EVACUACIÓN DE GASES | G119: =SUM(G120:G123) -> 146480.4784
B120: 01.03.01.01 | C120: EXCAVACION DE ZANJAS | D120: m3 | E120: 825.92 | F120: 7.93 | G120: =+E120*F120 -> 6549.5456
B121: 01.03.01.02 | C121: EMPEDRADO DE DRENES | D121: m3 | E121: 652.48 | F121: 173 | G121: =+E121*F121 -> 112879.04
B122: 01.03.01.03 | C122: SUMINISTRO Y COLOCACION DE GEOTEXTILES | D122: m2 | E122: 1556.56 | F122: 17.13 | G122: 26663.8728
B123: 01.03.01.04 | C123: PROVISION E INSTALACION TUBERIA D=6" | D123: m | E123: 6 | F123: 64.67 | G123: 388.02
B124: 01.03.02 | C124: CHIMENEA PARA EVACUACION DE GASES | G124: =SUM(G125:G131) -> 23809.0892
B125: 01.03.02.01 | C125: PERFORACION DE POZOS PARA EVACUACION DE GASES | D125: m | E125: 22.5 | F125: 700 | G125: =+E125*F125 -> 15750
B126: 01.03.02.02 | C126: ELIMINACION DE EXCEDENTES C/VOLQ. D=5 KM | D126: m3 | E126: 8.05 | F126: 15.64 | G126: =+E126*F126 -> 125.902
B127: 01.03.02.03 | C127: RELLENO CON GRAVA | D127: m3 | E127: 5.59 | F127: 103.1 | G127: 576.329
B128: 01.03.02.04 | C128: SUMINISTRO E INSTALACION DE BENTONITA | D128: m2 | E128: 0.4 | F128: 23.73 | G128: 9.492
B129: 01.03.02.05 | C129: PROVISION E INSTALACION TUBERIA D=6" PERFORADA | D129: m | E129: 19.5 | F129: 94.67 | G129: 1846.065
B130: 01.03.02.06 | C130: PROVISION E INSTALACION TUBERIA D=6" | D130: m | E130: 4.36 | F130: 64.67 | G130: 281.9612
B131: 01.03.02.07 | C131: QUEMADORES DE GASES | D131: u | E131: 3 | F131: 1739.78 | G131: 5219.34

Sheet INVERSIÓN
E2: ALTERNATIVA N° 01 | AR2: ALTERNATIVA N° 02
B4: CONVERSIÓN DE PRECIOS DE MERCADO A PRECIOS SOCIALES | AR4: CONVERSIÓN DE PRECIOS DE MERCADO A PRECIOS SOCIALES
B6: COSTO CONFINAMIENTO DE RR.SS | L6: COSTO MANEJO DE LIXIVIADOS | V6: COSTO MANEJO DE GASES | AG6: COSTO ADECUADA GESTIÓN TÉCNICA MUNICIPAL | AR6: COSTO CONFINAMIENTO DE RR.SS | BB6: COSTO MANEJO DE LIXIVIADOS | BL6: COSTO MANEJO DE GASES | BV6: 1 | BW6: COSTO ADECUADA GESTIÓN TÉCNICA MUNICIPAL
B7: DESCRIPCIÓN | F7: COSTOS DIRECTOS | G7: IGV | H7: PRECIOS PRIVADOS | I7: FC | J7: PRECIOS SOCIALES | L7: DESCRIPCIÓN | P7: COSTOS DIRECTOS | Q7: IGV | R7: PRECIOS PRIVADOS | S7: FC | T7: PRECIOS SOCIALES | V7: DESCRIPCIÓN | Z7: COSTOS DIRECTOS | AA7: IGV | AB7: PRECIOS PRIVADOS | AC7: FC | AD7: PRECIOS SOCIALES | AF7: 1 | AG7: PLAN DE MONITOREO AMBIENTAL | AH7: UM | AI7: CANTIDAD | AJ7: CU (S/) | AK7: PRECIO PRIVADO | AL7: CALIFICACION | AM7: FC | AN7: PRECIOS SOCIALES | AR7: DESCRIPCIÓN | AV7: COSTOS DIRECTOS | AW7: IGV | AX7: PRECIOS PRIVADOS | AY7: FC | AZ7: PRECIOS SOCIALES | BB7: DESCRIPCIÓN | BF7: COSTOS DIRECTOS | BG7: IGV | BH7: PRECIOS PRIVADOS | BI7: FC | BJ7: PRECIOS SOCIALES | BL7: DESCRIPCIÓN | BP7: COSTOS DIRECTOS | BQ7: IGV | BR7: PRECIOS PRIVADOS | BS7: FC | BT7: PRECIOS SOCIALES | BV7: 1.1 | BW7: PLAN DE MONITOREO AMBIENTAL | BX7: UM | BY7: CANTIDAD | BZ7: CU (S/) | CA7: PRECIO PRIVADO | CB7: CALIFICACIÓN | CC7: FC | CD7: PRECIOS SOCIALES | CG7: Mano de Obra no Calificada | CJ7: Urbano | CK7: Rural
AF8: 1.1 | AG8: ELABORACIÓN DEL MANUAL DE O&M Y VIGILANCIA AMBIENTAL (MONITOREO AMBIENTAL) | AH8: DOCUMENTOS | AK8: =AI8*AJ8 -> 0 | AL8: SERVICIO | AM8: 0.85 | AN8: =AK8*AM8 -> 0 | BV8: 1.1.1 | BW8: ELABORACIÓN DEL MANUAL DE O&M Y VIGILANCIA AMBIENTAL (MONITOREO AMBIENTAL) | BX8: DOCUMENTOS | CA8: =BY8*BZ8 -> 0 | CB8: SERVICIO | CC8: 0.85 | CD8: =CA8*CC8 -> 0 | CG8: Lima Metropolitana | CJ8: 0.86 | CK8: ---
B9: MANO DE OBRA | F9: =SUM(F10:F11) -> 0 | H9: =SUM(H10:H11) -> 0 | J9: =SUM(J10:J11) -> 0 | L9: MANO DE OBRA | P9: =SUM(P10:P11) -> 0 | R9: =SUM(R10:R11) -> 0 | T9: =SUM(T10:T11) -> 0 | V9: MANO DE OBRA | Z9: =SUM(Z10:Z11) -> 0 | AB9: =SUM(AB10:AB11) -> 0 | AD9: =SUM(AD10:AD11) -> 0 | AF9: 1.2 | AG9: ELABORACIÓN DEL MANUAL DE SEGURIDAD Y SALUD OCUPACIONAL | AH9: DOCUMENTOS | AK9: =AI9*AJ9 -> 0 | AL9: SERVICIO | AM9: 0.85 | AN9: =AK9*AM9 -> 0 | AR9: MANO DE OBRA | AV9: =SUM(AV10:AV11) -> 0 | AX9: =SUM(AX10:AX11) -> 0 | AZ9: =SUM(AZ10:AZ11) -> 0 | BB9: MANO DE OBRA | BF9: =SUM(BF10:BF11) -> 0 | BH9: =SUM(BH10:BH11) -> 0 | BJ9: =SUM(BJ10:BJ11) -> 0 | BL9: MANO DE OBRA | BP9: =SUM(BP10:BP11) -> 0 | BR9: =SUM(BR10:BR11) -> 0 | BT9: =SUM(BT10:BT11) -> 0 | BV9: 1.1.2 | BW9: ELABORACIÓN DEL MANUAL DE SEGURIDAD Y SALUD OCUPACIONAL | BX9: DOCUMENTOS | CA9: =BY9*BZ9 -> 0 | CB9: SERVICIO | CC9: 0.85 | CD9: =CA9*CC9 -> 0 | CG9: Resto de Costa | CJ9: 0.68 | CK9: 0.57
B10: MANO DE OBRA NO CALIFICADA | E10: MONC | F10: =SUMIFS($I$29:$I$1048576,$J$29:$J$1048576,E10) -> 0 | G10: =0.18*F10 -> 0 | H10: =SUM(F10:G10) -> 0 | I10: 0.6 | J10: =+H10*I10 -> 0 | L10: MANO DE OBRA NO CALIFICADA | O10: MONC | P10: =SUMIFS($S$29:$S$1048576,$T$29:$T$1048576,O10) -> 0 | Q10: =0.18*P10 -> 0 | R10: =SUM(P10:Q10) -> 0 | S10: =I10 -> 0.6 | T10: =+R10*S10 -> 0 | V10: MANO DE OBRA NO CALIFICADA | Y10: MONC | Z10: =SUMIFS($AC$29:$AC$1048576,$AD$29:$AD$1048576,Y10) -> 0 | AA10: =0.18*Z10 -> 0 | AB10: =SUM(Z10:AA10) -> 0 | AC10: =S10 -> 0.6 | AD10: =+AB10*AC10 -> 0 | AF10: SUB - TOTAL | AK10: =SUM(AK8:AK9) -> 0 | AN10: =SUM(AN8:AN9) -> 0 | AR10: MANO DE OBRA NO CALIFICADA | AU10: MONC | AV10: =SUMIFS($AY$29:$AY$1048576,$AZ$29:$AZ$1048576,AU10) -> 0 | AW10: =0.18*AV10 -> 0 | AX10: =SUM(AV10:AW10) -> 0 | AY10: =+CJ10 -> 0.6 | AZ10: =+AX10*AY10 -> 0 | BB10: MANO DE OBRA NO CALIFICADA | BE10: MONC | BF10: =SUMIFS($BI$29:$BI$1048576,$BJ$29:$BJ$1048576,BE10) -> 0 | BG10: =0.18*BF10 -> 0 | BH10: =SUM(BF10:BG10) -> 0 | BI10: =AY10 -> 0.6 | BJ10: =+BH10*BI10 -> 0 | BL10: MANO DE OBRA NO CALIFICADA | BO10: MONC | BP10: =SUMIFS($BS$29:$BS$1048576,$BT$29:$BT$1048576,BO10) -> 0 | BQ10: =0.18*BP10 -> 0 | BR10: =SUM(BP10:BQ10) -> 0 | BS10: =BI10 -> 0.6 | BT10: =+BR10*BS10 -> 0 | BV10: SUB - TOTAL | CA10: =SUM(CA8:CA9) -> 0 | CD10: =SUM(CD8:CD9) -> 0 | CG10: Sierra | CJ10: 0.6 | CK10: 0.41
B11: MANO DE OBRA CALIFICADA | E11: MOC | F11: =SUMIFS($I$29:$I$1048576,$J$29:$J$1048576,E11) -> 0 | G11: =0.18*F11 -> 0 | H11: =SUM(F11:G11) -> 0 | I11: 0.93 | J11: =+H11*I11 -> 0 | L11: MANO DE OBRA CALIFICADA | O11: MOC | P11: =SUMIFS($S$29:$S$1048576,$T$29:$T$1048576,O11) -> 0 | Q11: =0.18*P11 -> 0 | R11: =SUM(P11:Q11) -> 0 | S11: =I11 -> 0.93 | T11: =+R11*S11 -> 0 | V11: MANO DE OBRA CALIFICADA | Y11: MOC | Z11: =SUMIFS($AC$29:$AC$1048576,$AD$29:$AD$1048576,Y11) -> 0 | AA11: =0.18*Z11 -> 0 | AB11: =SUM(Z11:AA11) -> 0 | AC11: =S11 -> 0.93 | AD11: =+AB11*AC11 -> 0 | AF11: 2 | AG11: CAPACITACIÓN DEL PERSONAL MUNICIPAL | AH11: UM | AI11: CANTIDAD | AJ11: CU (S/) | AK11: PRECIO PRIVADO | AL11: CALIFICACION | AM11: FC | AN11: PRECIOS SOCIALES | AR11: MANO DE OBRA CALIFICADA | AU11: MOC | AV11: =SUMIFS($AY$29:$AY$1048576,$AZ$29:$AZ$1048576,AU11) -> 0 | AW11: =0.18*AV11 -> 0 | AX11: =SUM(AV11:AW11) -> 0 | AY11: 0.93 | AZ11: =+AX11*AY11 -> 0 | BB11: MANO DE OBRA CALIFICADA | BE11: MOC | BF11: =SUMIFS($BI$29:$BI$1048576,$BJ$29:$BJ$1048576,BE11) -> 0 | BG11: =0.18*BF11 -> 0 | BH11: =SUM(BF11:BG11) -> 0 | BI11: =AY11 -> 0.93 | BJ11: =+BH11*BI11 -> 0 | BL11: MANO DE OBRA CALIFICADA | BO11: MOC | BP11: =SUMIFS($BS$29:$BS$1048576,$BT$29:$BT$1048576,BO11) -> 0 | BQ11: =0.18*BP11 -> 0 | BR11: =SUM(BP11:BQ11) -> 0 | BS11: =BI11 -> 0.93 | BT11: =+BR11*BS11 -> 0 | BV11: 1.2 | BW11: CAPACITACIÓN DEL PERSONAL MUNICIPAL | BX11: UM | BY11: CANTIDAD | BZ11: CU (S/) | CA11: PRECIO PRIVADO | CB11: CALIFICACIÓN | CC11: FC | CD11: PRECIOS SOCIALES | CG11: Selva | CJ11: 0.63 | CK11: 0.49
B12: BIENES | F12: =SUM(F13:F14) -> 0 | H12: =SUM(H13:H14) -> 0 | J12: =SUM(J13:J14) -> 0 | L12: BIENES | P12: =SUM(P13:P14) -> 0 | R12: =SUM(R13:R14) -> 0 | T12: =SUM(T13:T14) -> 0 | V12: BIENES | Z12: =SUM(Z13:Z14) -> 0 | AB12: =SUM(AB13:AB14) -> 0 | AD12: =SUM(AD13:AD14) -> 0 | AF12: 2.1 | AG12: CAPACITACIÓN SOBRE LAS LABORES DE O&M DE LAS INFRAESTRUCTURAS A INSTALAR | AH12: CAPACITACIÓN | AK12: =AI12*AJ12 -> 0 | AL12: MOC | AM12: 0.93 | AN12: =AK12*AM12 -> 0 | AR12: BIENES | AV12: =SUM(AV13:AV14) -> 0 | AX12: =SUM(AX13:AX14) -> 0 | AZ12: =SUM(AZ13:AZ14) -> 0 | BB12: BIENES | BF12: =SUM(BF13:BF14) -> 0 | BH12: =SUM(BH13:BH14) -> 0 | BJ12: =SUM(BJ13:BJ14) -> 0 | BL12: BIENES | BP12: =SUM(BP13:BP14) -> 0 | BR12: =SUM(BR13:BR14) -> 0 | BT12: =SUM(BT13:BT14) -> 0 | BV12: 1.2.1 | BW12: CAPACITACIÓN SOBRE LAS LABORES DE O&M DE LAS INFRAESTRUCTURAS A INSTALAR | BX12: CAPACITACIÓN | CA12: =BY12*BZ12 -> 0 | CB12: MOC | CC12: 0.93 | CD12: =CA12*CC12 -> 0
B13: BIENES NACIONALES | E13: BN | F13: =SUMIFS($I$29:$I$1048576,$J$29:$J$1048576,E13) -> 0 | G13: =0.18*F13 -> 0 | H13: =SUM(F13:G13) -> 0 | I13: 0.85 | J13: =+H13*I13 -> 0 | L13: BIENES NACIONALES | O13: BN | P13: =SUMIFS($S$29:$S$1048576,$T$29:$T$1048576,O13) -> 0 | Q13: =0.18*P13 -> 0 | R13: =SUM(P13:Q13) -> 0 | S13: =I13 -> 0.85 | T13: =+R13*S13 -> 0 | V13: BIENES NACIONALES | Y13: BN | Z13: =SUMIFS($AC$29:$AC$1048576,$AD$29:$AD$1048576,Y13) -> 0 | AA13: =0.18*Z13 -> 0 | AB13: =SUM(Z13:AA13) -> 0 | AC13: =S13 -> 0.85 | AD13: =+AB13*AC13 -> 0 | AF13: 2.2 | AG13: CAPACITACIÓN EN SEGURIDAD Y SALUD OCUPACIONAL AL PERSONAL MUNICIPAL | AH13: CAPACITACIÓN | AK13: 0 | AL13: MOC | AM13: 0.93 | AN13: 0 | AR13: BIENES NACIONALES | AU13: BN | AV13: =SUMIFS($AY$29:$AY$1048576,$AZ$29:$AZ$1048576,AU13) -> 0 | AW13: =0.18*AV13 -> 0 | AX13: =SUM(AV13:AW13) -> 0 | AY13: 0.85 | AZ13: =+AX13*AY13 -> 0 | BB13: BIENES NACIONALES | BE13: BN | BF13: =SUMIFS($BI$29:$BI$1048576,$BJ$29:$BJ$1048576,BE13) -> 0 | BG13: =0.18*BF13 -> 0 | BH13: =SUM(BF13:BG13) -> 0 | BI13: =AY13 -> 0.85 | BJ13: =+BH13*BI13 -> 0 | BL13: BIENES NACIONALES | BO13: BN | BP13: =SUMIFS($BS$29:$BS$1048576,$BT$29:$BT$1048576,BO13) -> 0 | BQ13: =0.18*BP13 -> 0 | BR13: =SUM(BP13:BQ13) -> 0 | BS13: =BI13 -> 0.85 | BT13: =+BR13*BS13 -> 0 | BV13: 1.2.2 | BW13: CAPACITACIÓN EN SEGURIDAD Y SALUD OCUPACIONAL AL PERSONAL MUNICIPAL | BX13: CAPACITACIÓN | CA13: 0 | CB13: MOC | CC13: 0.93 | CD13: 0
B14: BIENES IMPORTADOS | E14: BI | F14: =SUMIFS($I$29:$I$1048576,$J$29:$J$1048576,E14) -> 0 | G14: =0.18*F14 -> 0 | H14: =SUM(F14:G14) -> 0 | I14: 0.82 | J14: =+H14*I14 -> 0 | L14: BIENES IMPORTADOS | O14: BI | P14: =SUMIFS($S$29:$S$1048576,$T$29:$T$1048576,O14) -> 0 | Q14: =0.18*P14 -> 0 | R14: =SUM(P14:Q14) -> 0 | S14: =I14 -> 0.82 | T14: =+R14*S14 -> 0 | V14: BIENES IMPORTADOS | Y14: BI | Z14: =SUMIFS($AC$29:$AC$1048576,$AD$29:$AD$1048576,Y14) -> 0 | AA14: =0.18*Z14 -> 0 | AB14: =SUM(Z14:AA14) -> 0 | AC14: =S14 -> 0.82 | AD14: =+AB14*AC14 -> 0 | AF14: 2.3 | AG14: CAPACITACIÓN EN EL DESARROLLO DE MONITOREOS AMBIENTALES | AH14: CAPACITACIÓN | AK14: 0 | AL14: MOC | AM14: 0.93 | AN14: 0 | AR14: BIENES IMPORTADOS | AU14: BI | AV14: =SUMIFS($AY$29:$AY$1048576,$AZ$29:$AZ$1048576,AU14) -> 0 | AW14: =0.18*AV14 -> 0 | AX14: =SUM(AV14:AW14) -> 0 | AY14: 0.82 | AZ14: =+AX14*AY14 -> 0 | BB14: BIENES IMPORTADOS | BE14: BI | BF14: =SUMIFS($BI$29:$BI$1048576,$BJ$29:$BJ$1048576,BE14) -> 0 | BG14: =0.18*BF14 -> 0 | BH14: =SUM(BF14:BG14) -> 0 | BI14: 0.82 | BJ14: =+BH14*BI14 -> 0 | BL14: BIENES IMPORTADOS | BO14: BI | BP14: =SUMIFS($BS$29:$BS$1048576,$BT$29:$BT$1048576,BO14) -> 0 | BQ14: =0.18*BP14 -> 0 | BR14: =SUM(BP14:BQ14) -> 0 | BS14: 0.82 | BT14: =+BR14*BS14 -> 0 | BV14: 1.2.3 | BW14: CAPACITACIÓN EN EL DESARROLLO DE MONITOREOS AMBIENTALES | BX14: CAPACITACIÓN | CA14: 0 | CB14: MOC | CC14: 0.93 | CD14: 0
B15: COSTOS INDIRECTOS | E15: CI | F15: =SUMIFS($I$29:$I$1048576,$J$29:$J$1048576,E15) -> 0 | G15: =0.18*F15 -> 0 | H15: =SUM(F15:G15) -> 0 | I15: 0.85 | J15: =+H15*I15 -> 0 | L15: COSTOS INDIRECTOS | O15: CI | P15: =SUMIFS($S$29:$S$1048576,$T$29:$T$1048576,O15) -> 0 | Q15: =0.18*P15 -> 0 | R15: =SUM(P15:Q15) -> 0 | S15: =I15 -> 0.85 | T15: =+R15*S15 -> 0 | V15: COSTOS INDIRECTOS | Y15: CI | Z15: =SUMIFS($AC$29:$AC$1048576,$AD$29:$AD$1048576,Y15) -> 0 | AA15: =0.18*Z15 -> 0 | AB15: =SUM(Z15:AA15) -> 0 | AC15: =S15 -> 0.85 | AD15: =+AB15*AC15 -> 0 | AF15: SUB - TOTAL | AK15: =SUM(AK12:AK14) -> 0 | AN15: =SUM(AN12:AN14) -> 0 | AR15: COSTOS INDIRECTOS | AU15: CI | AV15: =SUMIFS($AY$29:$AY$1048576,$AZ$29:$AZ$1048576,AU15) -> 0 | AW15: =0.18*AV15 -> 0 | AX15: =SUM(AV15:AW15) -> 0 | AY15: 0.85 | AZ15: =+AX15*AY15 -> 0 | BB15: COSTOS INDIRECTOS | BE15: CI | BF15: =SUMIFS($BI$29:$BI$1048576,$BJ$29:$BJ$1048576,BE15) -> 0 | BG15: =0.18*BF15 -> 0 | BH15: =SUM(BF15:BG15) -> 0 | BI15: =AY15 -> 0.85 | BJ15: =+BH15*BI15 -> 0 | BL15: COSTOS INDIRECTOS | BO15: CI | BP15: =SUMIFS($BS$29:$BS$1048576,$BT$29:$BT$1048576,BO15) -> 0 | BQ15: =0.18*BP15 -> 0 | BR15: =SUM(BP15:BQ15) -> 0 | BS15: =BI15 -> 0.85 | BT15: =+BR15*BS15 -> 0 | BV15: SUB - TOTAL | CA15: =SUM(CA12:CA14) -> 0 | CD15: =SUM(CD12:CD14) -> 0
B16: SERVICIO | E16: SERV | F16: =SUMIFS($I$29:$I$1048576,$J$29:$J$1048576,E16) -> 0 | G16: =0.18*F16 -> 0 | H16: =SUM(F16:G16) -> 0 | I16: 0.85 | J16: =+H16*I16 -> 0 | L16: SERVICIO | O16: SERV | P16: =SUMIFS($S$29:$S$1048576,$T$29:$T$1048576,O16) -> 0 | Q16: =0.18*P16 -> 0 | R16: =SUM(P16:Q16) -> 0 | S16: =I16 -> 0.85 | T16: 0 | V16: SERVICIO | Y16: SERV | Z16: =SUMIFS($AC$29:$AC$1048576,$AD$29:$AD$1048576,Y16) -> 0 | AA16: =0.18*Z16 -> 0 | AB16: =SUM(Z16:AA16) -> 0 | AC16: =S16 -> 0.85 | AD16: 0 | AF16: TOTAL | AK16: =AK15+AK10 -> 0 | AN16: =AN15+AN10 -> 0 | AR16: SERVICIO | AU16: SERV | AV16: =SUMIFS($AY$29:$AY$1048576,$AZ$29:$AZ$1048576,AU16) -> 0 | AW16: =0.18*AV16 -> 0 | AX16: =SUM(AV16:AW16) -> 0 | AY16: 0.85 | AZ16: =+AX16*AY16 -> 0 | BB16: SERVICIO | BE16: SERV | BF16: =SUMIFS($BI$29:$BI$1048576,$BJ$29:$BJ$1048576,BE16) -> 0 | BG16: =0.18*BF16 -> 0 | BH16: =SUM(BF16:BG16) -> 0 | BI16: =AY16 -> 0.85 | BJ16: 0 | BL16: SERVICIO | BO16: SERV | BP16: =SUMIFS($BS$29:$BS$1048576,$BT$29:$BT$1048576,BO16) -> 0 | BQ16: =0.18*BP16 -> 0 | BR16: =SUM(BP16:BQ16) -> 0 | BS16: =BI16 -> 0.85 | BT16: 0 | BV16: TOTAL | CA16: =CA15+CA10 -> 0 | CD16: =CD15+CD10 -> 0
B17: COSTO DIRECTO ( CD ) | F17: =F9+F12+F15+F16 -> 0 | H17: =H9+H12+H15+H16 -> 0 | J17: =J9+J12+J15+J16 -> 0 | L17: COSTO DIRECTO ( CD ) | P17: =P9+P12+P15+P16 -> 0 | R17: =R9+R12+R15+R16 -> 0 | T17: =T9+T12+T15+T16 -> 0 | V17: COSTO DIRECTO ( CD ) | Z17: =Z9+Z12+Z15+Z16 -> 0 | AB17: =AB9+AB12+AB15+AB16 -> 0 | AD17: =AD9+AD12+AD15+AD16 -> 0 | AR17: COSTO DIRECTO ( CD ) | AV17: =AV9+AV12+AV15+AV16 -> 0 | AX17: =AX9+AX12+AX15+AX16 -> 0 | AZ17: =AZ9+AZ12+AZ15+AZ16 -> 0 | BB17: COSTO DIRECTO ( CD ) | BF17: =BF9+BF12+BF15+BF16 -> 0 | BH17: =BH9+BH12+BH15+BH16 -> 0 | BJ17: =BJ9+BJ12+BJ15+BJ16 -> 0 | BL17: COSTO DIRECTO ( CD ) | BP17: =BP9+BP12+BP15+BP16 -> 0 | BR17: =BR9+BR12+BR15+BR16 -> 0 | BT17: =BT9+BT12+BT15+BT16 -> 0
B18: GG | E18: 0.1 | F18: =+F17*E18 -> 0 | G18: =0.18*F18 -> 0 | H18: =SUM(F18:G18) -> 0 | I18: 0.85 | J18: =+H18*I18 -> 0 | L18: GG | O18: 0.1 | P18: =+P17*O18 -> 0 | Q18: =0.18*P18 -> 0 | R18: =SUM(P18:Q18) -> 0 | S18: =I18 -> 0.85 | T18: =+R18*S18 -> 0 | V18: GG | Y18: 0.1 | Z18: =+Z17*Y18 -> 0 | AA18: =0.18*Z18 -> 0 | AB18: =SUM(Z18:AA18) -> 0 | AC18: =S18 -> 0.85 | AD18: =+AB18*AC18 -> 0 | AG18: COSTO APROPIADAS PRÁCTICAS DE LA POBLACIÓN INVOLUCRADA | AR18: GG | AU18: 0.1 | AV18: =+AV17*AU18 -> 0 | AW18: =0.18*AV18 -> 0 | AX18: =SUM(AV18:AW18) -> 0 | AY18: 0.85 | AZ18: =+AX18*AY18 -> 0 | BB18: GG | BE18: 0.1 | BF18: =+BF17*BE18 -> 0 | BG18: =0.18*BF18 -> 0 | BH18: =SUM(BF18:BG18) -> 0 | BI18: =AY18 -> 0.85 | BJ18: =+BH18*BI18 -> 0 | BL18: GG | BO18: 0.1 | BP18: =+BP17*BO18 -> 0 | BQ18: =0.18*BP18 -> 0 | BR18: =SUM(BP18:BQ18) -> 0 | BS18: =BI18 -> 0.85 | BT18: =+BR18*BS18 -> 0 | BV18: 2 | BW18: COSTO APROPIADAS PRÁCTICAS DE LA POBLACIÓN INVOLUCRADA
B19: UTILIDAD | E19: 0.1 | F19: =+F17*E19 -> 0 | G19: =0.18*F19 -> 0 | H19: =SUM(F19:G19) -> 0 | I19: 0.85 | J19: =+H19*I19 -> 0 | L19: UTILIDAD | O19: 0.1 | P19: =+P17*O19 -> 0 | Q19: =0.18*P19 -> 0 | R19: =SUM(P19:Q19) -> 0 | S19: =I19 -> 0.85 | T19: =+R19*S19 -> 0 | V19: UTILIDAD | Y19: 0.1 | Z19: =+Z17*Y19 -> 0 | AA19: =0.18*Z19 -> 0 | AB19: =SUM(Z19:AA19) -> 0 | AC19: =S19 -> 0.85 | AD19: =+AB19*AC19 -> 0 | AF19: 1 | AG19: CAPACITACIÓN A LA POBLACIÓN | AH19: UM | AI19: CANTIDAD | AJ19: CU (S/) | AK19: PRECIO PRIVADO | AL19: CALIFICACION | AM19: FC | AN19: PRECIOS SOCIALES | AR19: UTILIDAD | AU19: 0.1 | AV19: =+AV17*AU19 -> 0 | AW19: =0.18*AV19 -> 0 | AX19: =SUM(AV19:AW19) -> 0 | AY19: 0.85 | AZ19: =+AX19*AY19 -> 0 | BB19: UTILIDAD | BE19: 0.1 | BF19: =+BF17*BE19 -> 0 | BG19: =0.18*BF19 -> 0 | BH19: =SUM(BF19:BG19) -> 0 | BI19: =AY19 -> 0.85 | BJ19: =+BH19*BI19 -> 0 | BL19: UTILIDAD | BO19: 0.1 | BP19: =+BP17*BO19 -> 0 | BQ19: =0.18*BP19 -> 0 | BR19: =SUM(BP19:BQ19) -> 0 | BS19: =BI19 -> 0.85 | BT19: =+BR19*BS19 -> 0 | BV19: 2.1 | BW19: CAPACITACIÓN A LA POBLACIÓN | BX19: UM | BY19: CANTIDAD | BZ19: CU (S/) | CA19: PRECIO PRIVADO | CB19: CALIFICACIÓN | CC19: FC | CD19: PRECIOS SOCIALES
B20: TOTAL COSTO DE OBRA | F20: =SUM(F17:F19) -> 0 | G20: =+SUM(G9:G19) -> 0 | H20: =SUM(H17:H19) -> 0 | J20: =SUM(J17:J19) -> 0 | L20: TOTAL COSTO DE OBRA | P20: =SUM(P17:P19) -> 0 | Q20: =+SUM(Q9:Q19) -> 0 | R20: =SUM(R17:R19) -> 0 | T20: =SUM(T17:T19) -> 0 | V20: TOTAL COSTO DE OBRA | Z20: =SUM(Z17:Z19) -> 0 | AA20: =+SUM(AA9:AA19) -> 0 | AB20: =SUM(AB17:AB19) -> 0 | AD20: =SUM(AD17:AD19) -> 0 | AF20: 1.1 | AG20: DIFUSIÓN DE LA EXISTENCIA DE UN ÁREA DEGRADADA POR RR.SS Y DE SU CLAUSURA Y CIERRE | AK20: =SUM(AK21:AK23) -> 0 | AN20: =SUM(AN21:AN23) -> 0 | AR20: TOTAL COSTO DE OBRA | AV20: =SUM(AV17:AV19) -> 0 | AW20: =+SUM(AW9:AW19) -> 0 | AX20: =SUM(AX17:AX19) -> 0 | AZ20: =SUM(AZ17:AZ19) -> 0 | BB20: TOTAL COSTO DE OBRA | BF20: =SUM(BF17:BF19) -> 0 | BG20: =+SUM(BG9:BG19) -> 0 | BH20: =SUM(BH17:BH19) -> 0 | BJ20: =SUM(BJ17:BJ19) -> 0 | BL20: TOTAL COSTO DE OBRA | BP20: =SUM(BP17:BP19) -> 0 | BQ20: =+SUM(BQ9:BQ19) -> 0 | BR20: =SUM(BR17:BR19) -> 0 | BT20: =SUM(BT17:BT19) -> 0 | BV20: 2.1.1 | BW20: DIFUSIÓN DE LA EXISTENCIA DE UN ÁREA DEGRADADA POR RR.SS Y DE SU CLAUSURA Y CIERRE | CA20: =SUM(CA21:CA23) -> 0 | CD20: =SUM(CD21:CD23) -> 0
AF21: 1.1.1 | AG21: REDACCIÓN Y DIFUSIÓN DE NOTAS DE PRENSA EN MEDIOS LOCALES | AH21: Documentos | AK21: =+AI21*AJ21 -> 0 | AL21: SERVICIO | AM21: 0.85 | AN21: =+AK21*AM21 -> 0 | BV21: 2.1.1.1 | BW21: REDACCIÓN Y DIFUSIÓN DE NOTAS DE PRENSA EN MEDIOS LOCALES | BX21: Documentos | CA21: =+BY21*BZ21 -> 0 | CB21: SERVICIO | CC21: 0.85 | CD21: =+CA21*CC21 -> 0
B22: CONFINAMIENTO DE RR.SS | L22: MANEJO DE LIXIVIADOS | V22: MANEJO DE GASES | AF22: 1.1.2 | AG22: TALLERES DE DIFUSIÓN DE INFORMACIÓN | AH22: TALLERES | AK22: =+AI22*AJ22 -> 0 | AL22: SERVICIO | AM22: 0.85 | AN22: =+AK22*AM22 -> 0 | AR22: CONFINAMIENTO DE RR.SS | BB22: MANEJO DE LIXIVIADOS | BL22: MANEJO DE GASES | BV22: 2.1.1.2 | BW22: TALLERES DE DIFUSIÓN DE INFORMACIÓN | BX22: Talleres | CA22: =+BY22*BZ22 -> 0 | CB22: SERVICIO | CC22: 0.85 | CD22: =+CA22*CC22 -> 0
AF23: 1.1.3 | AG23: DISEÑO E IMPRESIÓN DE BOLETINES Y FOLLERERÍA DEL PROYECTO | AH23: MILLAR | AK23: 0 | AL23: SERVICIO | AM23: 0.85 | AN23: 0 | BV23: 2.1.1.3 | BW23: DISEÑO E IMPRESIÓN DE BOLETINES Y FOLLERERÍA DEL PROYECTO | BX23: MIllar | CA23: 0 | CB23: SERVICIO | CC23: 0.85 | CD23: 0
B24: PRECIOS Y CANTIDADES DE RECURSOS REQUERIDOS POR TIPO | L24: PRECIOS Y CANTIDADES DE RECURSOS REQUERIDOS POR TIPO | V24: PRECIOS Y CANTIDADES DE RECURSOS REQUERIDOS POR TIPO | AF24: 1.2 | AG24: DIFUSIÓN DE POSIBLES IMPACTOS A LAS SALUD DE LAS PERSONAS Y AL AMBIENTE | AK24: =SUM(AK25:AK27) -> 0 | AN24: =SUM(AN25:AN27) -> 0 | AR24: PRECIOS Y CANTIDADES DE RECURSOS REQUERIDOS POR TIPO | BB24: PRECIOS Y CANTIDADES DE RECURSOS REQUERIDOS POR TIPO | BL24: PRECIOS Y CANTIDADES DE RECURSOS REQUERIDOS POR TIPO | BV24: 2.1.2 | BW24: DIFUSIÓN DE POSIBLES IMPACTOS A LAS SALUD DE LAS PERSONAS Y AL AMBIENTE | CA24: =SUM(CA25:CA27) -> 0 | CD24: =SUM(CD25:CD27) -> 0
AF25: 1.2.1 | AG25: REDACCIÓN Y DIFUSIÓN DE NOTAS DE PRENSA EN MEDIOS LOCALES | AH25: DOCUMENTOS | AK25: =+AI25*AJ25 -> 0 | AL25: SERVICIO | AM25: 0.85 | AN25: =+AK25*AM25 -> 0 | BV25: 2.1.2.1 | BW25: REDACCIÓN Y DIFUSIÓN DE NOTAS DE PRENSA EN MEDIOS LOCALES | BX25: Documentos | CA25: =+BY25*BZ25 -> 0 | CB25: SERVICIO | CC25: 0.85 | CD25: =+CA25*CC25 -> 0
B26: Código | C26: Recurso | F26: Unidad | G26: Cantidad | H26: Precio S/. | I26: Parcial S/. | J26: Calificacion | L26: Código | M26: Recurso | P26: Unidad | Q26: Cantidad | R26: Precio S/. | S26: Parcial S/. | T26: Calificacion | V26: Código | W26: Recurso | Z26: Unidad | AA26: Cantidad | AB26: Precio S/. | AC26: Parcial S/. | AD26: Calificacion | AF26: 1.2.2 | AG26: TALLERES DE DIFUSIÓN DE INFORMACIÓN | AH26: TALLERES | AK26: =+AI26*AJ26 -> 0 | AL26: SERVICIO | AM26: 0.85 | AN26: =+AK26*AM26 -> 0 | AR26: Código | AS26: Recurso | AV26: Unidad | AW26: Cantidad | AX26: Precio S/. | AY26: Parcial S/. | AZ26: Calificacion | BB26: Código | BC26: Recurso | BF26: Unidad | BG26: Cantidad | BH26: Precio S/. | BI26: Parcial S/. | BJ26: Calificacion | BL26: Código | BM26: Recurso | BP26: Unidad | BQ26: Cantidad | BR26: Precio S/. | BS26: Parcial S/. | BT26: Calificacion | BV26: 2.1.2.2 | BW26: TALLERES DE DIFUSIÓN DE INFORMACIÓN | BX26: Talleres | CA26: =+BY26*BZ26 -> 0 | CB26: SERVICIO | CC26: 0.85 | CD26: =+CA26*CC26 -> 0
AF27: 1.2.3 | AG27: ELABORACIÓN E IMPRESIÓN DE AFICHES EDUCATIVOS | AH27: MILLAR | AK27: 0 | AL27: SERVICIO | AM27: 0.85 | AN27: 0 | BV27: 2.1.2.3 | BW27: ELABORACIÓN E IMPRESIÓN DE AFICHES EDUCATIVOS | BX27: MIllar | CA27: 0 | CB27: SERVICIO | CC27: 0.85 | CD27: 0
B28: MANO DE OBRA | L28: MANO DE OBRA | V28: MANO DE OBRA | AF28: SUB - TOTAL | AK28: =+AK20+AK24 -> 0 | AN28: =+AN20+AN24 -> 0 | AR28: MANO DE OBRA | BB28: MANO DE OBRA | BL28: MANO DE OBRA | BV28: SUB - TOTAL | CA28: =+CA20+CA24 -> 0 | CD28: =+CD20+CD24 -> 0
AF29: 2 | AG29: CAPACITACIÓN A LOS RECICLADORES | AH29: UM | AI29: CANTIDAD | AJ29: CU (S/) | AK29: COSTO TOTAL | AL29: CALIFICACION | AM29: FC | AN29: PRECIOS SOCIALES | BV29: 2.2 | BW29: CAPACITACIÓN A LOS RECICLADORES | BX29: UM | BY29: CANTIDAD | BZ29: CU (S/) | CA29: COSTO TOTAL | CB29: CALIFICACIÓN | CC29: FC | CD29: PRECIOS SOCIALES
B30: 0147000023 | C30: OPERADOR DE EQUIPO PESADO | F30: hh | I30: =+G30*H30 -> 0 | J30: MOC | L30: 0147000023 | M30: OPERADOR DE EQUIPO PESADO | P30: hh | S30: =+Q30*R30 -> 0 | T30: MOC | V30: 0147010002 | W30: OPERARIO | Z30: hh | AC30: =+AA30*AB30 -> 0 | AD30: MOC | AF30: 2.1 | AG30: CAPACITACIÓN AL RECICLADOR EN ACTIVIDADES DE FORMALIZACIÓN | AH30: CAPACITACIÓN | AK30: =AJ30*AI30 -> 0 | AL30: MOC | AM30: 0.93 | AN30: =AK30*AM30 -> 0 | AR30: 0147000023 | AS30: OPERADOR DE EQUIPO PESADO | AV30: hh | AY30: =+AW30*AX30 -> 0 | AZ30: MOC | BB30: 0147000023 | BC30: OPERADOR DE EQUIPO PESADO | BF30: hh | BI30: =+BG30*BH30 -> 0 | BJ30: MOC | BL30: 0147010002 | BM30: OPERARIO | BP30: hh | BS30: =+BQ30*BR30 -> 0 | BT30: MOC | BV30: 2.2.1 | BW30: CAPACITACIÓN AL RECICLADOR EN ACTIVIDADES DE FORMALIZACIÓN | BX30: CAPACITACIÓN | CA30: =BZ30*BY30 -> 0 | CB30: MOC | CC30: 0.93 | CD30: =CA30*CC30 -> 0
B31: 0147000032 | C31: TOPOGRAFO | F31: hh | I31: =+G31*H31 -> 0 | J31: MOC | L31: 0147010002 | M31: OPERARIO | P31: hh | S31: =+Q31*R31 -> 0 | T31: MOC | V31: 0147010003 | W31: OFICIAL | Z31: hh | AC31: =+AA31*AB31 -> 0 | AD31: MOC | AF31: 2.2 | AG31: CAPACITACIÓN AL RECICLADOR EN HABILIDADES Y COMPETENCIAS LABORALES ALTERNATIVAS | AH31: CAPACITACIÓN | AK31: =AJ31*AI31 -> 0 | AL31: MOC | AM31: 0.93 | AN31: 0 | AR31: 0147000032 | AS31: TOPÓGRAFO | AV31: hh | AY31: =+AW31*AX31 -> 0 | AZ31: MOC | BB31: 0147010002 | BC31: OPERARIO | BF31: hh | BI31: =+BG31*BH31 -> 0 | BJ31: MOC | BL31: 0147010003 | BM31: OFICIAL | BP31: hh | BS31: 0 | BT31: MOC | BV31: 2.2.2 | BW31: CAPACITACIÓN AL RECICLADOR EN HABILIDADES Y COMPETENCIAS LABORALES ALTERNATIVAS | BX31: CAPACITACIÓN | CA31: =BZ31*BY31 -> 0 | CB31: MOC | CC31: 0.93 | CD31: 0
B32: 0147010002 | C32: OPERARIO | F32: hh | I32: 0 | J32: MOC | L32: 0147010003 | M32: OFICIAL | P32: hh | S32: 0 | T32: MOC | V32: 0147010004 | W32: PEÓN | Z32: hh | AC32: 0 | AD32: MONC | AF32: SUB - TOTAL | AK32: =+AK30+AK31 -> 0 | AN32: =+AN30+AN31 -> 0 | AR32: 0147010002 | AS32: OPERARIO | AV32: hh | AY32: 0 | AZ32: MOC | BB32: 0147010003 | BC32: OFICIAL | BF32: hh | BI32: 0 | BJ32: MOC | BL32: 0147010004 | BM32: PEÓN | BP32: hh | BS32: 0 | BT32: MONC | BV32: SUB - TOTAL | CA32: =+CA30+CA31 -> 0 | CD32: =+CD30+CD31 -> 0
B33: 0147010003 | C33: OFICIAL | F33: hh | I33: 0 | J33: MOC | L33: 0147010004 | M33: PEÓN | P33: hh | S33: 0 | T33: MONC | AF33: TOTAL | AK33: =AK32+AK28 -> 0 | AN33: =AN32+AN28 -> 0 | AR33: 0147010003 | AS33: OFICIAL | AV33: hh | AY33: 0 | AZ33: MOC | BB33: 0147010004 | BC33: PEÓN | BF33: hh | BI33: 0 | BJ33: MONC | BV33: TOTAL | CA33: =CA32+CA28 -> 0 | CD33: =CD32+CD28 -> 0
B34: 0147010004 | C34: PEÓN | F34: hh | I34: 0 | J34: MONC | AR34: 0147010004 | AS34: PEÓN | AV34: hh | AY34: 0 | AZ34: MONC
V36: MATERIALES | BL36: MATERIALES
L37: MATERIALES | BB37: MATERIALES
B38: MATERIALES | V38: 0205000022 | W38: GRAVA CANTO RODADO | Z38: m3 | AC38: =+AA38*AB38 -> 0 | AD38: BN | AR38: MATERIALES | BL38: 0205000022 | BM38: GRAVA CANTO RODADO | BP38: m3 | BS38: =+BQ38*BR38 -> 0 | BT38: BN
L39: 0204010010 | M39: ARCILLA IMPERMEABILIZANTE | P39: m3 | S39: =+Q39*R39 -> 0 | T39: BN | V39: 0230180016 | W39: BENTONITA | Z39: m3 | AC39: =+AA39*AB39 -> 0 | AD39: BI | BB39: 0204010010 | BC39: ARCILLA IMPERMEABILIZANTE | BF39: m3 | BI39: =+BG39*BH39 -> 0 | BJ39: BN | BL39: 0230180016 | BM39: BENTONITA | BP39: m3 | BS39: 0 | BT39: BI
B40: 0202000009 | C40: ALAMBRE DE PÚAS PARA CERCO | F40: rll | I40: =+G40*H40 -> 0 | J40: BN | L40: 0205000022 | M40: GRAVA CANTO RODADO | P40: m3 | S40: 0 | T40: BN | V40: 0239050000 | W40: AGUA | Z40: m3 | AC40: 0 | AD40: BN | AR40: 0202000009 | AS40: ALAMBRE DE PUAS PARA CERCO | AV40: rll | AY40: =+AW40*AX40 -> 0 | AZ40: BN | BB40: 0205000022 | BC40: GRAVA CANTO RODADO | BF40: m3 | BI40: =+BG40*BH40 -> 0 | BJ40: BN | BL40: 0239050000 | BM40: AGUA | BP40: m3 | BS40: 0 | BT40: BN
B41: 0202010001 | C41: CLAVOS PARA MADERA CON CABEZA DE 1" | F41: kg | I41: =+G41*H41 -> 0 | J41: BN | L41: 0205000033 | M41: PIEDRA GRANDE | P41: m3 | S41: 0 | T41: BN | V41: 0265000112 | W41: ADAPTADOR DE TUBO DE ACERO DE 8" A 4" | Z41: u | AC41: 0 | AD41: BN | AR41: 0202010001 | AS41: CLAVOS PARA MADERA CON CABEZA DE 1" | AV41: kg | AY41: =+AW41*AX41 -> 0 | AZ41: BN | BB41: 0205000033 | BC41: PIEDRA GRANDE | BF41: m3 | BI41: 0 | BJ41: BN | BL41: 0265000112 | BM41: ADAPTADOR DE TUBO DE ACERO DE 8" A 4" | BP41: u | BS41: 0 | BT41: BN
B42: 0202010002 | C42: CLAVOS PARA MADERA CON CABEZA DE 2 1/2" | F42: kg | I42: 0 | J42: BN | L42: 0205010004 | M42: ARENA GRUESA | P42: m3 | S42: 0 | T42: BN | V42: 0265170100 | W42: TUBO DE ACERO INOX d=2mm | Z42: m | AC42: 0 | AD42: BN | AR42: 0202010002 | AS42: CLAVOS PARA MADERA CON CABEZA DE 2 1/2" | AV42: kg | AY42: 0 | AZ42: BN | BB42: 0205010004 | BC42: ARENA GRUESA | BF42: m3 | BI42: 0 | BJ42: BN | BL42: 0265170100 | BM42: TUBO DE ACERO INOX d=2mm | BP42: m | BS42: 0 | BT42: BN
B43: 0202010003 | C43: CLAVOS PARA MADERA CON CABEZA DE 2" | F43: kg | I43: 0 | J43: BN | L43: 0221000001 | M43: CEMENTO PORTLAND TIPO I (42.5 kg) | P43: bls | S43: 0 | T43: BN | V43: 0265170101 | W43: TUBO DE ACERO INOX d=4" e=5mm | Z43: m | AC43: 0 | AD43: BN | AR43: 0202010003 | AS43: CLAVOS PARA MADERA CON CABEZA DE 2" | AV43: kg | AY43: 0 | AZ43: BN | BB43: 0221000001 | BC43: CEMENTO PORTLAND TIPO I (42.5 kg) | BF43: bls | BI43: 0 | BJ43: BN | BL43: 0265170101 | BM43: TUBO DE ACERO INOX d=4" e=5mm | BP43: m | BS43: 0 | BT43: BN
B44: 0202080011 | C44: PERNO DE ANCLAJE 7/8" X 7" | F44: pza | I44: 0 | J44: BN | L44: 0230180007 | M44: GEOTEXTIL NO TEJIDO DE POLIPROPILENO | P44: m2 | S44: 0 | T44: BI | V44: 0265170102 | W44: TUBO DE ACERO INOX d=8" e=5mm | Z44: m | AC44: 0 | AD44: BN | AR44: 0202080011 | AS44: PERNO DE ANCLAJE 7/8" X 7" | AV44: pza | AY44: 0 | AZ44: BN | BB44: 0230180007 | BC44: GEOTEXTIL NO TEJIDO DE POLIPROPILENO | BF44: m2 | BI44: 0 | BJ44: BI | BL44: 0265170102 | BM44: TUBO DE ACERO INOX d=8" e=5mm | BP44: m | BS44: 0 | BT44: BN
B45: 0204010013 | C45: MATERIAL DE PRESTAMO DE LUGAR | F45: m3 | I45: 0 | J45: BN | L45: 0230180008 | M45: GEOMEMBRANA HDPE 1.50 (mm) | P45: m2 | S45: 0 | T45: BI | V45: 0272000113 | W45: TUBERÍA PEAD 6" | Z45: m | AC45: 0 | AD45: BN | AR45: 0204010013 | AS45: MATERIAL DE PRESTAMO DE LUGAR | AV45: m3 | AY45: 0 | AZ45: BN | BB45: 0230180008 | BC45: GEOMEMBRANA HDPE 1.50 (mm) | BF45: m2 | BI45: 0 | BJ45: BI | BL45: 0272000113 | BM45: TUBERÍA PEAD 6" | BP45: m | BS45: 0 | BT45: BN
B46: 0205000003 | C46: PIEDRA CHANCADA DE 1/2" | F46: m3 | I46: 0 | J46: BN | L46: 0230180016 | M46: BENTONITA | P46: m3 | S46: 0 | T46: BI | V46: 0278010009 | W46: VÁLVULA GLOBO DE ACERO INOXIDABLE 4" | Z46: u | AC46: 0 | AD46: BN | AR46: 0205000003 | AS46: PIEDRA CHANCADA DE 1/2" | AV46: m3 | AY46: 0 | AZ46: BN | BB46: 0230180016 | BC46: BENTONITA | BF46: m3 | BI46: 0 | BJ46: BI | BL46: 0278010009 | BM46: VALVULA GLOBO DE ACERO INOXIDABLE 4" | BP46: u | BS46: 0 | BT46: BN
B47: 0205000010 | C47: PIEDRA MEDIANA DE 4" | F47: m3 | I47: 0 | J47: BN | L47: 0239050000 | M47: AGUA | P47: m3 | S47: 0 | T47: BN | AR47: 0205000010 | AS47: PIEDRA MEDIANA DE 4" | AV47: m3 | AY47: 0 | AZ47: BN | BB47: 0239050000 | BC47: AGUA | BF47: m3 | BI47: 0 | BJ47: BN
B48: 0205000022 | C48: GRAVA CANTO RODADO | F48: m3 | I48: 0 | J48: BN | L48: 0239990004 | M48: TAPA METÁLICA | P48: u | S48: 0 | T48: BN | AR48: 0205000022 | AS48: GRAVA CANTO RODADO | AV48: m3 | AY48: 0 | AZ48: BN | BB48: 0239990004 | BC48: TAPA METÁLICA | BF48: u | BI48: 0 | BJ48: BN
B49: 0205000033 | C49: PIEDRA GRANDE | F49: m3 | I49: 0 | J49: BN | L49: 0272130017 | M49: TUBERÍA HDPE DE 4" | P49: m | S49: 0 | T49: BN | AR49: 0205000033 | AS49: PIEDRA GRANDE | AV49: m3 | AY49: 0 | AZ49: BN | BB49: 0272130017 | BC49: TUBERÍA HDPE DE 4" | BF49: m | BI49: 0 | BJ49: BN
B50: 0205000042 | C50: PIEDRA DE CANTO RODADO DE 6" A 10" | F50: m3 | I50: 0 | J50: BN | L50: 0272130023 | M50: TUBERÍA PEAD DE 8" | P50: m | S50: 0 | T50: BN | V50: EQUIPOS | AR50: 0205000042 | AS50: PIEDRA DE CANTO RODADO DE 6" A 10" | AV50: m3 | AY50: 0 | AZ50: BN | BB50: 0272130023 | BC50: TUBERÍA PEAD DE 8" | BF50: m | BI50: 0 | BJ50: BN | BL50: EQUIPOS
B51: 0205010004 | C51: ARENA GRUESA | F51: m3 | I51: 0 | J51: BN | V51: 0337010001 | W51: HERRAMIENTAS MANUALES | Z51: %MO | AD51: BN | AR51: 0205010004 | AS51: ARENA GRUESA | AV51: m3 | AY51: 0 | AZ51: BN | BL51: 0337010001 | BM51: HERRAMIENTAS MANUALES | BP51: %MO | BT51: BN
B52: 0205010005 | C52: ARENA GRUESA DE RIO | F52: m3 | I52: 0 | J52: BN | AR52: 0205010005 | AS52: ARENA GRUESA DE RIO | AV52: m3 | AY52: 0 | AZ52: BN
B53: 0205010038 | C53: MATERIAL GRANULAR PARA BASE | F53: m3 | I53: 0 | J53: BN | V53: 0348070020 | W53: EQUIPO DE CORTE Y SOLDEO (OXI-ACET) | Z53: hm | AC53: =+AA53*AB53 -> 0 | AD53: SERV | AR53: 0205010038 | AS53: MATERIAL GRANULAR PARA BASE | AV53: m3 | AY53: 0 | AZ53: BN | BL53: 0348070020 | BM53: EQUIPO DE CORTE Y SOLDEO (OXI-ACET) | BP53: hm | BS53: =+BQ53*BR53 -> 0 | BT53: SERV
B54: 0205300072 | C54: MATERIAL GRANULAR PARA RELLENOS | F54: m3 | I54: 0 | J54: BN | L54: EQUIPOS | V54: 0349040108 | W54: CAMIÓN VOLQUETE 330 HP 15m3 | Z54: h | AC54: =+AA54*AB54 -> 0 | AD54: SERV | AR54: 0205300072 | AS54: MATERIAL GRANULAR PARA RELLENOS | AV54: m3 | AY54: 0 | AZ54: BN | BB54: EQUIPOS | BL54: 0349040108 | BM54: CAMIÓN VOLQUETE 330 HP 15m3 | BP54: h | BS54: 0 | BT54: SERV
B55: 0205300073 | C55: SUELO VEGETAL DE LUGAR | F55: m3 | I55: 0 | J55: BN | L55: 0337010001 | M55: HERRAMIENTAS MANUALES | P55: %MO | T55: BN | V55: 0349060056 | W55: RETROEXCAVADORA 195 HP 1.30m3 | Z55: hm | AC55: 0 | AD55: SERV | AR55: 0205300073 | AS55: SUELO VEGETAL DE LUGAR | AV55: m3 | AY55: 0 | AZ55: BN | BB55: 0337010001 | BC55: HERRAMIENTAS MANUALES | BF55: %MO | BJ55: BN | BL55: 0349060056 | BM55: RETROEXCAVADORA 195 HP 1.30m3 | BP55: hm | BS55: 0 | BT55: SERV
B56: 0221000001 | C56: CEMENTO PORTLAND TIPO I (42.5 kg) | F56: bls | I56: 0 | J56: BN | AR56: 0221000001 | AS56: CEMENTO PORTLAND TIPO I (42.5 kg) | AV56: bls | AY56: 0 | AZ56: BN
B57: 0226040003 | C57: CANDADO FORTE 50 mm | F57: u | I57: 0 | J57: BN | L57: 0349040108 | M57: CAMIÓN VOLQUETE 330 HP 15m3 | P57: h | S57: =+Q57*R57 -> 0 | T57: SERV | AR57: 0226040003 | AS57: CANDADO FORTE 50 mm | AV57: u | AY57: 0 | AZ57: BN | BB57: 0349040108 | BC57: CAMIÓN VOLQUETE 330 HP 15m3 | BF57: h | BI57: =+BG57*BH57 -> 0 | BJ57: SERV
B58: 0226080005 | C58: BISAGRA DE FIERRO DE 4" | F58: u | I58: 0 | J58: BN | L58: 0349060056 | M58: RETROEXCAVADORA 195 HP 1.30m3 | P58: hm | S58: 0 | T58: SERV | AR58: 0226080005 | AS58: BISAGRA DE FIERRO DE 4" | AV58: u | AY58: 0 | AZ58: BN | BB58: 0349060056 | BC58: RETROEXCAVADORA 195 HP 1.30m3 | BF58: hm | BI58: 0 | BJ58: SERV
B59: 0226100025 | C59: CERROJO 6" HECHIZO | F59: u | I59: 0 | J59: BN | L59: 0349100009 | M59: MEZCLADORA DE CONCRETO TROMPO 18HP 7 p3 | P59: hm | S59: 0 | T59: SERV | V59: SUBCONTRATOS | AR59: 0226100025 | AS59: CERROJO 6" HECHIZO | AV59: u | AY59: 0 | AZ59: BN | BB59: 0349100009 | BC59: MEZCLADORA DE CONCRETO TROMPO 18HP 7 p3 | BF59: hm | BI59: 0 | BJ59: SERV | BL59: SUBCONTRATOS
B60: 0229060005 | C60: YESO DE 28 Kg | F60: bls | I60: 0 | J60: BN | AR60: 0229060005 | AS60: YESO DE 28 Kg | AV60: bls | AY60: 0 | AZ60: BN
B61: 0229740003 | C61: ÁRBOL NATIVO DE LA ZONA | F61: u | I61: 0 | J61: BN | V61: 0401020086 | W61: SC PERFORACIÓN DE POZOS PARA EVACUACION DE GASES | Z61: m | AC61: =+AA61*AB61 -> 0 | AD61: SERV | AR61: 0229740003 | AS61: ÁRBOL NATIVO DE LA ZONA | AV61: u | AY61: 0 | AZ61: BN | BL61: 0401020086 | BM61: SC PERFORACIÓN DE POZOS PARA EVACUACIÓN DE GASES | BP61: m | BS61: =+BQ61*BR61 -> 0 | BT61: SERV
B62: 0229740004 | C62: ARBUSTO NATIVO DE LA ZONA | F62: u | I62: 0 | J62: BN | AR62: 0229740004 | AS62: ARBUSTO NATIVO DE LA ZONA | AV62: u | AY62: 0 | AZ62: BN
B63: 0230180007 | C63: GEOTEXTIL NO TEJIDO DE POLIPROPILENO | F63: m2 | I63: 0 | J63: BI | L63: SUBCONTRATOS | AR63: 0230180007 | AS63: GEOTEXTIL NO TEJIDO DE POLIPROPILENO | AV63: m2 | AY63: 0 | AZ63: BI | BB63: SUBCONTRATOS
B64: 0230180017 | C64: GEOTEXTIL CON BENTONITA | F64: m2 | I64: 0 | J64: BI | AR64: 0230180017 | AS64: GEOTEXTIL CON BENTONITA | AV64: m2 | AY64: 0 | AZ64: BI
B65: 0230480040 | C65: CINTA PLÁSTICA PARA SEÑAL DE SEGURIDAD DE OBRA | F65: m | I65: 0 | J65: BN | L65: 0401020087 | M65: SC PERFORACIÓN DE POZOS PARA SISTEMA DE MONITOREO | P65: m | S65: =+Q65*R65 -> 0 | T65: SERV | AR65: 0230480040 | AS65: CINTA PLÁSTICA PARA SEÑAL DE SEGURIDAD DE OBRA | AV65: m | AY65: 0 | AZ65: BN | BB65: 0401020087 | BC65: SC PERFORACIÓN DE POZOS PARA SISTEMA DE MONITOREO | BF65: m | BI65: =+BG65*BH65 -> 0 | BJ65: SERV
B66: 0230850001 | C66: SANITARIO PORTÁTIL (BAÑOS QUIMICOS) | F66: u | I66: 0 | J66: BN | AR66: 0230850001 | AS66: SANITARIO PORTATIL (BAÑOS QUIMICOS) | AV66: u | AY66: 0 | AZ66: BN
B67: 0230990080 | C67: WINCHA | F67: u | I67: 0 | J67: BN | AR67: 0230990080 | AS67: WINCHA | AV67: u | AY67: 0 | AZ67: BN
B68: 0232000056 | C68: FLETE TERRESTRE | F68: glb | I68: 0 | J68: CI | AR68: 0232000056 | AS68: FLETE TERRESTRE | AV68: glb | AY68: 0 | AZ68: CI
B69: 0238000000 | C69: HORMIGÓN | F69: m3 | I69: 0 | J69: BN | AR69: 0238000000 | AS69: HORMIGÓN | AV69: m3 | AY69: 0 | AZ69: BN
B70: 0239020075 | C70: LIJA PARA MADERA | F70: u | I70: 0 | J70: BN | AR70: 0239020075 | AS70: LIJA PARA MADERA | AV70: u | AY70: 0 | AZ70: BN
B71: 0239050000 | C71: AGUA | F71: m3 | I71: 0 | J71: BN | AR71: 0239050000 | AS71: AGUA | AV71: m3 | AY71: 0 | AZ71: BN
B72: 0243040000 | C72: MADERA TORNILLO | F72: p2 | I72: 0 | J72: BN | AR72: 0243040000 | AS72: MADERA TORNILLO | AV72: p2 | AY72: 0 | AZ72: BN
B73: 0243040004 | C73: CASETA DE MADERA TORNILLO ADICIONAL TECHADA | F73: m2 | I73: 0 | J73: BN | AR73: 0243040004 | AS73: CASETA DE MADERA TORNILLO ADICIONAL TECHADA | AV73: m2 | AY73: 0 | AZ73: BN
B74: 0243040005 | C74: MADERA 3" X 3 m | F74: pza | I74: 0 | J74: BN | AR74: 0243040005 | AS74: MADERA 3" X 3 m | AV74: pza | AY74: 0 | AZ74: BN
B75: 0244010000 | C75: ESTACA DE MADERA TORNILLO TRATADA | F75: p2 | I75: 0 | J75: BN | AR75: 0244010000 | AS75: ESTACA DE MADERA TORNILLO TRATADA | AV75: p2 | AY75: 0 | AZ75: BN
B76: 0244030021 | C76: TRIPLAY DE 4' X 8' X 4 mm | F76: pl | I76: 0 | J76: BN | AR76: 0244030021 | AS76: TRIPLAY DE 4' X 8' X 4 mm | AV76: pl | AY76: 0 | AZ76: BN
B77: 0245010007 | C77: MADERA PARA ENCOFRADO Y CARPINTERIA | F77: p2 | I77: 0 | J77: BN | AR77: 0245010007 | AS77: MADERA PARA ENCOFRADO Y CARPINTERIA | AV77: p2 | AY77: 0 | AZ77: BN
B78: 0246050003 | C78: MALLA HEXAGONAL PARA GALLINERO 1 1/2" | F78: m2 | I78: 0 | J78: BN | AR78: 0246050003 | AS78: MALLA HEXAGONAL PARA GALLINERO 1 1/2" | AV78: m2 | AY78: 0 | AZ78: BN
B79: 0246900002 | C79: GAVIÓN T.CAJA COC:10x12 CAL:3.5MM 1.5X1.0M TRIPLE ZINC + PVC | F79: pza | I79: 0 | J79: BN | AR79: 0246900002 | AS79: GAVIÓN T.CAJA COC:10x12 CAL:3.5MM 1.5X1.0M TRIPLE ZINC + PVC | AV79: pza | AY79: 0 | AZ79: BN
I80: 0
B81: 0254060037 | C81: PINTURA ESMALTE SINTÉTICO | F81: gal | I81: 0 | J81: BN | AR81: 0254060037 | AS81: PINTURA ESMALTE SINTETICO | AV81: gal | AY81: 0 | AZ81: BN
B82: 0254080000 | C82: BARNIZ MARINO | F82: gal | I82: 0 | J82: BN | AR82: 0254080000 | AS82: BARNIZ MARINO | AV82: gal | AY82: 0 | AZ82: BN
B83: 0254720002 | C83: PRESERVANTE DE MADERA | F83: gal | I83: 0 | J83: BN | AR83: 0254720002 | AS83: PRESERVANTE DE MADERA | AV83: gal | AY83: 0 | AZ83: BN
B84: 0272000113 | C84: TUBERÍA PEAD 6" | F84: m | I84: 0 | J84: BN | AR84: 0272000113 | AS84: TUBERÍA PEAD 6" | AV84: m | AY84: 0 | AZ84: BN
B88: EQUIPOS | AR88: EQUIPOS
B89: 0337010001 | C89: HERRAMIENTAS MANUALES | F89: %MO | J89: BN | AR89: 0337010001 | AS89: HERRAMIENTAS MANUALES | AV89: %MO | AZ89: BN
B91: 0337540001 | C91: MIRAS Y JALONES | F91: hm | I91: =+G91*H91 -> 0 | J91: BN | AR91: 0337540001 | AS91: MIRAS Y JALONES | AV91: hm | AY91: =+AW91*AX91 -> 0 | AZ91: BN
B92: 0348040010 | C92: CAMIÓN PLATAFORMA 4 X 2 122 HP 8 ton | F92: hm | I92: =+G92*H92 -> 0 | J92: SERV | AR92: 0348040010 | AS92: CAMIÓN PLATAFORMA 4 X 2 122 HP 8 ton | AV92: hm | AY92: 0 | AZ92: SERV
B93: 0348040017 | C93: CAMIÓN SEMITRAYLER 6 X 4 330 HP 35 ton | F93: hm | I93: 0 | J93: SERV | AR93: 0348040017 | AS93: CAMIÓN SEMITRAYLER 6 X 4 330 HP 35 ton | AV93: hm | AY93: 0 | AZ93: SERV
B94: 0348120001 | C94: CAMIÓN CISTERNA 4 X 2 (AGUA) 1,500 gl | F94: hm | I94: 0 | J94: SERV | AR94: 0348120001 | AS94: CAMIÓN CISTERNA 4 X 2 (AGUA) 1,500 gl | AV94: hm | AY94: 0 | AZ94: SERV
B95: 0348380001 | C95: TANQUE AGUA DE 1100 Lts | F95: pza | I95: 0 | J95: SERV | AR95: 0348380001 | AS95: TANQUE AGUA DE 1100 Lts | AV95: pza | AY95: 0 | AZ95: SERV
B96: 0349030013 | C96: RODILLO LISO VIBRATORIO AUTOPROPULSADO 70-100 HP 7-9 ton | F96: hm | I96: 0 | J96: SERV | AR96: 0349030013 | AS96: RODILLO LISO VIBRATORIO AUTOPROPULSADO 70-100 HP 7-9 ton | AV96: hm | AY96: 0 | AZ96: SERV
B98: 0349040033 | C98: TRACTOR DE ORUGAS DE 140-160 HP | F98: hm | I98: 0 | J98: SERV | AR98: 0349040033 | AS98: TRACTOR DE ORUGAS DE 140-160 HP | AV98: hm | AY98: 0 | AZ98: SERV
B99: 0349040034 | C99: TRACTOR DE ORUGAS DE 190-240 HP | F99: hm | I99: 0 | J99: SERV | AR99: 0349040034 | AS99: TRACTOR DE ORUGAS DE 190-240 HP | AV99: hm | AY99: 0 | AZ99: SERV
B100: 0349040108 | C100: CAMIÓN VOLQUETE 330 HP 15m3 | F100: h | I100: 0 | J100: SERV | AR100: 0349040108 | AS100: CAMIÓN VOLQUETE 330 HP 15m3 | AV100: h | AY100: 0 | AZ100: SERV
B101: 0349060056 | C101: RETROEXCAVADORA 195 HP 1.30m3 | F101: hm | I101: 0 | J101: SERV | AR101: 0349060056 | AS101: RETROEXCAVADORA 195 HP 1.30m3 | AV101: hm | AY101: 0 | AZ101: SERV
B102: 0349090000 | C102: MOTONIVELADORA DE 125 HP | F102: hm | I102: 0 | J102: SERV | AR102: 0349090000 | AS102: MOTONIVELADORA DE 125 HP | AV102: hm | AY102: 0 | AZ102: SERV
B103: 0349100009 | C103: MEZCLADORA DE CONCRETO TROMPO 18HP 7 p3 | F103: hm | I103: 0 | J103: SERV | AR103: 0349100009 | AS103: MEZCLADORA DE CONCRETO TROMPO 18HP 7 p3 | AV103: hm | AY103: 0 | AZ103: SERV
B104: 0349190003 | C104: NIVEL TOPOGRÁFICO CON TRÍPODE | F104: he | I104: 0 | J104: SERV | AR104: 0349190003 | AS104: NIVEL TOPOGRÁFICO CON TRIPODE | AV104: he | AY104: 0 | AZ104: SERV
B105: 0349880003 | C105: TEODOLITO | F105: hm | I105: 0 | J105: SERV | AR105: 0349880003 | AS105: TEODOLITO | AV105: hm | AY105: 0 | AZ105: SERV

Sheet O&M
C2: ALTERNATIVA N° 01 - COSTOS DE OPERACIÓN Y MANTENIMIENTO PROYECTO DE RECUPERACIÓN DE ÁREAS DEGRADADAS POR RESIDUOS SÓLIDOS | Q2: ALTERNATIVA N° 02 - COSTOS DE OPERACIÓN Y MANTENIMIENTO PROYECTO DE RECUPERACIÓN DE ÁREAS DEGRADADAS POR RESIDUOS SÓLIDOS
B4: ÍTEM | C4: DESCRIPCIÓN | D4: UNIDAD | E4: CANTIDAD | F4: COSTO UNITARIO (S/. ) | G4: PRECIOS DE MERCADO (S/ ) | H4: TIPO DE BIEN O SERVICIO | I4: FACTOR CORRECCIÓN | J4: PRECIOS SOCIALES (S/) | P4: ÍTEM | Q4: DESCRIPCIÓN | R4: UNIDAD | S4: CANTIDAD | T4: COSTO UNITARIO (S/. ) | U4: PRECIOS DE MERCADO (S/ ) | V4: TIPO DE BIEN O SERVICIO | W4: FACTOR CORRECCIÓN | X4: PRECIOS SOCIALES (S/)
B5: 1 | C5: OPERACIÓN | G5: =G6+G8+G13+G28 -> 0 | J5: =J6+J8+J13+J28 -> 0 | P5: 1 | Q5: OPERACIÓN | U5: =U6+U8+U13+U28 -> 0 | X5: =X6+X8+X13+X28 -> 0 | AE5: Parámetros y Factores de Corrección para Precios Sociales
B6: 1.1 | C6: Personal | G6: =G7 -> 0 | J6: =SUM(J7:J7) -> 0 | P6: 1.1 | Q6: Personal | U6: =U7 -> 0 | X6: =SUM(X7:X7) -> 0 | AE6: Tasa Ad Valorem | AH6: % | AI6: 0.12
B7: 1.1.2 | C7: Operarios (02) | D7: Horas/año | E7: =+AJ34 -> 636 | G7: =E7*F7 -> 0 | H7: Mano de obra calificada | I7: =+AI23 -> 0.9259259259 | J7: =+I7*G7 -> 0 | P7: 1.1.2 | Q7: Operarios (02) | R7: Horas/año | S7: =+E7 -> 636 | U7: =S7*T7 -> 0 | V7: Mano de obra calificada | W7: =+I7 -> 0.9259259259 | X7: =+W7*U7 -> 0 | AE7: Tasa IGV | AH7: % | AI7: 0.18
B8: 1.2 | C8: Equipos y/o Herramientas | G8: =SUM(G9:G12) -> 0 | J8: =+SUM(J9:J12) -> 0 | P8: 1.2 | Q8: Equipos y/o Herramientas | U8: =SUM(U9:U12) -> 0 | X8: =+SUM(X9:X12) -> 0 | AE8: Tasa Seguro | AH8: % | AI8: 0.0125
B9: 1.2.1.1 | C9: Picos | D9: unidad | E9: 1 | G9: =E9*F9 -> 0 | H9: Bienes nacionales | I9: =+$AI$18 -> 0.8474576271 | J9: =+G9*I9 -> 0 | P9: 1.2.1.1 | Q9: Picos | R9: unidad | S9: =+E9 -> 1 | U9: =S9*T9 -> 0 | V9: Bienes nacionales | W9: =+I9 -> 0.8474576271 | X9: =+U9*W9 -> 0 | AE9: Tasa de Inflación | AH9: % | AI9: 0
B10: 1.2.1.2 | C10: Lampas | D10: unidad | E10: 1 | G10: =E10*F10 -> 0 | H10: Bienes nacionales | I10: =+$AI$18 -> 0.8474576271 | J10: =+G10*I10 -> 0 | P10: 1.2.1.2 | Q10: Lampas | R10: unidad | S10: =+E10 -> 1 | U10: =S10*T10 -> 0 | V10: Bienes nacionales | W10: =+I10 -> 0.8474576271 | X10: =+U10*W10 -> 0 | AE10: Mano de Obra no Calificada | AH10: Urbano | AI10: Rural
B11: 1.2.1.3 | C11: Carretilla de construcción | D11: unidad | E11: 1 | G11: =E11*F11 -> 0 | H11: Bienes nacionales | I11: =+$AI$18 -> 0.8474576271 | J11: =+G11*I11 -> 0 | P11: 1.2.1.3 | Q11: Carretilla de construcción | R11: unidad | S11: 1 | U11: =S11*T11 -> 0 | V11: Bienes nacionales | W11: 0.8474576271 | X11: =+U11*W11 -> 0 | AE11: Lima Metropolitana | AH11: 0.86 | AI11: ---
B12: 1.2.1.4 | C12: Rastrillo metálico | D12: unidad | E12: 1 | G12: =E12*F12 -> 0 | H12: Bienes nacionales | I12: =+$AI$18 -> 0.8474576271 | J12: =+G12*I12 -> 0 | P12: 1.2.1.4 | Q12: Rastrillo metálico | R12: unidad | S12: 1 | U12: =S12*T12 -> 0 | V12: Bienes nacionales | W12: 0.8474576271 | X12: =+U12*W12 -> 0 | AE12: Resto de Costa | AH12: 0.68 | AI12: 0.57
B13: 1.3 | C13: Bienes de Consumo | G13: =G14+G17 -> 0 | J13: =+J14+J17 -> 0 | P13: 1.3 | Q13: Bienes de Consumo | U13: =U14+U17 -> 0 | X13: =+X14+X17 -> 0 | AE13: Sierra | AH13: 0.6 | AI13: 0.41
B14: 1.3.1 | C14: Insumos | G14: =SUM(G15:G16) -> 0 | J14: =SUM(J15:J16) -> 0 | P14: 1.3.1 | Q14: Insumos | U14: =SUM(U15:U16) -> 0 | X14: =SUM(X15:X16) -> 0 | AE14: Selva | AH14: 0.63 | AI14: 0.49
B15: 1.3.1.1 | C15: Combustible camioneta | D15: litros | E15: =+AJ37 -> 4.902 | G15: =E15*F15 -> 0 | H15: Combustible | I15: =+AI19 -> 0.66 | J15: =+G15*I15 -> 0 | P15: 1.3.1.1 | Q15: Combustible camioneta | R15: litros | S15: =+E15 -> 4.902 | U15: =S15*T15 -> 0 | V15: Combustible | W15: =+I15 -> 0.66 | X15: =+U15*W15 -> 0
B16: 1.3.1.2 | C16: Combustible grupo electrógeno | D16: litros | E16: =+AJ38 -> 214.32 | G16: =E16*F16 -> 0 | H16: Combustible | I16: =+AI19 -> 0.66 | J16: =+G16*I16 -> 0 | P16: 1.3.1.2 | Q16: Combustible grupo electrógeno | R16: litros | S16: =+E16 -> 214.32 | U16: =S16*T16 -> 0 | V16: Combustible | W16: =+I16 -> 0.66 | X16: =+U16*W16 -> 0 | AE16: Factores de Corrección por Tipo de Bien o Servicio
B17: 1.3.2 | C17: Vestuario | G17: =SUM(G18:G27) -> 0 | J17: =SUM(J18:J27) -> 0 | P17: 1.3.2 | Q17: Vestuario | U17: =SUM(U18:U27) -> 0 | X17: =SUM(X18:X27) -> 0 | AE17: Bienes Importados | AI17: 0.82
B18: 1.3.2.2.1 | C18: Camisaco de 100% algodón, con cintas de seguridad | D18: unidad | E18: 2 | G18: =E18*F18 -> 0 | H18: Bienes nacionales | I18: =$AI$18 -> 0.8474576271 | J18: =+G18*I18 -> 0 | P18: 1.3.2.2.1 | Q18: Camisaco de 100% algodón, con cintas de seguridad | R18: unidad | S18: =+E18 -> 2 | U18: =S18*T18 -> 0 | V18: Bienes nacionales | W18: =+I18 -> 0.8474576271 | X18: =+U18*W18 -> 0 | AE18: Bienes Nacionales | AI18: =1/1.18 -> 0.8474576271
B19: 1.3.2.2.2 | C19: Pantalón de drill 100% algodón | D19: unidad | E19: 2 | G19: =E19*F19 -> 0 | H19: Bienes nacionales | I19: 0.8474576271 | J19: 0 | P19: 1.3.2.2.2 | Q19: Pantalón de drill 100% algodón | R19: unidad | S19: =+E19 -> 2 | U19: =S19*T19 -> 0 | V19: Bienes nacionales | W19: =+I19 -> 0.8474576271 | X19: 0 | AE19: Combustibles | AI19: 0.66
B20: 1.3.2.2.3 | C20: Polos 100% algodón | D20: unidad | E20: 3 | G20: =E20*F20 -> 0 | H20: Bienes nacionales | I20: 0.8474576271 | J20: 0 | P20: 1.3.2.2.3 | Q20: Polos 100% algodón | R20: unidad | S20: 3 | U20: =S20*T20 -> 0 | V20: Bienes nacionales | W20: 0.8474576271 | X20: 0 | AE20: Costos Indirectos (gastos administrativos y financieros) | AI20: =1/1.18 -> 0.8474576271
B21: 1.3.2.2.4 | C21: Gorro taslan tejido engomado impermeable, forro interior algodón | D21: unidad | E21: 2 | G21: =E21*F21 -> 0 | H21: Bienes nacionales | I21: 0.8474576271 | J21: 0 | P21: 1.3.2.2.4 | Q21: Gorro taslan tejido engomado impermeable, forro interior algodón | R21: unidad | S21: 2 | U21: =S21*T21 -> 0 | V21: Bienes nacionales | W21: 0.8474576271 | X21: 0 | AE21: Mano de Obra no Calificada | AI21: =AH13 -> 0.6
B22: 1.3.2.2.5 | C22: Poncho material taslan enjebado 100% impermeable | D22: unidad | E22: 1 | G22: =E22*F22 -> 0 | H22: Bienes nacionales | I22: 0.8474576271 | J22: 0 | P22: 1.3.2.2.5 | Q22: Poncho material taslan enjebado 100% impermeable | R22: unidad | S22: 1 | U22: =S22*T22 -> 0 | V22: Bienes nacionales | W22: 0.8474576271 | X22: 0 | AE22: Servicios (18%) | AI22: =1/(1.18) -> 0.8474576271
B23: 1.3.2.2.6 | C23: Lentes con mica de policarbonato transpararentes con regulador | D23: unidad | E23: 2 | G23: =E23*F23 -> 0 | H23: Bienes nacionales | I23: 0.8474576271 | J23: 0 | P23: 1.3.2.2.6 | Q23: Lentes con mica de policarbonato transpararentes con regulador | R23: unidad | S23: 2 | U23: =S23*T23 -> 0 | V23: Bienes nacionales | W23: 0.8474576271 | X23: 0 | AE23: Mano de Obra Calificada (8%) | AI23: =1/(1.08) -> 0.9259259259
B24: 1.3.2.2.7 | C24: Guantes de cuero reforzados | D24: pares | E24: 3 | G24: 0 | H24: Bienes nacionales | I24: 0.8474576271 | J24: 0 | P24: 1.3.2.2.7 | Q24: Guantes de cuero reforzados | R24: pares | S24: 3 | U24: 0 | V24: Bienes nacionales | W24: 0.8474576271 | X24: 0
B25: 1.3.2.2.8 | C25: Mascarilla de doble filtro contra polvo y gases | D25: unidad | E25: 1 | G25: 0 | H25: Bienes nacionales | I25: 0.8474576271 | J25: 0 | P25: 1.3.2.2.8 | Q25: Mascarilla de doble filtro contra polvo y gases | R25: unidad | S25: 1 | U25: 0 | V25: Bienes nacionales | W25: 0.8474576271 | X25: 0 | AD25: Operación | AE25: Frecuencia | AG25: Dedicación | AH25: N° Operaciones Invierno | AI25: N° Operaciones Verano | AJ25: Dedicación
B26: 1.3.2.2.9 | C26: Filtros de respiradores | D26: unidad | E26: 4 | G26: =E26*F26 -> 0 | H26: Bienes nacionales | I26: 0.8474576271 | J26: 0 | P26: 1.3.2.2.9 | Q26: Filtros de respiradores | R26: unidad | S26: 4 | U26: =S26*T26 -> 0 | V26: Bienes nacionales | W26: 0.8474576271 | X26: 0 | AE26: Invierno (lluvias) | AF26: Verano (s/lluvias) | AG26: Horas/operación | AJ26: Horas/año
B27: 1.3.2.2.10 | C27: Botín de cuero | D27: pares | E27: 2 | G27: 0 | H27: Bienes nacionales | I27: 0.8474576271 | J27: 0 | P27: 1.3.2.2.10 | Q27: Botín de cuero | R27: pares | S27: 2 | U27: =S27*T27 -> 0 | V27: Bienes nacionales | W27: 0.8474576271 | X27: 0 | AD27: Depresiones | AE27: Semanal | AF27: Mensual | AG27: 1 | AH27: 26 | AI27: 6 | AJ27: =(AG27*AH27)+(AG27*AI27) -> 32
B28: 1.4 | C28: Servicios | G28: =SUM(G29:G30) -> 0 | J28: =SUM(J29:J30) -> 0 | P28: 1.4 | Q28: Servicios | U28: =SUM(U29:U30) -> 0 | X28: =SUM(X29:X30) -> 0 | AD28: Grietas | AE28: Semanal | AF28: Mensual | AG28: 1 | AH28: 26 | AI28: 6 | AJ28: 32
B29: 1.4.1 | C29: Análisis según el plan de monitoreo y control | D29: servicio | E29: 1 | G29: 0 | H29: Servicio | I29: =+AI22 -> 0.8474576271 | J29: =+G29*I29 -> 0 | P29: 1.4.1 | Q29: Análisis según el plan de monitoreo y control | R29: servicio | S29: =+E29 -> 1 | U29: =S29*T29 -> 0 | V29: Servicio | W29: =+I29 -> 0.8474576271 | X29: =+U29*W29 -> 0 | AD29: Erosiones | AE29: Semanal | AF29: Mensual | AG29: 1 | AH29: 26 | AI29: 6 | AJ29: 32
B30: 1.4.2 | C30: Servicio para el transporte de lixiviados | D30: servicio | E30: =+AE37 -> 38 | G30: 0 | H30: Servicio | I30: =+AI22 -> 0.8474576271 | J30: =+G30*I30 -> 0 | P30: 1.4.2 | Q30: Servicio para el transporte de lixiviados | R30: servicio | S30: =+E30 -> 38 | U30: 0 | V30: Servicio | W30: =+I30 -> 0.8474576271 | X30: =+U30*W30 -> 0 | AD30: Infraestructuras | AE30: Semanal | AF30: Mensual | AG30: 1 | AH30: 26 | AI30: 6 | AJ30: 32
B31: 2 | C31: MANTENIMIENTO | G31: =G32+G38 -> 0 | J31: =J32+J38 -> 0 | P31: 2 | Q31: MANTENIMIENTO | U31: =U32+U38 -> 0 | X31: =X32+X38 -> 0 | AD31: Extracción lixiviados | AE31: Semanal | AF31: Quincenal | AG31: 4 | AH31: 26 | AI31: 12 | AJ31: 152
B32: 2.1 | C32: Bienes de Consumo | G32: =SUM(G33:G37) -> 0 | J32: =SUM(J33:J37) -> 0 | P32: 2.1 | Q32: Bienes de Consumo | U32: =SUM(U33:U37) -> 0 | X32: =SUM(X33:X37) -> 0 | AD32: Quema biogás | AE32: Semanal | AF32: Quincenal | AG32: 1 | AH32: 26 | AI32: 12 | AJ32: 38
B33: 2.1.1 | C33: Material p/mantenimiento de la superficie | D33: unidad | E33: 1 | G33: =E33*F33 -> 0 | H33: Bienes nacionales | I33: =+$AI$18 -> 0.8474576271 | J33: =+G33*I33 -> 0 | P33: 2.1.1 | Q33: Material p/mantenimiento de la superficie | R33: unidad | S33: 1 | U33: =S33*T33 -> 0 | V33: Bienes nacionales | W33: =+I33 -> 0.8474576271 | X33: =+U33*W33 -> 0 | AH33: Total (01 operario) | AJ33: =SUM(AJ27:AJ32) -> 318
B34: 2.1.2 | C34: Material p/mantenimiento de las infraestructuras manejo de gases | D34: unidad | E34: 1 | G34: 0 | H34: Bienes nacionales | I34: =+$AI$18 -> 0.8474576271 | J34: 0 | P34: 2.1.2 | Q34: Material p/mantenimiento de las infraestructuras manejo de gases | R34: unidad | S34: 1 | U34: 0 | V34: Bienes nacionales | W34: =+I34 -> 0.8474576271 | X34: 0 | AH34: Total (02 operarios) | AJ34: =+AJ33*2 -> 636
B35: 2.1.3 | C35: Material p/mantenimiento de las infraestructuras manejo de lixiviados | D35: unidad | E35: 1 | G35: 0 | H35: Bienes nacionales | I35: =+$AI$18 -> 0.8474576271 | J35: 0 | P35: 2.1.3 | Q35: Material p/mantenimiento de las infraestructuras manejo de lixiviados | R35: unidad | S35: 1 | U35: 0 | V35: Bienes nacionales | W35: 0.8474576271 | X35: 0
B36: 2.1.4 | C36: Material p/mantenimiento del cercado perimétrico | D36: unidad | E36: 1.00 | G36: 0 | H36: Bienes nacionales | I36: =+$AI$18 -> 0.8474576271 | J36: =+G36*I36 -> 0 | P36: 2.1.4 | Q36: Material p/mantenimiento del cercado perimétrico | R36: unidad | S36: 1.00 | U36: 0 | V36: Bienes nacionales | W36: 0.8474576271 | X36: =+U36*W36 -> 0 | AD36: Insumo | AE36: Usos al año | AF36: Km/año | AG36: Horas/año | AH36: Consumo | AJ36: Litros/año
B37: 2.1.5 | C37: Material p/mantenimiento de las vías de acceso | D37: unidad | E37: 1.00 | G37: 0 | H37: Bienes nacionales | I37: =+$AI$18 -> 0.8474576271 | J37: =+G37*I37 -> 0 | P37: 2.1.5 | Q37: Material p/mantenimiento de las vías de acceso | R37: unidad | S37: 1.00 | U37: 0 | V37: Bienes nacionales | W37: 0.8474576271 | X37: =+U37*W37 -> 0 | AD37: Combustible/camioneta | AE37: =+AH31+AI31 -> 38 | AF37: =+AE37*AF40 -> 57 | AH37: 8.6 | AI37: litros / 100 km | AJ37: =AF37*AH37/100 -> 4.902
B38: 2.2 | C38: Servicios | G38: =SUM(G39:G40) -> 0 | J38: =SUM(J39:J40) -> 0 | P38: 2.2 | Q38: Servicios | U38: =SUM(U39:U40) -> 0 | X38: =SUM(X39:X40) -> 0 | AD38: Combustible/grupo electrógeno | AG38: =AJ31/2 -> 76 | AH38: 2.82 | AI38: litros / hora | AJ38: =AG38*AH38 -> 214.32
B39: 2.1.1 | C39: Mantenimiento del grupo electrógeno | D39: unidad | E39: 1.00 | G39: =E39*F39 -> 0 | H39: Servicio | I39: =+AI22 -> 0.8474576271 | J39: =+G39*I39 -> 0 | P39: 2.1.1 | Q39: Mantenimiento del grupo electrógeno | R39: unidad | S39: 1.00 | U39: =S39*T39 -> 0 | V39: Servicio | W39: =+I39 -> 0.8474576271 | X39: =+U39*W39 -> 0
B40: 2.1.2 | C40: Mantenimiento de la motobomba | D40: unidad | E40: 1.00 | G40: =E40*F40 -> 0 | H40: Servicio | I40: =+AI22 -> 0.8474576271 | J40: =+G40*I40 -> 0 | P40: 2.1.2 | Q40: Mantenimiento de la motobomba | R40: unidad | S40: 1.00 | U40: =S40*T40 -> 0 | V40: Servicio | W40: =+I40 -> 0.8474576271 | X40: =+U40*W40 -> 0 | AD40: Recorrido de camioneta | AF40: 1.5
B41: COSTO DE OPERACIÓN Y MANTENIMIENTO | G41: =G31+G5 -> 0 | J41: =J31+J5 -> 0 | P41: COSTO DE OPERACIÓN Y MANTENIMIENTO | U41: =U31+U5 -> 0 | X41: =X31+X5 -> 0
AD42: Parámetros y Frecuencia de Monitoreo
AD43: Ensayo | AE43: Costo (S/) | AF43: Puntos | AG43: Frecuencia Anual
B44: FLUJO DE COSTOS DE OPERACIÓN Y MANTENIMIENTO A PRECIOS PRIVADOS Y PRECIOS SOCIALES | P44: FLUJO DE COSTOS DE OPERACIÓN Y MANTENIMIENTO A PRECIOS PRIVADOS Y PRECIOS SOCIALES | AD44: ECA Agua | AF44: 2 | AG44: 1
AD45: ECA Suelos | AF45: 1 | AG45: 1
B46: 10 | C46: DESCRIPCIÓN | D46: COSTOS DE OPERACIÓN Y MANTENIMIENTO A PRECIO DE MERCADO (S/.) | N46: TOTAL | P46: 10 | Q46: DESCRIPCIÓN | R46: COSTOS DE OPERACIÓN Y MANTENIMIENTO A PRECIO DE MERCADO (S/.) | AB46: TOTAL | AD46: ECA Aire | AF46: 2 | AG46: 1
D47: 1 | E47: 2 | F47: 3 | G47: 4 | H47: 5 | I47: 6 | J47: 7 | K47: 8 | L47: 9 | M47: 10 | R47: 1 | S47: 2 | T47: 3 | U47: 4 | V47: 5 | W47: 6 | X47: 7 | Y47: 8 | Z47: 9 | AA47: 10 | AD47: Analítica Biogás | AF47: 2 | AG47: 2
B48: 1 | C48: OPERACIÓN | D48: =SUM(D49:D52) -> 0 | E48: 0 | F48: 0 | G48: 0 | H48: 0 | I48: 0 | J48: 0 | K48: 0 | L48: 0 | M48: 0 | N48: 0 | P48: 1 | Q48: OPERACIÓN | R48: =SUM(R49:R52) -> 0 | S48: 0 | T48: 0 | U48: 0 | V48: 0 | W48: 0 | X48: 0 | Y48: 0 | Z48: 0 | AA48: 0 | AB48: 0 | AD48: Analítica Lixiviado | AF48: 2 | AG48: 2
B49: 1.1 | C49: Personal | D49: =+G6*POWER((1+AI9),D47) -> 0 | E49: =+D49*(1+AI9) -> 0 | F49: =+E49*(1+AI9) -> 0 | G49: =+F49*(1+AI9) -> 0 | H49: =+G49*(1+AI9) -> 0 | I49: =+H49*(1+AI9) -> 0 | J49: =+I49*(1+AI9) -> 0 | K49: =+J49*(1+AI9) -> 0 | L49: =+K49*(1+AI9) -> 0 | M49: =+L49*(1+AI9) -> 0 | N49: =SUM(D49:M49) -> 0 | P49: 1.1 | Q49: Personal | R49: =+U6*POWER((1+AW9),R47) -> 0 | S49: =+R49*(1+AW9) -> 0 | T49: =+S49*(1+AW9) -> 0 | U49: =+T49*(1+AW9) -> 0 | V49: =+U49*(1+AW9) -> 0 | W49: =+V49*(1+AW9) -> 0 | X49: =+W49*(1+AW9) -> 0 | Y49: =+X49*(1+AW9) -> 0 | Z49: =+Y49*(1+AW9) -> 0 | AA49: =+Z49*(1+AW9) -> 0 | AB49: =SUM(R49:AA49) -> 0 | AD49: Analítica Aguas | AF49: 1 | AG49: 1
B50: 1.2 | C50: Equipos y/o herramientas | D50: =+G8*POWER((1+AI9),D47) -> 0 | E50: =+D50*(1+AI9) -> 0 | F50: =+E50*(1+AI9) -> 0 | G50: =+F50*(1+AI9) -> 0 | H50: =+G50*(1+AI9) -> 0 | I50: =+H50*(1+AI9) -> 0 | J50: =+I50*(1+AI9) -> 0 | K50: =+J50*(1+AI9) -> 0 | L50: =+K50*(1+AI9) -> 0 | M50: =+L50*(1+AI9) -> 0 | N50: 0 | P50: 1.2 | Q50: Equipos y/o herramientas | R50: =+U8*POWER((1+AW9),R47) -> 0 | S50: =+R50*(1+AW9) -> 0 | T50: =+S50*(1+AW9) -> 0 | U50: =+T50*(1+AW9) -> 0 | V50: =+U50*(1+AW9) -> 0 | W50: =+V50*(1+AW9) -> 0 | X50: =+W50*(1+AW9) -> 0 | Y50: =+X50*(1+AW9) -> 0 | Z50: =+Y50*(1+AW9) -> 0 | AA50: =+Z50*(1+AW9) -> 0 | AB50: 0
B51: 1.3 | C51: Bienes de consumo | D51: =+G13*POWER((1+AI9),D47) -> 0 | E51: =+D51*(1+AI9) -> 0 | F51: =+E51*(1+AI9) -> 0 | G51: =+F51*(1+AI9) -> 0 | H51: =+G51*(1+AI9) -> 0 | I51: =+H51*(1+AI9) -> 0 | J51: =+I51*(1+AI9) -> 0 | K51: =+J51*(1+AI9) -> 0 | L51: =+K51*(1+AI9) -> 0 | M51: =+L51*(1+AI9) -> 0 | N51: 0 | P51: 1.3 | Q51: Bienes de consumo | R51: =+U13*POWER((1+AW9),R47) -> 0 | S51: =+R51*(1+AW9) -> 0 | T51: =+S51*(1+AW9) -> 0 | U51: =+T51*(1+AW9) -> 0 | V51: =+U51*(1+AW9) -> 0 | W51: =+V51*(1+AW9) -> 0 | X51: =+W51*(1+AW9) -> 0 | Y51: =+X51*(1+AW9) -> 0 | Z51: =+Y51*(1+AW9) -> 0 | AA51: =+Z51*(1+AW9) -> 0 | AB51: 0
B52: 1.4 | C52: Servicios | D52: =D77+$G$30 -> 0 | E52: =E77+$G$30 -> 0 | F52: 0 | G52: 0 | H52: 0 | I52: 0 | J52: 0 | K52: 0 | L52: 0 | M52: 0 | N52: 0 | P52: 1.4 | Q52: Servicios | R52: =R77+$G$30 -> 0 | S52: =S77+$G$30 -> 0 | T52: 0 | U52: 0 | V52: 0 | W52: 0 | X52: 0 | Y52: 0 | Z52: 0 | AA52: 0 | AB52: 0
B53: 2 | C53: MATENIMIENTO | D53: =SUM(D54:D55) -> 0 | E53: =SUM(E54:E55) -> 0 | F53: 0 | G53: 0 | H53: 0 | I53: 0 | J53: 0 | K53: 0 | L53: 0 | M53: 0 | N53: =SUM(N54:N55) -> 0 | P53: 2 | Q53: MATENIMIENTO | R53: =SUM(R54:R55) -> 0 | S53: =SUM(S54:S55) -> 0 | T53: 0 | U53: 0 | V53: 0 | W53: 0 | X53: 0 | Y53: 0 | Z53: 0 | AA53: 0 | AB53: =SUM(AB54:AB55) -> 0
B54: 2.1 | C54: Bienes de consumo | D54: =G32 -> 0 | E54: =+D54*(1+AI9) -> 0 | F54: =+E54*(1+AI9) -> 0 | G54: =+F54*(1+AI9) -> 0 | H54: =+G54*(1+AI9) -> 0 | I54: =+H54*(1+AI9) -> 0 | J54: =+I54*(1+AI9) -> 0 | K54: =+J54*(1+AI9) -> 0 | L54: =+K54*(1+AI9) -> 0 | M54: =+L54*(1+AI9) -> 0 | N54: 0 | P54: 2.1 | Q54: Bienes de consumo | R54: =U32 -> 0 | S54: =+R54*(1+AW9) -> 0 | T54: =+S54*(1+AW9) -> 0 | U54: =+T54*(1+AW9) -> 0 | V54: =+U54*(1+AW9) -> 0 | W54: =+V54*(1+AW9) -> 0 | X54: =+W54*(1+AW9) -> 0 | Y54: =+X54*(1+AW9) -> 0 | Z54: =+Y54*(1+AW9) -> 0 | AA54: =+Z54*(1+AW9) -> 0 | AB54: =SUM(R54:AA54) -> 0
B55: 2.2 | C55: Servicios | D55: =+G38 -> 0 | E55: =+D55*(1+$AI$9) -> 0 | F55: =+E55*(1+$AI$9) -> 0 | G55: =+F55*(1+$AI$9) -> 0 | H55: 0 | I55: 0 | J55: 0 | K55: 0 | L55: 0 | M55: 0 | N55: 0 | P55: 2.2 | Q55: Servicios | R55: =+U38 -> 0 | S55: =+R55*(1+$AI$9) -> 0 | T55: =+S55*(1+$AI$9) -> 0 | U55: 0 | V55: 0 | W55: 0 | X55: 0 | Y55: 0 | Z55: 0 | AA55: 0 | AB55: 0
B56: TOTAL DE POST INVERSIÓN | D56: =D53+D48 -> 0 | E56: =E53+E48 -> 0 | F56: 0 | G56: 0 | H56: 0 | I56: 0 | J56: 0 | K56: 0 | L56: 0 | M56: 0 | N56: =N53+N48 -> 0 | P56: TOTAL DE POST INVERSIÓN | R56: =R53+R48 -> 0 | S56: =S53+S48 -> 0 | T56: 0 | U56: 0 | V56: 0 | W56: 0 | X56: 0 | Y56: 0 | Z56: 0 | AA56: 0 | AB56: =AB53+AB48 -> 0
B58: N° | C58: DESCRIPCIÓN | D58: COSTOS DE OPERACIÓN Y MANTENIMIENTO A PRECIOS SOCIALES (S/.) | N58: TOTAL | P58: N° | Q58: DESCRIPCIÓN | R58: COSTOS DE OPERACIÓN Y MANTENIMIENTO A PRECIOS SOCIALES (S/.) | AB58: TOTAL
D59: 1 | E59: 2 | F59: 3 | G59: 4 | H59: 5 | I59: 6 | J59: 7 | K59: 8 | L59: 9 | M59: 10 | R59: 1 | S59: 2 | T59: 3 | U59: 4 | V59: 5 | W59: 6 | X59: 7 | Y59: 8 | Z59: 9 | AA59: 10
B60: 1 | C60: OPERACIÓN | D60: =SUM(D61:D64) -> 0 | E60: =SUM(E61:E64) -> 0 | F60: 0 | G60: 0 | H60: 0 | I60: 0 | J60: 0 | K60: 0 | L60: 0 | M60: 0 | N60: 0 | P60: 1 | Q60: OPERACIÓN | R60: =SUM(R61:R64) -> 0 | S60: =SUM(S61:S64) -> 0 | T60: 0 | U60: 0 | V60: 0 | W60: 0 | X60: 0 | Y60: 0 | Z60: 0 | AA60: 0 | AB60: 0
B61: 1.1 | C61: Personal | D61: =+$J$6*POWER((1+AI9),D59) -> 0 | E61: =+$J$6*POWER((1+AI9),E59) -> 0 | F61: =+$J$6*POWER((1+AI9),F59) -> 0 | G61: =+$J$6*POWER((1+AI9),G59) -> 0 | H61: =+$J$6*POWER((1+AI9),H59) -> 0 | I61: =+$J$6*POWER((1+AI9),I59) -> 0 | J61: =+$J$6*POWER((1+AI9),J59) -> 0 | K61: =+$J$6*POWER((1+AI9),K59) -> 0 | L61: =+$J$6*POWER((1+AI9),L59) -> 0 | M61: =+$J$6*POWER((1+AI9),M59) -> 0 | N61: =SUM(D61:M61) -> 0 | P61: 1.1 | Q61: Personal | R61: =+$J$6*POWER((1+AW9),R59) -> 0 | S61: =+$J$6*POWER((1+AW9),S59) -> 0 | T61: =+$J$6*POWER((1+AW9),T59) -> 0 | U61: =+$J$6*POWER((1+AW9),U59) -> 0 | V61: =+$J$6*POWER((1+AW9),V59) -> 0 | W61: =+$J$6*POWER((1+AW9),W59) -> 0 | X61: =+$J$6*POWER((1+AW9),X59) -> 0 | Y61: =+$J$6*POWER((1+AW9),Y59) -> 0 | Z61: =+$J$6*POWER((1+AW9),Z59) -> 0 | AA61: =+$J$6*POWER((1+AW9),AA59) -> 0 | AB61: =SUM(R61:AA61) -> 0
B62: 1.2 | C62: Equipos y/o herramientas | D62: =+$J$8*POWER((1+AI9),D59) -> 0 | E62: =+$J$8*POWER((1+AI9),E59) -> 0 | F62: =+$J$8*POWER((1+AI9),F59) -> 0 | G62: =+$J$8*POWER((1+AI9),G59) -> 0 | H62: =+$J$8*POWER((1+AI9),H59) -> 0 | I62: =+$J$8*POWER((1+AI9),I59) -> 0 | J62: =+$J$8*POWER((1+AI9),J59) -> 0 | K62: =+$J$8*POWER((1+AI9),K59) -> 0 | L62: =+$J$8*POWER((1+AI9),L59) -> 0 | M62: =+$J$8*POWER((1+AI9),M59) -> 0 | N62: 0 | P62: 1.2 | Q62: Equipos y/o herramientas | R62: =+$J$8*POWER((1+AW9),R59) -> 0 | S62: =+$J$8*POWER((1+AW9),S59) -> 0 | T62: =+$J$8*POWER((1+AW9),T59) -> 0 | U62: =+$J$8*POWER((1+AW9),U59) -> 0 | V62: =+$J$8*POWER((1+AW9),V59) -> 0 | W62: =+$J$8*POWER((1+AW9),W59) -> 0 | X62: =+$J$8*POWER((1+AW9),X59) -> 0 | Y62: =+$J$8*POWER((1+AW9),Y59) -> 0 | Z62: =+$J$8*POWER((1+AW9),Z59) -> 0 | AA62: =+$J$8*POWER((1+AW9),AA59) -> 0 | AB62: 0
B63: 1.3 | C63: Bienes de consumo | D63: =+$J$13*POWER((1+AI9),D59) -> 0 | E63: =+$J$13*POWER((1+AI9),E59) -> 0 | F63: =+$J$13*POWER((1+AI9),F59) -> 0 | G63: =+$J$13*POWER((1+AI9),G59) -> 0 | H63: =+$J$13*POWER((1+AI9),H59) -> 0 | I63: =+$J$13*POWER((1+AI9),I59) -> 0 | J63: =+$J$13*POWER((1+AI9),J59) -> 0 | K63: =+$J$13*POWER((1+AI9),K59) -> 0 | L63: =+$J$13*POWER((1+AI9),L59) -> 0 | M63: =+$J$13*POWER((1+AI9),M59) -> 0 | N63: 0 | P63: 1.3 | Q63: Bienes de consumo | R63: =+$J$13*POWER((1+AW9),R59) -> 0 | S63: =+$J$13*POWER((1+AW9),S59) -> 0 | T63: =+$J$13*POWER((1+AW9),T59) -> 0 | U63: =+$J$13*POWER((1+AW9),U59) -> 0 | V63: =+$J$13*POWER((1+AW9),V59) -> 0 | W63: =+$J$13*POWER((1+AW9),W59) -> 0 | X63: =+$J$13*POWER((1+AW9),X59) -> 0 | Y63: =+$J$13*POWER((1+AW9),Y59) -> 0 | Z63: =+$J$13*POWER((1+AW9),Z59) -> 0 | AA63: =+$J$13*POWER((1+AW9),AA59) -> 0 | AB63: 0
B64: 1.4 | C64: Servicios | D64: =D52*$I$29 -> 0 | E64: 0 | F64: 0 | G64: 0 | H64: 0 | I64: 0 | J64: 0 | K64: 0 | L64: 0 | M64: 0 | N64: 0 | P64: 1.4 | Q64: Servicios | R64: =R52*$I$29 -> 0 | S64: 0 | T64: 0 | U64: 0 | V64: 0 | W64: 0 | X64: 0 | Y64: 0 | Z64: 0 | AA64: 0 | AB64: 0
B65: 2 | C65: MATENIMIENTO | D65: =SUM(D66:D67) -> 0 | E65: =SUM(E66:E67) -> 0 | F65: 0 | G65: 0 | H65: 0 | I65: 0 | J65: 0 | K65: 0 | L65: 0 | M65: 0 | N65: =SUM(N66:N67) -> 0 | P65: 2 | Q65: MATENIMIENTO | R65: =SUM(R66:R67) -> 0 | S65: =SUM(S66:S67) -> 0 | T65: 0 | U65: 0 | V65: 0 | W65: 0 | X65: 0 | Y65: 0 | Z65: 0 | AA65: 0 | AB65: =SUM(AB66:AB67) -> 0
B66: 2.1 | C66: Bienes de consumo | D66: =J32 -> 0 | E66: =+D66*(1+AI9) -> 0 | F66: =+E66*(1+AI9) -> 0 | G66: =+F66*(1+AI9) -> 0 | H66: =+G66*(1+AI9) -> 0 | I66: =+H66*(1+AI9) -> 0 | J66: =+I66*(1+AI9) -> 0 | K66: =+J66*(1+AI9) -> 0 | L66: =+K66*(1+AI9) -> 0 | M66: =+L66*(1+AI9) -> 0 | N66: 0 | P66: 2.1 | Q66: Bienes de consumo | R66: =X32 -> 0 | S66: =+R66*(1+AW9) -> 0 | T66: =+S66*(1+AW9) -> 0 | U66: =+T66*(1+AW9) -> 0 | V66: =+U66*(1+AW9) -> 0 | W66: =+V66*(1+AW9) -> 0 | X66: =+W66*(1+AW9) -> 0 | Y66: =+X66*(1+AW9) -> 0 | Z66: =+Y66*(1+AW9) -> 0 | AA66: =+Z66*(1+AW9) -> 0 | AB66: =SUM(R66:AA66) -> 0
B67: 2.2 | C67: Servicios | D67: =+J38 -> 0 | E67: =+D67*(1+$AI$9) -> 0 | F67: =+E67*(1+$AI$9) -> 0 | G67: 0 | H67: 0 | I67: 0 | J67: 0 | K67: 0 | L67: 0 | M67: 0 | N67: 0 | P67: 2.2 | Q67: Servicios | R67: =+X38 -> 0 | S67: =+R67*(1+$AI$9) -> 0 | T67: =+S67*(1+$AI$9) -> 0 | U67: 0 | V67: 0 | W67: 0 | X67: 0 | Y67: 0 | Z67: 0 | AA67: 0 | AB67: 0
B68: TOTAL DE POST INVERSIÓN | D68: =D65+D60 -> 0 | E68: =E65+E60 -> 0 | F68: 0 | G68: 0 | H68: 0 | I68: 0 | J68: 0 | K68: 0 | L68: 0 | M68: 0 | N68: =N65+N60 -> 0 | P68: TOTAL DE POST INVERSIÓN | R68: =R65+R60 -> 0 | S68: =S65+S60 -> 0 | T68: 0 | U68: 0 | V68: 0 | W68: 0 | X68: 0 | Y68: 0 | Z68: 0 | AA68: 0 | AB68: =AB65+AB60 -> 0
B70: N° | C70: MONITOREO | D70: 1 | E70: 2 | F70: 3 | G70: 4 | H70: 5 | I70: 6 | J70: 7 | K70: 8 | L70: 9 | M70: 10 | P70: N° | Q70: MONITOREO | R70: 1 | S70: 2 | T70: 3 | U70: 4 | V70: 5 | W70: 6 | X70: 7 | Y70: 8 | Z70: 9 | AA70: 10
B71: 1 | C71: ECA Agua | D71: =$AF$44*$AG$44*$AE$44 -> 0 | E71: 0 | F71: 0 | G71: 0 | H71: 0 | I71: 0 | J71: 0 | K71: 0 | L71: 0 | M71: 0 | P71: 1 | Q71: ECA Agua | R71: =$AF$44*$AG$44*$AE$44 -> 0 | S71: 0 | T71: 0 | U71: 0 | V71: 0 | W71: 0 | X71: 0 | Y71: 0 | Z71: 0 | AA71: 0
B72: 2 | C72: ECA Suelos | F72: =$AF$45*$AG$45*$AE$45 -> 0 | H72: =$AF$45*$AG$45*$AE$45 -> 0 | M72: =$AF$45*$AG$45*$AE$45 -> 0 | P72: 2 | Q72: ECA Suelos | T72: =$AF$45*$AG$45*$AE$45 -> 0 | V72: =$AF$45*$AG$45*$AE$45 -> 0 | AA72: =$AF$45*$AG$45*$AE$45 -> 0
B73: 3 | C73: ECA Aire | F73: =$AF$46*$AG$46*$AE$46 -> 0 | H73: =$AF$46*$AG$46*$AE$46 -> 0 | M73: =$AF$46*$AG$46*$AE$46 -> 0 | P73: 3 | Q73: ECA Aire | T73: =$AF$46*$AG$46*$AE$46 -> 0 | V73: =$AF$46*$AG$46*$AE$46 -> 0 | AA73: =$AF$46*$AG$46*$AE$46 -> 0
B74: 4 | C74: Analítica Biogás | D74: =$AF$47*$AG$47*$AE$47 -> 0 | E74: 0 | F74: 0 | G74: 0 | H74: 0 | I74: 0 | J74: 0 | K74: 0 | L74: 0 | M74: 0 | P74: 4 | Q74: Analítica Biogás | R74: =$AF$47*$AG$47*$AE$47 -> 0 | S74: 0 | T74: 0 | U74: 0 | V74: 0 | W74: 0 | X74: 0 | Y74: 0 | Z74: 0 | AA74: 0
B75: 5 | C75: Analítica Lixiviados | D75: =$AF$48*$AG$48*$AE$48 -> 0 | E75: 0 | F75: 0 | G75: 0 | H75: 0 | I75: 0 | J75: 0 | K75: 0 | L75: 0 | M75: 0 | P75: 5 | Q75: Analítica Lixiviados | R75: =$AF$48*$AG$48*$AE$48 -> 0 | S75: 0 | T75: 0 | U75: 0 | V75: 0 | W75: 0 | X75: 0 | Y75: 0 | Z75: 0 | AA75: 0
B76: 6 | C76: Analítica Aguas | D76: =$AF$49*$AG$49*$AE$49 -> 0 | E76: 0 | F76: 0 | G76: 0 | H76: 0 | I76: 0 | J76: 0 | K76: 0 | L76: 0 | M76: 0 | P76: 6 | Q76: Analítica Aguas | R76: =$AF$49*$AG$49*$AE$49 -> 0 | S76: 0 | T76: 0 | U76: 0 | V76: 0 | W76: 0 | X76: 0 | Y76: 0 | Z76: 0 | AA76: 0
C77: TOTAL | D77: =SUM(D71:D76) -> 0 | E77: 0 | F77: 0 | G77: 0 | H77: 0 | I77: 0 | J77: 0 | K77: 0 | L77: 0 | M77: 0 | Q77: TOTAL | R77: =SUM(R71:R76) -> 0 | S77: 0 | T77: 0 | U77: 0 | V77: 0 | W77: 0 | X77: 0 | Y77: 0 | Z77: 0 | AA77: 0

Sheet VAC
B2: ALTERNATIVA N° 01 - VALOR ACTUAL DE COSTOS | T2: ALTERNATIVA N° 02 - VALOR ACTUAL DE COSTOS
B4: COSTOS A PRECIOS DE MERCADO | T4: COSTOS A PRECIOS DE MERCADO
B6: PRODUCTOS / METAS | E6: INVERSIÓN | F6: OPERACIÓN Y MANTENIMIENTO | P6: TOTAL (S/.) | T6: PRODUCTOS / METAS | W6: INVERSIÓN | X6: OPERACIÓN Y MANTENIMIENTO | AH6: TOTAL (S/.)
E7: AÑO 0 | F7: AÑO 1 | G7: AÑO 2 | H7: AÑO 3 | I7: AÑO 4 | J7: AÑO 5 | K7: AÑO 6 | L7: AÑO 7 | M7: AÑO 8 | N7: AÑO 9 | O7: AÑO 10 | W7: AÑO 0 | X7: AÑO 1 | Y7: AÑO 2 | Z7: AÑO 3 | AA7: AÑO 4 | AB7: AÑO 5 | AC7: AÑO 6 | AD7: AÑO 7 | AE7: AÑO 8 | AF7: AÑO 9 | AG7: AÑO 10
B8: MANEJO DE RESIDUOS SÓLIDOS EN EL ÁREA DEGRADADA | E8: =SUM(E9:E11) -> 0 | P8: =SUM(E8:O8) -> 0 | T8: MANEJO DE RESIDUOS SÓLIDOS EN EL ÁREA DEGRADADA | W8: =SUM(W9:W11) -> 0 | AH8: =SUM(W8:AG8) -> 0
B9: CONFINAMIENTO DE RR.SS | E9: =+INVERSIÓN!H17 -> 0 | P9: 0 | T9: CONFINAMIENTO DE RR.SS | W9: =+INVERSIÓN!AX17 -> 0 | AH9: 0
B10: MANEJO DE LIXIVIADOS | E10: =+INVERSIÓN!R17 -> 0 | P10: 0 | T10: MANEJO DE LIXIVIADOS | W10: =+INVERSIÓN!BH17 -> 0 | AH10: 0
B11: MANEJO DE GASES | E11: =+INVERSIÓN!AB17 -> 0 | P11: 0 | T11: MANEJO DE GASES | W11: =+INVERSIÓN!BR17 -> 0 | AH11: 0
B12: GESTIÓN TÉCNICA MUNICIPAL | E12: =+INVERSIÓN!AK16 -> 0 | P12: 0 | T12: GESTIÓN TÉCNICA MUNICIPAL | W12: =+INVERSIÓN!CA16 -> 0 | AH12: 0
B13: PRÁCTICAS DE LA POBLACIÓN INVOLUCRADA | E13: =+INVERSIÓN!AK33 -> 0 | P13: 0 | T13: PRÁCTICAS DE LA POBLACIÓN INVOLUCRADA | W13: =+INVERSIÓN!CA33 -> 0 | AH13: 0
B14: COSTO DIRECTO | E14: =+E8+E12+E13 -> 0 | P14: =SUM(E14:O14) -> 0 | T14: COSTO DIRECTO | W14: =+W8+W12+W13 -> 0 | AH14: =SUM(W14:AG14) -> 0
B15: GASTOS GENERALES | E15: =+INVERSIÓN!H18+INVERSIÓN!R18+INVERSIÓN!AB18 -> 0 | P15: 0 | T15: GASTOS GENERALES | W15: =+INVERSIÓN!AX18+INVERSIÓN!BH18+INVERSIÓN!BR18 -> 0 | AH15: =SUM(W15:AG15) -> 0
B16: UTILIDAD | E16: =+INVERSIÓN!H19+INVERSIÓN!R19+INVERSIÓN!AB19 -> 0 | P16: 0 | T16: UTILIDAD | W16: =+INVERSIÓN!AX19+INVERSIÓN!BH19+INVERSIÓN!BR19 -> 0 | AH16: 0
B17: COSTO DE OBRA | E17: =SUM(E14:E16) -> 0 | P17: =SUM(P14:P16) -> 0 | T17: COSTO DE OBRA | W17: =SUM(W14:W16) -> 0 | AH17: =SUM(AH14:AH16) -> 0
B18: GESTIÓN DEL PROYECTO * | P18: =SUM(E18:O18) -> 0 | T18: GESTIÓN DEL PROYECTO * | AH18: =SUM(W18:AG18) -> 0
B19: ESTUDIO DEFINITIVO * | P19: =SUM(E19:O19) -> 0 | T19: ESTUDIO DEFINITIVO * | AH19: =SUM(W19:AG19) -> 0
B20: SUPERVISIÓN DEL EXPEDIENTE TÉCNICO * | P20: 0 | T20: SUPERVISIÓN DEL EXPEDIENTE TÉCNICO * | AH20: 0
B21: SUPERVISIÓN DE EJECUCIÓN DEL PROYECTO Y LIQUIDACIÓN * | P21: 0 | T21: SUPERVISIÓN DE EJECUCIÓN DEL PROYECTO Y LIQUIDACIÓN * | AH21: 0
B22: TOTAL DE INVERSIÓN | E22: =SUM(E17:E21) -> 0 | P22: =SUM(P17:P21) -> 0 | T22: TOTAL DE INVERSIÓN | W22: =SUM(W17:W21) -> 0 | AH22: =SUM(AH17:AH21) -> 0
B23: POST INVERSIÓN | F23: =+'O&M'!D56 -> 0 | G23: =+'O&M'!E56 -> 0 | H23: =+'O&M'!F56 -> 0 | I23: =+'O&M'!G56 -> 0 | J23: =+'O&M'!H56 -> 0 | K23: =+'O&M'!I56 -> 0 | L23: =+'O&M'!J56 -> 0 | M23: =+'O&M'!K56 -> 0 | N23: =+'O&M'!L56 -> 0 | O23: =+'O&M'!M56 -> 0 | P23: =SUM(F23:O23) -> 0 | T23: POST INVERSIÓN | X23: =+'O&M'!R56 -> 0 | Y23: =+'O&M'!S56 -> 0 | Z23: =+'O&M'!T56 -> 0 | AA23: =+'O&M'!U56 -> 0 | AB23: =+'O&M'!V56 -> 0 | AC23: =+'O&M'!W56 -> 0 | AD23: =+'O&M'!X56 -> 0 | AE23: =+'O&M'!Y56 -> 0 | AF23: =+'O&M'!Z56 -> 0 | AG23: =+'O&M'!AA56 -> 0 | AH23: =SUM(X23:AG23) -> 0
B24: * Los costos detallados son referenciales, debiendo estimarse de manera desagregada considerando la realidad de cada zona de intervención. | T24: * Los costos detallados son referenciales, debiendo estimarse de manera desagregada considerando la realidad de cada zona de intervención debiendo incluir los costos por las medidas de mitigación de riesgos según corresponda
B26: EVALUACIÓN ECONÓMICA A PRECIOS DE MERCADO | T26: EVALUACIÓN ECONÓMICA A PRECIOS DE MERCADO
B27: Tasa Social de Descuento | E27: 0.08 | T27: Tasa Social de Descuento | W27: 0.08
B28: VAC (S/.) | E28: =NPV(E27,F23:O23)+E22 -> 0 | T28: VAC (S/.) | W28: =NPV(W27,X23:AG23)+W22 -> 0
B30: COSTOS A PRECIOS SOCIALES | T30: COSTOS A PRECIOS SOCIALES
B32: PRODUCTOS / METAS | E32: INVERSIÓN | F32: OPERACIÓN Y MANTENIMIENTO | P32: TOTAL (S/.) | T32: PRODUCTOS / METAS | W32: INVERSIÓN | X32: OPERACIÓN Y MANTENIMIENTO | AH32: TOTAL (S/.)
E33: AÑO 0 | F33: AÑO 1 | G33: AÑO 2 | H33: AÑO 3 | I33: AÑO 4 | J33: AÑO 5 | K33: AÑO 6 | L33: AÑO 7 | M33: AÑO 8 | N33: AÑO 9 | O33: AÑO 10 | W33: AÑO 0 | X33: AÑO 1 | Y33: AÑO 2 | Z33: AÑO 3 | AA33: AÑO 4 | AB33: AÑO 5 | AC33: AÑO 6 | AD33: AÑO 7 | AE33: AÑO 8 | AF33: AÑO 9 | AG33: AÑO 10
B34: MANEJO DE RESIDUOS SÓLIDOS EN EL ÁREA DEGRADADA | E34: =SUM(E35:E37) -> 0 | P34: =SUM(E34:O34) -> 0 | T34: MANEJO DE RESIDUOS SÓLIDOS EN EL ÁREA DEGRADADA | W34: =SUM(W35:W37) -> 0 | AH34: =SUM(W34:AG34) -> 0
B35: CONFINAMIENTO DE RR.SS | E35: =+INVERSIÓN!J17 -> 0 | P35: 0 | T35: CONFINAMIENTO DE RR.SS | W35: =+INVERSIÓN!AZ17 -> 0 | AH35: 0
B36: MANEJO DE LIXIVIADOS | E36: =+INVERSIÓN!T17 -> 0 | P36: 0 | T36: MANEJO DE LIXIVIADOS | W36: =+INVERSIÓN!BJ17 -> 0 | AH36: 0
B37: MANEJO DE GASES | E37: =+INVERSIÓN!AD17 -> 0 | P37: 0 | T37: MANEJO DE GASES | W37: =+INVERSIÓN!BT17 -> 0 | AH37: 0
B38: GESTION TÉCNICA MUNICIPAL | E38: =+INVERSIÓN!AN16 -> 0 | P38: 0 | T38: GESTION TÉCNICA MUNICIPAL | W38: =+INVERSIÓN!CD16 -> 0 | AH38: 0
B39: PRÁCTICAS DE LA POBLACIÓN INVOLUCRADA | E39: =+INVERSIÓN!AN33 -> 0 | P39: 0 | T39: PRÁCTICAS DE LA POBLACIÓN INVOLUCRADA | W39: =+INVERSIÓN!CD33 -> 0 | AH39: 0
B40: COSTO DIRECTO | E40: =+E34+E38+E39 -> 0 | P40: =SUM(E40:O40) -> 0 | T40: COSTO DIRECTO | W40: =+W34+W38+W39 -> 0 | AH40: =SUM(W40:AG40) -> 0
B41: GASTOS GENERALES | E41: =+INVERSIÓN!J18+INVERSIÓN!T18+INVERSIÓN!AD18 -> 0 | P41: 0 | T41: GASTOS GENERALES | W41: =+INVERSIÓN!AZ18+INVERSIÓN!BJ18+INVERSIÓN!BT18 -> 0 | AH41: =SUM(W41:AG41) -> 0
B42: UTILIDAD | E42: =+INVERSIÓN!J19+INVERSIÓN!T19+INVERSIÓN!AD19 -> 0 | P42: 0 | T42: UTILIDAD | W42: =+INVERSIÓN!AZ19+INVERSIÓN!BJ19+INVERSIÓN!BT19 -> 0 | AH42: 0
B43: COSTO DE OBRA | E43: =SUM(E40:E42) -> 0 | P43: =SUM(P40:P42) -> 0 | Q43: FACTOR DE CORRECCIÓN | T43: COSTO DE OBRA | W43: =SUM(W40:W42) -> 0 | AH43: =SUM(AH40:AH42) -> 0 | AI43: FACTOR DE CORRECCIÓN
B44: GESTIÓN DEL PROYECTO | E44: =+E18*Q44 -> 0 | P44: =SUM(E44:O44) -> 0 | Q44: 0.93 | R44: MOC | T44: GESTIÓN DEL PROYECTO | W44: =+W18*AI44 -> 0 | AH44: =SUM(W44:AG44) -> 0 | AI44: 0.93 | AJ44: MOC
B45: ESTUDIO DEFINITIVO | E45: =+E19*Q45 -> 0 | P45: =SUM(E45:O45) -> 0 | Q45: 0.85 | R45: SERVICIO | T45: ESTUDIO DEFINITIVO | W45: =+W19*AI45 -> 0 | AH45: =SUM(W45:AG45) -> 0 | AI45: 0.85 | AJ45: SERVICIO
B46: SUPERVISIÓN DEL EXPEDIENTE TÉCNICO | E46: =+E20*Q46 -> 0 | P46: 0 | Q46: 0.85 | R46: SERVICIO | T46: SUPERVISIÓN DEL EXPEDIENTE TÉCNICO | W46: =+W20*AI46 -> 0 | AH46: 0 | AI46: 0.85 | AJ46: SERVICIO
B47: SUPERVISIÓN DE EJECUCIÓN DEL PROYECTO Y LIQUIDACIÓN | E47: =+E21*Q47 -> 0 | P47: 0 | Q47: 0.85 | R47: SERVICIO | T47: SUPERVISIÓN DE EJECUCIÓN DEL PROYECTO Y LIQUIDACIÓN | W47: =+W21*AI47 -> 0 | AH47: 0 | AI47: 0.85 | AJ47: SERVICIO
B48: TOTAL DE INVERSIÓN | E48: =SUM(E43:E47) -> 0 | P48: =SUM(P43:P47) -> 0 | T48: TOTAL DE INVERSIÓN | W48: =SUM(W43:W47) -> 0 | AH48: =SUM(AH43:AH47) -> 0
B49: POST INVERSIÓN | F49: =+'O&M'!D68 -> 0 | G49: =+'O&M'!E68 -> 0 | H49: =+'O&M'!F68 -> 0 | I49: =+'O&M'!G68 -> 0 | J49: =+'O&M'!H68 -> 0 | K49: =+'O&M'!I68 -> 0 | L49: =+'O&M'!J68 -> 0 | M49: =+'O&M'!K68 -> 0 | N49: =+'O&M'!L68 -> 0 | O49: =+'O&M'!M68 -> 0 | P49: =SUM(F49:O49) -> 0 | T49: POST INVERSIÓN | X49: =+'O&M'!R68 -> 0 | Y49: =+'O&M'!S68 -> 0 | Z49: =+'O&M'!T68 -> 0 | AA49: =+'O&M'!U68 -> 0 | AB49: =+'O&M'!V68 -> 0 | AC49: =+'O&M'!W68 -> 0 | AD49: =+'O&M'!X68 -> 0 | AE49: =+'O&M'!Y68 -> 0 | AF49: =+'O&M'!Z68 -> 0 | AG49: =+'O&M'!AA68 -> 0 | AH49: =SUM(X49:AG49) -> 0
B51: EVALUACIÓN ECONÓMICA A PRECIOS SOCIALES | T51: EVALUACIÓN ECONÓMICA A PRECIOS SOCIALES
B52: Tasa Social de Descuento | E52: 0.08 | T52: Tasa Social de Descuento | W52: 0.08
B53: VAC Costos de Inversion (S/.) | E53: =NPV(E52,F49:O49)+E48 -> 0 | T53: VAC Costos de Inversion (S/.) | W53: =NPV(W52,X49:AG49)+W48 -> 0

Sheet VOLUMEN RRSS
D2: CÁLCULO DEL VOLUMEN DE RR.SS DISPUESTOS EN EL ÁREA DEGRADADA
B4: 1) VOLUMEN DE RR.SS DEPOSITADOS
B6: Datos requeridos
B8: Área util | C8: : | E8: m2
B11: Altura promedio | C11: : | E11: m
B14: Volumen RR.SS | C14: : | D14: =+D8*D11 -> 0 | E14: m3 | F14: …….(1)
B16: 2) VOLUMEN DE RR.SS PROYECTADOS
B18: Para determinar el cálculo de volumen de RR.SS proyectados hasta el inicio del proyecto, se deberá tener como base la información consignada en el Estudio de Caracterización de Residuos Sólidos del Proyecto de Inversión (PI) de Limpieza Pública del sector a intervenir, de donde se obtendrán los datos de generación de residuos sólidos. De esta manera, se tiene la siguiente información:
B20: Proyección de Residuos Sólidos Municipales (RSM)
B22: Año base | C22: 2017 | D22: Localidad 1 | E22: Localidad 2 | F22: Localidad 3 | G22: Localidad n
B23: Tasa de crecimiento | C23: % | D23: 0.0185 | E23: 0.0197 | F23: 0.0106 | G23: 0.0193
B25: Año | D25: Generación Residuos Sólidos Municipales del PI (ton/día) | I25: Tiempo * (meses) | J25: Densidad de Compactación ton/m3 | K25: Generación de RRSS (ton/año)
D26: Localidad 1 | E26: Localidad 2 | F26: Localidad 3 | G26: Localidad n | H26: Total
A27: Año Formulación-Evaluacion | B27: =+C22 -> 2017 | H27: =SUM(D27:G27) -> 0 | J27: 0.8 | K27: =+H27*365*I27/12 -> 0
A28: Fase de ejecución | B28: =+B27+1 -> 2018 | H28: =SUM(D28:G28) -> 0 | K28: =+H28*365*I28/12 -> 0
B29: …….. | H29: 0
B30: 20__ | H30: 0
B31: TOTAL | K31: =SUM(K27:K30) -> 0
B32: (*) TIEMPO (MESES): TIEMPO DE OPERACIÓN DEL BOTADERO HASTA EL INICIO DE OPERACIÓN DEL PROYECTO DE LIMPIEZA PÚBLICA
B34: Generación de RSM | D34: =+K31/J27 -> 0 | E34: m3 | F34: …….(2)
B36: VOLUMEN TOTAL | D36: =+D14+D34 -> 0 | E36: m3 | F36: ……(1) + (2)
